Transaction Reference,Supplier Name,Line Value,Department,Category,Transaction Date,Year/Period,SME,Costs split between Mid Suffolk and Babergh District Councils Y/N,% of transaction apportioned to Babergh District Council
0000373771,1331 STOWMARKET SQUADRON,"3,500.00",Grants & Contrbns,Contributions & Donations,13 Nov 2023,2324/08,SME,N,
0000374787,1ST MID SUFFOLK BBGA (CLUB),"12,752.00",Communities,Grants,20 Dec 2023,2324/09,SME,N,
0000423597,2ND EYE RAINBOWS,661.25,Bring Sites,Contributions & Donations,11 Oct 2023,2324/07,SME,N,
0000372353,3 POINT PROPERTY MANAGEMENT LTD,895.00,Guaranteed Rent Scheme,Rent Payable,02 Oct 2023,2324/07,SME,N,
0000372356,3 POINT PROPERTY MANAGEMENT LTD,595.00,Guaranteed Rent Scheme,Rent Payable,02 Oct 2023,2324/07,SME,N,
0000372641,3 POINT PROPERTY MANAGEMENT LTD,675.00,Guaranteed Rent Scheme,Rent Payable,09 Oct 2023,2324/07,SME,N,
0000373566,3 POINT PROPERTY MANAGEMENT LTD,895.00,Guaranteed Rent Scheme,Rent Payable,06 Nov 2023,2324/08,SME,N,
0000373585,3 POINT PROPERTY MANAGEMENT LTD,595.00,Guaranteed Rent Scheme,Rent Payable,06 Nov 2023,2324/08,SME,N,
0000374294,3 POINT PROPERTY MANAGEMENT LTD,595.00,Guaranteed Rent Scheme,Rent Payable,04 Dec 2023,2324/09,SME,N,
0000374303,3 POINT PROPERTY MANAGEMENT LTD,895.00,Guaranteed Rent Scheme,Rent Payable,05 Dec 2023,2324/09,SME,N,
0000374786,3 POINT PROPERTY MANAGEMENT LTD,795.00,Guaranteed Rent Scheme,Rent Payable,20 Dec 2023,2324/09,SME,N,
0000372769,4PRINCIPLES CONSTRUCTION LTD,"7,489.71",Mand Disabled Facilities Grant,Grants,11 Oct 2023,2324/07,SME,N,
0000373934,4PRINCIPLES CONSTRUCTION LTD,"7,500.00",Mand Disabled Facilities Grant,Grants,17 Nov 2023,2324/08,SME,N,
0000374024,4PRINCIPLES CONSTRUCTION LTD,"7,307.37",Mand Disabled Facilities Grant,Grants,22 Nov 2023,2324/08,SME,N,
0000374639,4PRINCIPLES CONSTRUCTION LTD,"6,565.83",Mand Disabled Facilities Grant,Grants,18 Dec 2023,2324/09,SME,N,
0000374648,4PRINCIPLES CONSTRUCTION LTD,"7,500.00",Mand Disabled Facilities Grant,Grants,18 Dec 2023,2324/09,SME,N,
0000372310,A C LEIGH (NORWICH) LTD,728.20,Building Services,"Equipment, Tools & Materials",22 Sep 2023,2324/07,SME,N,
0000373140,A C LEIGH (NORWICH) LTD,512.13,Building Services,"Equipment, Tools & Materials",18 Oct 2023,2324/07,SME,N,
0000374378,A C LEIGH (NORWICH) LTD,-32.52,Building Services,"Equipment, Tools & Materials",14 Nov 2023,2324/09,SME,N,
0000423637,AARON SERVICES LTD,"16,819.78",Planned Maint - Heating,Property Servicing,11 Oct 2023,2324/07,SME,N,
0000423637,AARON SERVICES LTD,61.70,Housing Rechargeable Works,Repairs,11 Oct 2023,2324/07,SME,N,
0000423637,AARON SERVICES LTD,142.64,Voids Maintenance,Repairs,11 Oct 2023,2324/07,SME,N,
0000423639,AARON SERVICES LTD,76.36,Voids Maintenance,Repairs,13 Oct 2023,2324/07,SME,N,
0000423639,AARON SERVICES LTD,"17,401.38",Planned Maint - Heating,Property Servicing,13 Oct 2023,2324/07,SME,N,
0000423639,AARON SERVICES LTD,40.00,Housing Rechargeable Works,Repairs,13 Oct 2023,2324/07,SME,N,
0000423641,AARON SERVICES LTD,"25,904.90",Planned Maint - Heating,Property Servicing,19 Oct 2023,2324/07,SME,Y,<0.01%
0000423641,AARON SERVICES LTD,851.03,Voids Maintenance,Repairs,19 Oct 2023,2324/07,SME,N,
0000423644,AARON SERVICES LTD,"34,554.61",Planned Maint - Heating,Property Servicing,23 Oct 2023,2324/07,SME,N,
0000423644,AARON SERVICES LTD,"3,714.79",Voids Maintenance,Repairs,23 Oct 2023,2324/07,SME,N,
0000423645,AARON SERVICES LTD,"41,424.37",Planned Maint - Heating,Property Servicing,25 Oct 2023,2324/07,SME,N,
0000423645,AARON SERVICES LTD,"12,586.94",Voids Maintenance,Repairs,25 Oct 2023,2324/07,SME,N,
0000423658,AARON SERVICES LTD,"2,302.24",Planned Maint - Heating,Property Servicing,31 Oct 2023,2324/08,SME,N,
0000423658,AARON SERVICES LTD,40.00,Housing Rechargeable Works,Repairs,31 Oct 2023,2324/08,SME,N,
0000423658,AARON SERVICES LTD,656.61,Voids Maintenance,Repairs,31 Oct 2023,2324/08,SME,N,
0000423686,AARON SERVICES LTD,"1,465.61",Planned Maint - Heating,Property Servicing,30 Nov 2023,2324/09,SME,N,
0000373081,ABBEYCROFT LEISURE,"2,601.14",Holiday Activity Fund,"Equipment, Tools & Materials",21 Oct 2023,2324/08,LGE,N,
0000373897,ABBEYCROFT LEISURE,"10,667.96",Holiday Activity Fund,"Equipment, Tools & Materials",17 Nov 2023,2324/08,LGE,N,
0000374044,ABBEYCROFT LEISURE,678.56,Holiday Activity Fund,"Equipment, Tools & Materials",22 Nov 2023,2324/08,LGE,N,
0000423663,ABBEYCROFT LEISURE,536.94,Holiday Activity Fund,"Equipment, Tools & Materials",09 Nov 2023,2324/08,LGE,N,
0000374751,ABBEYCROFT LEISURE,"10,005.00",Holiday Activity Fund,"Equipment, Tools & Materials",19 Dec 2023,2324/09,LGE,N,
0000372497,ACUITY RESEARCH & PRACTICE LTD,"3,268.20",Software/ICT Projects/Surveys,Improvements,29 Sep 2023,2324/07,SME,Y,50%
0000372498,ACUITY RESEARCH & PRACTICE LTD,707.45,Software/ICT Projects/Surveys,Improvements,29 Sep 2023,2324/07,SME,Y,50%
0000373705,ACUITY RESEARCH & PRACTICE LTD,647.95,Regulatory & Support Services,Subscriptions,31 Oct 2023,2324/08,SME,Y,50%
0000374170,ACUITY RESEARCH & PRACTICE LTD,659.85,Regulatory & Support Services,Subscriptions,29 Nov 2023,2324/08,SME,Y,50%
0000372440,AE WHITE SURFACING,625.00,Open Spaces,Grounds & Site Maintenance,21 Jul 2023,2324/07,SME,N,
0000373014,AE WHITE SURFACING,"12,236.00",Council House Adaptions,Improvements,17 Oct 2023,2324/07,SME,N,
0000373438,AE WHITE SURFACING,"3,358.00",Council House Adaptions,Improvements,01 Nov 2023,2324/08,SME,N,
0000374310,AE WHITE SURFACING,"1,275.00",Roads and Paths,Improvements,04 Dec 2023,2324/09,SME,N,
0000374548,AE WHITE SURFACING,"19,992.00",Open Spaces,Horticultural Purchases,13 Nov 2023,2324/09,SME,N,
0000372938,ALARM THE PUBLC RISK MANAGEMENT ASSOCIAT,"1,376.07",Organisational Devt,Corporate Training,13 Sep 2023,2324/07,SME,Y,50%
0000423561,ALLSTAR BUSINESS SOLUTIONS LTD,"10,491.96",Building Services,Plant & Vehicle Fuel,30 Sep 2023,2324/07,SME,Y,50%
0000423561,ALLSTAR BUSINESS SOLUTIONS LTD,115.01,Housing Options,Plant & Vehicle Fuel,30 Sep 2023,2324/07,SME,Y,50%
0000423653,ALLSTAR BUSINESS SOLUTIONS LTD,"10,806.87",Building Services,Plant & Vehicle Fuel,31 Oct 2023,2324/08,SME,Y,50%
0000423685,ALLSTAR BUSINESS SOLUTIONS LTD,"11,480.96",Building Services,Plant & Vehicle Fuel,30 Nov 2023,2324/09,SME,Y,50%
0000423685,ALLSTAR BUSINESS SOLUTIONS LTD,64.18,Housing Options,Plant & Vehicle Fuel,30 Nov 2023,2324/09,SME,Y,50%
0000373489,ANGELUS LAW LTD,"1,000.00",Building Services,Payments to Tenants,02 Nov 2023,2324/08,SME,N,
0000374451,ANGELUS LAW LTD,"5,600.00",Building Services,Payments to Tenants,08 Dec 2023,2324/09,SME,N,
0000372804,ANGLIA CAR CHARGING,816.00,EV Charge Points Car parks,Misc Supplies & Services Costs,30 Jun 2023,2324/07,SME,Y,50%
0000372807,ANGLIA CAR CHARGING,816.00,EV Charge Points Car parks,Misc Supplies & Services Costs,19 Jul 2023,2324/07,SME,Y,50%
0000372809,ANGLIA CAR CHARGING,"1,224.00",EV Charge Points Car parks,Misc Supplies & Services Costs,29 Aug 2023,2324/07,SME,Y,50%
0000372810,ANGLIA CAR CHARGING,"1,224.00",EV Charge Points Car parks,Misc Supplies & Services Costs,29 Aug 2023,2324/07,SME,Y,50%
0000372812,ANGLIA CAR CHARGING,"1,224.00",EV Charge Points Car parks,Misc Supplies & Services Costs,29 Aug 2023,2324/07,SME,Y,50%
0000372816,ANGLIA CAR CHARGING,"1,224.00",EV Charge Points Car parks,Misc Supplies & Services Costs,06 Oct 2023,2324/07,SME,Y,50%
0000370513,ANGLIA CAR CHARGING,"1,021.93",EV Charge Points Car parks,Misc Supplies & Services Costs,19 Jul 2023,2324/08,SME,Y,50%
0000372813,ANGLIA CAR CHARGING,576.00,EV Charge Points Car parks,Misc Supplies & Services Costs,29 Aug 2023,2324/08,SME,Y,50%
0000372814,ANGLIA CAR CHARGING,576.00,EV Charge Points Car parks,Misc Supplies & Services Costs,29 Aug 2023,2324/08,SME,Y,50%
0000372815,ANGLIA CAR CHARGING,576.00,EV Charge Points Car parks,Misc Supplies & Services Costs,29 Aug 2023,2324/08,SME,Y,50%
0000372818,ANGLIA CAR CHARGING,576.00,EV Charge Points Car parks,Misc Supplies & Services Costs,06 Oct 2023,2324/08,SME,Y,50%
0000372833,ANGLIA CAR CHARGING,"23,807.38",EV Charge Points Car parks,Misc Supplies & Services Costs,06 Oct 2023,2324/08,SME,Y,50%
0000373605,ANGLIA CAR CHARGING,626.51,EV Charge Points Car parks,Misc Supplies & Services Costs,06 Oct 2023,2324/08,SME,Y,50%
0000373606,ANGLIA CAR CHARGING,"1,037.93",EV Charge Points Car parks,Misc Supplies & Services Costs,07 Nov 2023,2324/08,SME,Y,50%
0000373607,ANGLIA CAR CHARGING,637.63,EV Charge Points Car parks,Misc Supplies & Services Costs,29 Aug 2023,2324/08,SME,Y,50%
0000373608,ANGLIA CAR CHARGING,637.64,EV Charge Points Car parks,Misc Supplies & Services Costs,29 Aug 2023,2324/08,SME,Y,50%
0000373609,ANGLIA CAR CHARGING,615.38,EV Charge Points Car parks,Misc Supplies & Services Costs,29 Aug 2023,2324/08,SME,Y,50%
0000372566,ANGLIA COMMERCIAL FLOORING LTD,571.07,Voids Maintenance,Repairs,04 Oct 2023,2324/07,SME,N,
0000372756,ANGLIA COMMERCIAL FLOORING LTD,"1,069.91",Building Services,Repairs,11 Oct 2023,2324/07,SME,N,
0000372798,ANGLIA COMMERCIAL FLOORING LTD,601.26,Voids Maintenance,Repairs,12 Oct 2023,2324/07,SME,N,
0000372928,ANGLIA COMMERCIAL FLOORING LTD,592.43,Voids Maintenance,Repairs,16 Oct 2023,2324/07,SME,N,
0000372929,ANGLIA COMMERCIAL FLOORING LTD,709.36,Building Services,Repairs,16 Oct 2023,2324/07,SME,N,
0000373034,ANGLIA COMMERCIAL FLOORING LTD,581.64,Building Services,Repairs,19 Oct 2023,2324/07,SME,N,
0000373036,ANGLIA COMMERCIAL FLOORING LTD,"1,233.51",Voids Maintenance,Repairs,19 Oct 2023,2324/07,SME,N,
0000373038,ANGLIA COMMERCIAL FLOORING LTD,546.28,Building Services,Repairs,19 Oct 2023,2324/07,SME,N,
0000372499,ANGLIA COMMERCIAL FLOORING LTD,"1,635.43",Building Services,Repairs,04 Oct 2023,2324/08,SME,N,
0000372500,ANGLIA COMMERCIAL FLOORING LTD,"1,321.65",Building Services,Repairs,04 Oct 2023,2324/08,SME,N,
0000373035,ANGLIA COMMERCIAL FLOORING LTD,"1,256.41",Building Services,Repairs,19 Oct 2023,2324/08,SME,N,
0000373322,ANGLIA COMMERCIAL FLOORING LTD,992.08,Building Services,Repairs,30 Oct 2023,2324/08,SME,N,
0000373579,ANGLIA COMMERCIAL FLOORING LTD,"1,378.50",Voids Maintenance,Repairs,06 Nov 2023,2324/08,SME,N,
0000374007,ANGLIA COMMERCIAL FLOORING LTD,"1,069.91",Voids Maintenance,Repairs,21 Nov 2023,2324/08,SME,N,
0000374008,ANGLIA COMMERCIAL FLOORING LTD,"1,271.07",Voids Maintenance,Repairs,21 Nov 2023,2324/08,SME,N,
0000374009,ANGLIA COMMERCIAL FLOORING LTD,"1,469.64",Voids Maintenance,Repairs,21 Nov 2023,2324/08,SME,N,
0000374011,ANGLIA COMMERCIAL FLOORING LTD,"1,113.02",Voids Maintenance,Repairs,21 Nov 2023,2324/08,SME,N,
0000374012,ANGLIA COMMERCIAL FLOORING LTD,903.00,Voids Maintenance,Repairs,21 Nov 2023,2324/08,SME,N,
0000374338,ANGLIA COMMERCIAL FLOORING LTD,507.62,Voids Maintenance,Repairs,21 Nov 2023,2324/09,SME,N,
0000374339,ANGLIA COMMERCIAL FLOORING LTD,794.78,Voids Maintenance,Repairs,21 Nov 2023,2324/09,SME,N,
0000372546,ANGLIAN WATER,744.10,Sheltered Accommodation,Water Rates - Metered,28 Jul 2023,2324/07,LGE,N,
0000372581,ANGLIAN WATER,818.62,Sheltered Accommodation,Water Rates - Metered,02 Oct 2023,2324/07,LGE,N,
0000373099,ANGLIAN WATER,822.82,Sheltered Accommodation,Water Rates - Metered,12 Sep 2023,2324/08,LGE,N,
0000373100,ANGLIAN WATER,966.82,Sheltered Accommodation,Water Rates - Metered,22 Aug 2023,2324/08,LGE,N,
0000374450,ANGLIAN WATER,"1,277.31",Sheltered Accommodation,Water Rates - Metered,04 Dec 2023,2324/09,LGE,N,
0000423642,ANGLIAN WATER BUS (NAT) LTD T/A WAVE,622.48,Creeting Rd Depot,Water Rates - Metered,12 Oct 2023,2324/07,LGE,Y,50%
0000423642,ANGLIAN WATER BUS (NAT) LTD T/A WAVE,105.84,Headquarters General,Water Rates - Metered,12 Oct 2023,2324/07,LGE,N,
0000423642,ANGLIAN WATER BUS (NAT) LTD T/A WAVE,11.80,HRA Strategic Property,Water Rates - Metered,12 Oct 2023,2324/07,LGE,N,
0000423642,ANGLIAN WATER BUS (NAT) LTD T/A WAVE,391.56,Open Spaces,Water Rates - Metered,12 Oct 2023,2324/07,LGE,N,
0000423642,ANGLIAN WATER BUS (NAT) LTD T/A WAVE,161.56,Public Conveniences,Water Rates - Metered,12 Oct 2023,2324/07,LGE,N,
0000423642,ANGLIAN WATER BUS (NAT) LTD T/A WAVE,1.95,Recycling Centre,Water Rates - Metered,12 Oct 2023,2324/07,LGE,N,
0000423642,ANGLIAN WATER BUS (NAT) LTD T/A WAVE,1.95,Sewage Treatment Works,Water Rates - Metered,12 Oct 2023,2324/07,LGE,N,
0000423642,ANGLIAN WATER BUS (NAT) LTD T/A WAVE,"1,342.10",Sheltered Accommodation,Water Rates - Metered,12 Oct 2023,2324/07,LGE,N,
0000423642,ANGLIAN WATER BUS (NAT) LTD T/A WAVE,15.79,Tacon Close Eye TDP,Water Rates - Metered,12 Oct 2023,2324/07,LGE,N,
0000423642,ANGLIAN WATER BUS (NAT) LTD T/A WAVE,58.34,Temporary Accommodation,Water Rates - Metered,12 Oct 2023,2324/07,LGE,N,
0000423642,ANGLIAN WATER BUS (NAT) LTD T/A WAVE,11.33,Tenancy Services,Water Rates - Metered,12 Oct 2023,2324/07,LGE,N,
0000423642,ANGLIAN WATER BUS (NAT) LTD T/A WAVE,19.80,Wingfield Barns,Water Rates - Metered,12 Oct 2023,2324/07,LGE,N,
0000423675,ANGLIAN WATER BUS (NAT) LTD T/A WAVE,649.33,Creeting Rd Depot,Water Rates - Metered,13 Nov 2023,2324/08,LGE,Y,50%
0000423675,ANGLIAN WATER BUS (NAT) LTD T/A WAVE,112.77,Headquarters General,Water Rates - Metered,13 Nov 2023,2324/08,LGE,N,
0000423675,ANGLIAN WATER BUS (NAT) LTD T/A WAVE,17.10,HRA Strategic Property,Water Rates - Metered,13 Nov 2023,2324/08,LGE,N,
0000423675,ANGLIAN WATER BUS (NAT) LTD T/A WAVE,203.20,Open Spaces,Water Rates - Metered,13 Nov 2023,2324/08,LGE,N,
0000423675,ANGLIAN WATER BUS (NAT) LTD T/A WAVE,175.58,Public Conveniences,Water Rates - Metered,13 Nov 2023,2324/08,LGE,N,
0000423675,ANGLIAN WATER BUS (NAT) LTD T/A WAVE,6.92,Recycling Centre,Water Rates - Metered,13 Nov 2023,2324/08,LGE,N,
0000423675,ANGLIAN WATER BUS (NAT) LTD T/A WAVE,6.92,Sewage Treatment Works,Water Rates - Metered,13 Nov 2023,2324/08,LGE,N,
0000423675,ANGLIAN WATER BUS (NAT) LTD T/A WAVE,"1,405.45",Sheltered Accommodation,Water Rates - Metered,13 Nov 2023,2324/08,LGE,N,
0000423675,ANGLIAN WATER BUS (NAT) LTD T/A WAVE,17.63,Tacon Close Eye TDP,Water Rates - Metered,13 Nov 2023,2324/08,LGE,N,
0000423675,ANGLIAN WATER BUS (NAT) LTD T/A WAVE,63.62,Temporary Accommodation,Water Rates - Metered,13 Nov 2023,2324/08,LGE,N,
0000423675,ANGLIAN WATER BUS (NAT) LTD T/A WAVE,16.61,Tenancy Services,Water Rates - Metered,13 Nov 2023,2324/08,LGE,N,
0000423675,ANGLIAN WATER BUS (NAT) LTD T/A WAVE,26.46,Wingfield Barns,Water Rates - Metered,13 Nov 2023,2324/08,LGE,N,
0000423692,ANGLIAN WATER BUS (NAT) LTD T/A WAVE,627.22,Creeting Rd Depot,Water Rates - Metered,12 Dec 2023,2324/09,LGE,Y,50%
0000423692,ANGLIAN WATER BUS (NAT) LTD T/A WAVE,126.16,Headquarters General,Water Rates - Metered,12 Dec 2023,2324/09,LGE,N,
0000423692,ANGLIAN WATER BUS (NAT) LTD T/A WAVE,16.54,HRA Strategic Property,Water Rates - Metered,12 Dec 2023,2324/09,LGE,N,
0000423692,ANGLIAN WATER BUS (NAT) LTD T/A WAVE,97.23,Open Spaces,Water Rates - Metered,12 Dec 2023,2324/09,LGE,N,
0000423692,ANGLIAN WATER BUS (NAT) LTD T/A WAVE,171.03,Public Conveniences,Water Rates - Metered,12 Dec 2023,2324/09,LGE,N,
0000423692,ANGLIAN WATER BUS (NAT) LTD T/A WAVE,6.69,Recycling Centre,Water Rates - Metered,12 Dec 2023,2324/09,LGE,N,
0000423692,ANGLIAN WATER BUS (NAT) LTD T/A WAVE,6.69,Sewage Treatment Works,Water Rates - Metered,12 Dec 2023,2324/09,LGE,N,
0000423692,ANGLIAN WATER BUS (NAT) LTD T/A WAVE,"1,869.23",Sheltered Accommodation,Water Rates - Metered,12 Dec 2023,2324/09,LGE,N,
0000423692,ANGLIAN WATER BUS (NAT) LTD T/A WAVE,17.05,Tacon Close Eye TDP,Water Rates - Metered,12 Dec 2023,2324/09,LGE,N,
0000423692,ANGLIAN WATER BUS (NAT) LTD T/A WAVE,63.08,Temporary Accommodation,Water Rates - Metered,12 Dec 2023,2324/09,LGE,N,
0000423692,ANGLIAN WATER BUS (NAT) LTD T/A WAVE,16.07,Tenancy Services,Water Rates - Metered,12 Dec 2023,2324/09,LGE,N,
0000423692,ANGLIAN WATER BUS (NAT) LTD T/A WAVE,24.54,Wingfield Barns,Water Rates - Metered,12 Dec 2023,2324/09,LGE,N,
0000374650,APEX ROOFERS LTD,"1,800.00",Building Services,Repairs,19 Oct 2023,2324/09,SME,N,
0000374653,APEX ROOFERS LTD,"1,650.00",Insulation Imps,Repairs,13 Dec 2023,2324/09,SME,N,
0000374212,APSE,"2,570.00",Management Team,Subscriptions,05 Apr 2023,2324/08,LGE,N,
0000372375,APTL ENTERPRISES LTD,"4,326.67",PV Panels,Contracted Services,30 Sep 2023,2324/07,SME,N,
0000372442,APTL ENTERPRISES LTD,"21,565.00",PV Panels,Contracted Services,29 Sep 2023,2324/07,SME,N,
0000374795,AQUAJET CLEANING EQUIPMENT LTD,654.00,Creeting Rd Depot,"Equipment, Tools & Materials",20 Dec 2023,2324/09,SME,Y,50%
0000374424,AQUAM WATER SERVICES LTD,"1,300.00",Street & Major Road Cleansing,"Equipment, Tools & Materials",04 Dec 2023,2324/09,SME,N,
0000373164,AQUASAMPLERS,840.00,Water Sampling,Sampling & Analysis,30 Sep 2023,2324/07,SME,N,
0000372538,ARAN INSULATION LTD,"1,835.58",Insulation Imps,Major Contracts,22 Sep 2023,2324/07,SME,N,
0000372539,ARAN INSULATION LTD,"1,513.74",Insulation Imps,Major Contracts,22 Sep 2023,2324/07,SME,N,
0000372944,ARAN INSULATION LTD,881.83,Insulation Imps,Major Contracts,17 Oct 2023,2324/07,SME,N,
0000373015,ARAN INSULATION LTD,"2,181.56",Insulation Imps,Repairs,04 May 2023,2324/07,SME,N,
0000373827,ARAN INSULATION LTD,"1,184.15",Insulation Imps,Major Contracts,24 Oct 2023,2324/08,SME,N,
0000373828,ARAN INSULATION LTD,"2,479.28",Insulation Imps,Major Contracts,24 Oct 2023,2324/08,SME,N,
0000374067,ARAN INSULATION LTD,"7,986.50",Insulation Imps,Repairs,23 Nov 2023,2324/08,SME,N,
0000374068,ARAN INSULATION LTD,748.30,Insulation Imps,Major Contracts,23 Nov 2023,2324/08,SME,N,
0000374069,ARAN INSULATION LTD,589.85,Insulation Imps,Major Contracts,23 Nov 2023,2324/08,SME,N,
0000374283,ARAN INSULATION LTD,"2,894.43",Insulation Imps,Major Contracts,04 Dec 2023,2324/09,SME,N,
0000374738,ARAN INSULATION LTD,"1,496.60",Insulation Imps,Repairs,15 Nov 2023,2324/09,SME,N,
0000374775,ARLINGCLOSE LTD,"13,938.00",Treasury Management,Contracted Services,07 Dec 2023,2324/09,SME,N,
0000372421,ARMSTRONG YORK ASBESTOS ENVIRONMENTAL,"1,963.95",Asbestos Survey & Reinspection,Prof & Consultancy Fees,16 Sep 2023,2324/07,SME,N,
0000373517,ARMSTRONG YORK ASBESTOS ENVIRONMENTAL,999.84,Asbestos Survey & Reinspection,Prof & Consultancy Fees,31 Oct 2023,2324/08,SME,N,
0000374235,ARMSTRONG YORK ASBESTOS ENVIRONMENTAL,"1,076.80",Asbestos Survey & Reinspection,Prof & Consultancy Fees,30 Nov 2023,2324/09,SME,N,
0000372702,ASPECT CONTRACTS LTD,"4,141.00",Asbestos,Improvements,10 Oct 2023,2324/08,LGE,N,
0000374851,ASPECT CONTRACTS LTD,"3,716.00",Asbestos,Improvements,14 Nov 2023,2324/09,LGE,N,
0000373148,ASSOCIATION OF ELECTORAL ADMINISTRATORS,875.00,Electoral Registration,Returning Officer Fees,19 Oct 2023,2324/07,SME,Y,50%
0000373324,ASSOCIATION OF ELECTORAL ADMINISTRATORS,"19,853.25",Electoral Registration,Salaries,12 Oct 2023,2324/08,SME,Y,50%
0000373544,ASSOCIATION OF ELECTORAL ADMINISTRATORS,"17,965.28",Electoral Registration,Salaries,02 Nov 2023,2324/08,SME,Y,50%
0000372333,ASSOCIATION OF RETAINED COUNCIL HOUSING ,"2,925.00",Regulatory & Support Services,Subscriptions,27 Sep 2023,2324/07,SME,Y,50%
0000373649,AUSTWICK BERRY PROPERTY & ESTATE MAN LTD,"1,394.54",Homeless Prevention Fund,Misc Supplies & Services Costs,08 Nov 2023,2324/08,SME,N,
0000373185,BACTON PARISH COUNCIL,677.30,Street & Major Road Cleansing,Contributions to other Bodies,26 Oct 2023,2324/07,SME,N,
0000423521,BACTON PARISH COUNCIL,"86,688.55",Current Liabilities,Parish Payments Available,06 Oct 2023,2324/07,SME,N,
0000423522,BADWELL ASH PARISH COUNCIL,"14,696.25",Current Liabilities,Parish Payments Available,06 Oct 2023,2324/07,SME,N,
0000374452,BADWELL ASH VILLAGE HALL,"2,502.40",S106 Open Spaces Expenditure,Grants,07 Dec 2023,2324/09,SME,N,
0000372231,BAILEYS HEATING COMPANY LTD,"2,411.82",Central Heating,Repairs,25 Sep 2023,2324/07,SME,N,
0000372457,BAILEYS HEATING COMPANY LTD,525.00,New Bld/acquisition,BMBS Repairs Work,30 Sep 2023,2324/07,SME,N,
0000372681,BAILEYS HEATING COMPANY LTD,975.00,New Bld/acquisition,BMBS Repairs Work,10 Oct 2023,2324/07,SME,N,
0000372683,BAILEYS HEATING COMPANY LTD,750.00,New Bld/acquisition,BMBS Repairs Work,04 Oct 2023,2324/07,SME,N,
0000372698,BAILEYS HEATING COMPANY LTD,950.00,Planned Maint - Heating,Property Servicing,10 Oct 2023,2324/07,SME,N,
0000372705,BAILEYS HEATING COMPANY LTD,"2,303.12",Central Heating,Major Contracts,10 Oct 2023,2324/07,SME,N,
0000372707,BAILEYS HEATING COMPANY LTD,"1,882.22",Central Heating,Major Contracts,10 Oct 2023,2324/07,SME,N,
0000372735,BAILEYS HEATING COMPANY LTD,"2,264.51",Central Heating,Major Contracts,31 Aug 2023,2324/07,SME,N,
0000372790,BAILEYS HEATING COMPANY LTD,"5,074.54",Central Heating,Major Contracts,12 Oct 2023,2324/07,SME,N,
0000372791,BAILEYS HEATING COMPANY LTD,"2,264.51",Central Heating,Major Contracts,12 Oct 2023,2324/07,SME,N,
0000373040,BAILEYS HEATING COMPANY LTD,"11,220.00",Central Heating,Repairs,19 Oct 2023,2324/07,SME,N,
0000373180,BAILEYS HEATING COMPANY LTD,"42,109.84",Planned Maint - Heating,Repairs,30 Sep 2023,2324/07,SME,N,
0000373275,BAILEYS HEATING COMPANY LTD,"10,620.00",Central Heating,Repairs,26 Oct 2023,2324/07,SME,N,
0000373149,BAILEYS HEATING COMPANY LTD,"2,264.51",Central Heating,Major Contracts,24 Oct 2023,2324/08,SME,N,
0000373392,BAILEYS HEATING COMPANY LTD,"55,688.75",Planned Maint - Heating,Repairs,31 Oct 2023,2324/08,SME,N,
0000373671,BAILEYS HEATING COMPANY LTD,"11,720.00",Central Heating,Major Contracts,06 Nov 2023,2324/08,SME,N,
0000373742,BAILEYS HEATING COMPANY LTD,"1,933.18",Planned Maint - Heating,Property Servicing,31 Oct 2023,2324/08,SME,N,
0000373743,BAILEYS HEATING COMPANY LTD,"2,264.51",Central Heating,Major Contracts,13 Nov 2023,2324/08,SME,N,
0000373744,BAILEYS HEATING COMPANY LTD,"2,264.51",Central Heating,Major Contracts,13 Nov 2023,2324/08,SME,N,
0000373745,BAILEYS HEATING COMPANY LTD,"1,882.22",Central Heating,Major Contracts,13 Nov 2023,2324/08,SME,N,
0000373755,BAILEYS HEATING COMPANY LTD,"10,400.00",Central Heating,Major Contracts,14 Nov 2023,2324/08,SME,N,
0000373772,BAILEYS HEATING COMPANY LTD,"1,240.26",Voids Maintenance,Repairs,14 Nov 2023,2324/08,SME,N,
0000373775,BAILEYS HEATING COMPANY LTD,"2,264.51",Central Heating,Major Contracts,14 Nov 2023,2324/08,SME,N,
0000373789,BAILEYS HEATING COMPANY LTD,"2,264.51",Central Heating,Improvements,14 Nov 2023,2324/08,SME,N,
0000373790,BAILEYS HEATING COMPANY LTD,"2,264.51",Central Heating,Improvements,14 Nov 2023,2324/08,SME,N,
0000373983,BAILEYS HEATING COMPANY LTD,"2,264.51",Central Heating,Major Contracts,22 Nov 2023,2324/08,SME,N,
0000373985,BAILEYS HEATING COMPANY LTD,"3,155.99",Central Heating,Major Contracts,21 Nov 2023,2324/08,SME,N,
0000374066,BAILEYS HEATING COMPANY LTD,712.99,Planned Maint - Heating,Property Servicing,23 Nov 2023,2324/08,SME,N,
0000374122,BAILEYS HEATING COMPANY LTD,"1,668.93",Central Heating,Major Contracts,21 Nov 2023,2324/08,SME,N,
0000423678,BAILEYS HEATING COMPANY LTD,583.35,Planned Maint - Heating,Property Servicing,23 Nov 2023,2324/08,SME,N,
0000423678,BAILEYS HEATING COMPANY LTD,344.88,Voids Maintenance,Repairs,23 Nov 2023,2324/08,SME,N,
0000374051,BAILEYS HEATING COMPANY LTD,"1,294.99",Planned Maint - Heating,Property Servicing,23 Nov 2023,2324/09,SME,N,
0000374091,BAILEYS HEATING COMPANY LTD,"2,637.24",Planned Maint - Heating,Property Servicing,24 Nov 2023,2324/09,SME,N,
0000374263,BAILEYS HEATING COMPANY LTD,"55,688.75",Planned Maint - Heating,Repairs,30 Nov 2023,2324/09,SME,N,
0000374285,BAILEYS HEATING COMPANY LTD,"4,300.62",Central Heating,Major Contracts,04 Dec 2023,2324/09,SME,N,
0000374400,BAILEYS HEATING COMPANY LTD,561.20,Planned Maint - Heating,Property Servicing,06 Dec 2023,2324/09,SME,N,
0000374492,BAILEYS HEATING COMPANY LTD,"2,264.51",Central Heating,Major Contracts,11 Dec 2023,2324/09,SME,N,
0000374506,BAILEYS HEATING COMPANY LTD,"3,449.22",Central Heating,Major Contracts,11 Dec 2023,2324/09,SME,N,
0000374534,BAILEYS HEATING COMPANY LTD,974.90,Planned Maint - Heating,Property Servicing,12 Dec 2023,2324/09,SME,N,
0000374549,BAILEYS HEATING COMPANY LTD,"1,882.22",Central Heating,Major Contracts,13 Nov 2023,2324/09,SME,N,
0000372372,BAREFOOT & GILLES LTD,900.00,Cross Street Tech Hub,Prof & Consultancy Fees,29 Sep 2023,2324/07,SME,N,
0000372429,BAREFOOT & GILLES LTD,850.00,Cross Street Tech Hub,Prof & Consultancy Fees,02 Oct 2023,2324/07,SME,N,
0000373361,BAREFOOT & GILLES LTD,950.00,Cross Street Tech Hub,Prof & Consultancy Fees,31 Oct 2023,2324/08,SME,N,
0000373186,BARHAM PARISH COUNCIL,677.30,Street & Major Road Cleansing,Contributions to other Bodies,26 Oct 2023,2324/07,SME,N,
0000423523,BARHAM PARISH COUNCIL,"105,626.92",Current Liabilities,Parish Payments Available,06 Oct 2023,2324/07,SME,N,
0000374524,BARHAM PARISH COUNCIL,"1,500.00",Grants & Contrbns,Contributions & Donations,13 Dec 2023,2324/09,SME,N,
0000374244,BATTISFORD VILLAGE HALL MGT COMMITTEE,"2,000.00",Grants & Contrbns,Contributions & Donations,01 Dec 2023,2324/09,SME,N,
0000373210,BAYLHAM PARISH COUNCIL,"15,523.05",Current Liabilities,Parish Meetings Available,24 Oct 2023,2324/08,SME,N,
0000372276,BELL DECORATING GROUP LTD,"6,852.70",Planned Maint - Ext Painting,External Painting,26 Sep 2023,2324/07,LGE,N,
0000373576,BELL DECORATING GROUP LTD,"4,130.45",Planned Maint - Ext Painting,External Painting,27 Oct 2023,2324/08,LGE,N,
0000372715,BELLWAY HOMES LIMITED (ESSEX DIVISION),"76,845.03",Loraine Way Bramford  S106,Purchase of Land & Buildings,29 Sep 2023,2324/07,LGE,N,
0000373774,BELLWAY HOMES LIMITED (ESSEX DIVISION),"353,610.47",Loraine Way Bramford  S106,Purchase of Land & Buildings,13 Nov 2023,2324/08,LGE,N,
0000374499,BELLWAY HOMES LIMITED (ESSEX DIVISION),"139,871.89",Loraine Way Bramford  S106,Purchase of Land & Buildings,11 Dec 2023,2324/09,LGE,N,
0000373172,BEN BURGESS GARDEN EQUIPMENT,"1,500.00",Open Spaces,"Equipment, Tools & Materials",31 Oct 2023,2324/07,SME,N,
0000373539,BEN BURGESS GARDEN EQUIPMENT,"1,500.00",Open Spaces,"Equipment, Tools & Materials",27 Sep 2023,2324/08,SME,Y,50%
0000373540,BEN BURGESS GARDEN EQUIPMENT,"2,311.66",Open Spaces,"Equipment, Tools & Materials",30 Sep 2023,2324/08,SME,N,
0000374090,BEN BURGESS GARDEN EQUIPMENT,"1,500.00",Open Spaces,"Equipment, Tools & Materials",24 Nov 2023,2324/09,SME,N,
0000372352,BENICIA PROPERTIES LTD,685.00,Guaranteed Rent Scheme,Rent Payable,02 Oct 2023,2324/07,SME,N,
0000372640,BENICIA PROPERTIES LTD,575.00,Guaranteed Rent Scheme,Rent Payable,09 Oct 2023,2324/07,SME,N,
0000373310,BENICIA PROPERTIES LTD,685.00,Guaranteed Rent Scheme,Rent Payable,30 Oct 2023,2324/07,SME,N,
0000373770,BENICIA PROPERTIES LTD,600.00,Guaranteed Rent Scheme,Rent Payable,14 Nov 2023,2324/08,SME,N,
0000374087,BENICIA PROPERTIES LTD,685.00,Guaranteed Rent Scheme,Rent Payable,24 Nov 2023,2324/08,SME,N,
0000374498,BENICIA PROPERTIES LTD,600.00,Guaranteed Rent Scheme,Rent Payable,11 Dec 2023,2324/09,SME,N,
0000423524,BEYTON PARISH COUNCIL,"4,831.58",Current Liabilities,Parish Payments Available,06 Oct 2023,2324/07,SME,N,
0000373700,BEYTON PARISH COUNCIL,800.00,Grants & Contrbns,Contributions & Donations,09 Nov 2023,2324/08,SME,N,
0000374033,BINDER LTD,"28,442.53",Sewage Treatment Works,Contracted Services,21 Nov 2023,2324/08,SME,N,
0000374098,BINDER LTD,"1,248.73",Sewage Treatment Works,Contracted Services,22 Nov 2023,2324/09,SME,N,
0000374301,BINDER LTD,593.00,Sewage Treatment Works,Contracted Services,30 Nov 2023,2324/09,SME,N,
0000372449,BIRKETTS LLP,"3,518.00",Organisational Devt,Legal Expenses,27 Jun 2023,2324/07,LGE,Y,50%
0000372450,BIRKETTS LLP,966.00,Organisational Devt,Specialist Legal Expenses,22 May 2023,2324/07,LGE,Y,50%
0000373044,BIRKETTS LLP,"4,575.00",Devt Management - Appeals,Legal ex - Crt challenge relat,09 Oct 2023,2324/07,LGE,N,
0000373375,BIRKETTS LLP,630.00,Planning Enforcement,Legal Expenses,30 Oct 2023,2324/08,LGE,N,
0000374243,BIRKETTS LLP,"1,128.00",Organisational Devt,Legal Expenses,31 Oct 2023,2324/08,LGE,Y,50%
0000374771,BIRKETTS LLP,"3,000.00",Devt Management - Appeals,Legal ex - Crt challenge relat,11 Dec 2023,2324/09,LGE,N,
0000374054,BLUESKY CHAIR DESIGNS LIMITED,"4,060.00",Sheltered Accommodation,Furniture,22 Nov 2023,2324/09,SME,N,
0000373056,BOSTON SEEDS LTD,"1,587.26",Open Spaces,Horticultural Purchases,20 Oct 2023,2324/08,SME,Y,50%
0000423525,BOTESDALE PARISH COUNCIL,"40,172.84",Current Liabilities,Parish Payments Available,06 Oct 2023,2324/07,SME,N,
0000372487,BOWER FULLER,"7,913.70",Sheltered Units-Gen.Imp,Major Contracts,29 Sep 2023,2324/07,SME,N,
0000372969,BOWER FULLER,"3,942.00",Tenancy Services,Fire Prevention,18 Oct 2023,2324/07,SME,N,
0000372970,BOWER FULLER,"10,677.91",Sheltered Accommodation,Fire Prevention,18 Oct 2023,2324/07,SME,N,
0000374321,BOWER FULLER,"1,926.60",Creeting Rd Depot,Repairs,30 Nov 2023,2324/09,SME,N,
0000374322,BOWER FULLER,"3,152.50",Tenancy Services,Fire Prevention,30 Nov 2023,2324/09,SME,N,
0000374324,BOWER FULLER,"1,670.38",Building Services,Fire Prevention,30 Nov 2023,2324/09,SME,N,
0000374325,BOWER FULLER,845.50,Cedars Park,Fire Prevention,30 Nov 2023,2324/09,SME,N,
0000374328,BOWER FULLER,"3,043.10",Open Spaces,Horticultural Purchases,30 Nov 2023,2324/09,SME,N,
0000374330,BOWER FULLER,"1,266.51",Cedars Park,Repairs,30 Nov 2023,2324/09,SME,N,
0000374752,BOWER FULLER,754.20,Domestic Waste,Refuse Contract,19 Dec 2023,2324/09,SME,N,
0000374343,BRAMFORD LORAINE VICTORY HALL,"1,013.00",Grants & Contrbns,Contributions & Donations,04 Dec 2023,2324/09,SME,N,
0000423526,BRAMFORD PARISH COUNCIL,"141,516.41",Current Liabilities,Parish Payments Available,06 Oct 2023,2324/07,SME,N,
0000373599,BRAMFORD PARISH COUNCIL,"150,000.00",S106 Open Spaces Expenditure,Grants,07 Nov 2023,2324/08,SME,N,
0000373884,BRITISH GAS TRADING LTD,369.90,Voids Maintenance,Gas,13 Nov 2023,2324/08,LGE,N,
0000373884,BRITISH GAS TRADING LTD,"1,633.78",Voids Maintenance,Electricity,13 Nov 2023,2324/08,LGE,N,
0000374094,BRUNDISH PARISH ROOMS,"3,000.00",Grants & Contrbns,Contributions & Donations,23 Nov 2023,2324/09,SME,N,
0000372680,BUCHER MUNICIPAL LTD,509.71,Street & Major Road Cleansing,Plant & Vehicle - Other costs,09 Jan 2023,2324/07,LGE,N,
0000373004,BUCHER MUNICIPAL LTD,"1,348.50",Open Spaces,Plant & Vehicle - Other costs,18 Oct 2023,2324/07,LGE,Y,50%
0000373547,BUCHER MUNICIPAL LTD,"1,688.50",Street & Major Road Cleansing,Plant & Vehicle - Other costs,26 Oct 2023,2324/08,LGE,Y,50%
0000373906,BUCHER MUNICIPAL LTD,509.71,Street & Major Road Cleansing,Plant & Vehicle - Other costs,10 Nov 2023,2324/08,LGE,N,
0000374000,BUCHER MUNICIPAL LTD,"-1,348.50",Open Spaces,Plant & Vehicle - Other costs,15 Nov 2023,2324/08,LGE,Y,50%
0000374313,BUCHER MUNICIPAL LTD,509.71,Street & Major Road Cleansing,Plant & Vehicle - Other costs,04 Dec 2023,2324/09,LGE,N,
0000372609,BUTTON & TURNER LTD,795.73,Open Spaces,Plant & Vehicle - Other costs,26 Sep 2023,2324/07,SME,N,
0000373927,BUXHALL PARISH COUNCIL,"1,500.00",Grants & Contrbns,Contributions & Donations,16 Nov 2023,2324/08,SME,N,
0000000284,CABOODLE TECHNOLGY LIMITED,-127.00,Organisational Devt,Misc Employee Costs,29 Nov 2023,2324/08,SME,N,
0000372235,CAMBRIDGE NETWORK LIMITED,742.50,Organisational Devt,Training,15 Sep 2023,2324/08,SME,Y,50%
0000374747,CAMSTAR HERBS LTD,"2,500.00",Business Innovation Grants,Grants,19 Dec 2023,2324/09,SME,N,
0000374815,CARTER JONAS LLP,"6,900.00",MSM Feasibility & Match Fundin,Prof & Consultancy Fees,20 Dec 2023,2324/09,LGE,N,
0000372792,CEDARS HOTEL LTD,"83,812.00",Homelessness Private Sector,B&B Costs,10 Oct 2023,2324/07,SME,Y,50%
0000374652,CEDARS HOTEL LTD,"8,892.00",Homelessness Private Sector,B&B Costs,13 Dec 2023,2324/09,SME,Y,50%
0000001071,CENTRAL TYRE LTD,-280.60,A14 Cleansing,Plant & Vehicle - Other costs,01 Nov 2023,2324/08,SME,N,
0000372443,CENTRE FOR PUBLIC SCRUTINY,"2,268.30",Cost of Democracy,Training,21 Aug 2023,2324/07,SME,Y,50%
0000372521,CHAPPLE SIGNS LTD,"1,344.78",RHSSF,"Equipment, Tools & Materials",26 Sep 2023,2324/07,SME,N,
0000372533,CHAPPLE SIGNS LTD,761.22,Open Spaces,Plant & Vehicle - Other costs,05 Oct 2023,2324/07,SME,N,
0000373391,CHAPPLE SIGNS LTD,990.00,RHSSF,"Equipment, Tools & Materials",01 Nov 2023,2324/08,SME,N,
0000374463,CHAPPLE SIGNS LTD,674.95,C Parks General,Repairs,07 Dec 2023,2324/09,SME,N,
0000374821,CHARTERED INSTITUTE OF HOUSING,"3,275.00",Organisational Devt,Training,20 Dec 2023,2324/09,LGE,Y,50%
0000374156,CHILTON FIELDS SPORTS CLUB,"6,789.00",Community Fund Projects-Grants,Grants,28 Nov 2023,2324/08,SME,N,
0000372573,CHIPSIDE LTD,"1,062.75",C Parks General,Contracted Services,30 Sep 2023,2324/07,SME,N,
0000372892,CHIPSIDE LTD,"1,440.00",C Parks General,Contracted Services,30 Sep 2023,2324/08,SME,N,
0000373746,CHIPSIDE LTD,"1,062.67",C Parks General,Contracted Services,31 Oct 2023,2324/08,SME,N,
0000374382,CHIPSIDE LTD,"1,124.92",C Parks General,Contracted Services,30 Nov 2023,2324/09,SME,N,
0000374727,CIPFA BUSINESS LTD,"1,321.30",HRA Accountancy,Training,01 Aug 2023,2324/09,LGE,Y,50%
0000374218,CIRRUS RESEARCH PLC,"9,032.00",Covid-19 Test and Trace,Misc Supplies & Services Costs,30 Nov 2023,2324/08,SME,Y,50%
0000374191,CIVICA ELECTION SERVICES,"2,279.30",Electoral Registration,Returning Officer Fees,07 Nov 2023,2324/08,LGE,N,
0000374672,CIVICA ELECTION SERVICES,"8,195.25",Electoral Registration,Returning Officer Fees,19 Oct 2023,2324/09,LGE,N,
0000374673,CIVICA ELECTION SERVICES,"13,806.87",Electoral Registration,Returning Officer Fees,19 Oct 2023,2324/09,LGE,N,
0000374675,CIVICA ELECTION SERVICES,"5,212.38",Electoral Registration,Returning Officer Fees,19 Oct 2023,2324/09,LGE,N,
0000374075,CIVICA UK LIMITED,"15,250.00",Governance,Desktop Software,23 Nov 2023,2324/08,LGE,Y,50%
0000374173,CIVICA UK LIMITED,"1,929.43",Governance,Desktop Software,29 Nov 2023,2324/08,LGE,Y,50%
0000373343,CLARKE FENCING LTD,512.00,Open Spaces,"Equipment, Tools & Materials",25 Oct 2023,2324/08,SME,N,
0000374246,CLARKE FENCING LTD,799.81,Cross Street Tech Hub,Prof & Consultancy Fees,01 Dec 2023,2324/09,SME,N,
0000374465,CLARKE FENCING LTD,564.67,Open Spaces,"Equipment, Tools & Materials",08 Dec 2023,2324/09,SME,N,
0000374586,CLARKE FENCING LTD,"2,815.00",Open Spaces,"Equipment, Tools & Materials",14 Dec 2023,2324/09,SME,N,
0000372362,CLARKES OF WALSHAM LTD,"1,182.81",Building Services,Repairs,29 Sep 2023,2324/07,SME,N,
0000373189,CLAYDON & WHITTON PARISH COUNCIL,"1,354.60",Street & Major Road Cleansing,Contributions to other Bodies,26 Oct 2023,2324/07,SME,N,
0000423527,CLAYDON & WHITTON PARISH COUNCIL,"60,310.53",Current Liabilities,Parish Payments Available,06 Oct 2023,2324/07,SME,N,
0000375002,CLAYDON FOOTBALL CLUB,"23,010.00",S106 Open Spaces Expenditure,Grants,27 Dec 2023,2324/09,SME,N,
0000374633,CLIFF GARNHAM THATCHER,"2,730.00",Renovation/Home Repair Grants,Grants,15 Dec 2023,2324/09,SME,N,
0000372550,CLOSOMAT LTD,"4,397.00",Mand Disabled Facilities Grant,Grants,04 Oct 2023,2324/07,SME,N,
0000372344,CODDENHAM COMMUNITY SHOP LTD,750.00,Grants & Contrbns,Contributions & Donations,29 Sep 2023,2324/07,SME,N,
0000423528,CODDENHAM PARISH COUNCIL,"7,271.62",Current Liabilities,Parish Payments Available,06 Oct 2023,2324/07,SME,N,
0000373184,COLNESETT LTD,"44,982.95",Cross Street Tech Hub,Prof & Consultancy Fees,03 Oct 2023,2324/08,SME,N,
0000374123,COLNESETT LTD,"26,257.57",Cross Street Tech Hub,Prof & Consultancy Fees,03 Nov 2023,2324/08,SME,N,
0000423529,COMBS PARISH COUNCIL,"17,030.24",Current Liabilities,Parish Payments Available,06 Oct 2023,2324/07,SME,N,
0000373549,COMMAND PEST CONTROL LTD,"2,500.00",Tenancy Services,Misc Premises Costs,28 Oct 2023,2324/08,SME,N,
0000374963,COMMUNITIES TOGETHER EAST ANGLIA,"2,000.00",VCSE Resilience,"Equipment, Tools & Materials",22 Dec 2023,2324/09,SME,N,
0000373249,COMMUNITY ACTION SUFFOLK,"1,400.00",Community Safety-General,Contributions & Donations,26 Sep 2023,2324/07,SME,N,
0000373270,COMMUNITY ACTION SUFFOLK,597.20,Community Safety-General,Contributions & Donations,26 Oct 2023,2324/07,SME,Y,50%
0000423650,COMPUTERSHARE ,647.00,Current Assets,ChildCare Vouchers-Control,30 Oct 2023,2324/07,LGE,N,
0000423682,COMPUTERSHARE ,627.00,Current Assets,ChildCare Vouchers-Control,27 Nov 2023,2324/08,LGE,N,
0000373278,COOKS BLIND AND SHUTTERS LTD,"1,096.00",Creeting Rd Depot,Repairs,20 Sep 2023,2324/07,SME,Y,50%
0000372292,CORNERSTONE BARRISTERS,"3,650.00",Devt Management - Appeals,Legal ex - Appeal related,26 Sep 2023,2324/07,SME,N,
0000372526,COUNTRYSTYLE RECYCLING LTD,"4,762.31",Bring Sites,Contracted Services,30 Sep 2023,2324/07,SME,N,
0000373552,COUNTRYSTYLE RECYCLING LTD,"4,296.05",Bring Sites,Contracted Services,31 Oct 2023,2324/08,SME,N,
0000374355,COUNTRYSTYLE RECYCLING LTD,"4,254.21",Bring Sites,Contracted Services,30 Nov 2023,2324/09,SME,N,
0000367574,CREATIVE TOURIST LTD,"11,352.00",Tourism General,Prof & Consultancy Fees,31 Mar 2023,2324/07,SME,Y,50%
0000423530,CREETING ST MARY PARISH COUNCIL,"17,224.55",Current Liabilities,Parish Payments Available,06 Oct 2023,2324/07,SME,N,
0000374193,CRYSTAL ROSE SKIN CLINIC LTD,"10,000.00",Rural Prosperity Fund,Grants,29 Nov 2023,2324/08,SME,N,
0000374745,CULLIGAN (UK) LTD,920.02,Creeting Rd Depot,Contracted Services,15 Dec 2023,2324/09,LGE,N,
0000374592,CYCLESCHEME LTD,"2,082.50",Current Assets,Cycling Scheme,14 Dec 2023,2324/09,SME,N,
0000372120,D W ADAMS LTD,"6,145.00",Council House Adaptions,Improvements,20 Sep 2023,2324/07,SME,N,
0000372156,D W ADAMS LTD,"6,145.00",Council House Adaptions,Improvements,21 Sep 2023,2324/07,SME,N,
0000372216,D W ADAMS LTD,"2,139.00",Council House Adaptions,Improvements,25 Sep 2023,2324/07,SME,N,
0000372452,D W ADAMS LTD,"2,239.00",Building Services,Repairs,03 Oct 2023,2324/07,SME,N,
0000372578,D W ADAMS LTD,"5,237.00",Council House Adaptions,Improvements,06 Oct 2023,2324/07,SME,N,
0000373019,D W ADAMS LTD,"5,370.00",Council House Adaptions,Improvements,19 Oct 2023,2324/07,SME,N,
0000373079,D W ADAMS LTD,"2,231.00",Building Services,Repairs,20 Oct 2023,2324/08,SME,N,
0000373287,D W ADAMS LTD,"6,289.00",Council House Adaptions,Improvements,27 Oct 2023,2324/08,SME,N,
0000373900,D W ADAMS LTD,"5,948.00",Building Services,Repairs,17 Nov 2023,2324/09,SME,N,
0000374096,D W ADAMS LTD,"4,938.00",Council House Adaptions,Improvements,24 Nov 2023,2324/09,SME,N,
0000374043,DDS (INTERNATIONAL) LTD,"4,639.98",Sheltered Accommodation,Fire Prevention,14 Nov 2023,2324/09,SME,N,
0000373347,DEBENHAM BOWLS CLUB,"2,167.36",Grants & Contrbns,Contributions & Donations,30 Oct 2023,2324/07,SME,N,
0000373190,DEBENHAM PARISH COUNCIL,"2,404.42",Street & Major Road Cleansing,Contributions to other Bodies,26 Oct 2023,2324/07,SME,N,
0000423531,DEBENHAM PARISH COUNCIL,"31,392.41",Current Liabilities,Parish Payments Available,06 Oct 2023,2324/07,SME,N,
0000374970,DEBENHAM PARISH COUNCIL,"2,000.00",VCSE Resilience,"Equipment, Tools & Materials",22 Dec 2023,2324/09,SME,N,
0000423566,DEBENHAM VILLAGE HALL & PLAYING FIELD TR,654.43,Bring Sites,Contributions & Donations,11 Oct 2023,2324/07,SME,N,
0000374052,DEF SOFTWARE LTD,"2,825.00",Devt Policy & Local Plans,Software Licnse (Line of Bus) ,17 Nov 2023,2324/08,SME,Y,50%
0000372477,DEMOCRACY COUNTS LTD,"2,500.00",Electoral Registration,Returning Officer Fees,30 Apr 2023,2324/07,SME,N,
0000373348,DEMOCRACY COUNTS LTD,"1,178.30",Electoral Registration,Returning Officer Fees,30 Sep 2023,2324/08,SME,N,
0000374192,DEMOCRACY COUNTS LTD,"2,664.67",Electoral Registration,Returning Officer Fees,31 Aug 2023,2324/08,SME,N,
0000372781,DESTINATION RESEARCH  LTD,"1,900.00",Tourism General,Prof & Consultancy Fees,12 Oct 2023,2324/07,SME,Y,50%
0000374629,DG ACCESSIBLE DESIGNS,"7,503.60",Mand Disabled Facilities Grant,Grants,13 Dec 2023,2324/09,SME,N,
0000372400,DGL QUALITY MANAGEMENT LTD,"1,092.00",Stowmarket Middle School,Prof & Consultancy Fees,30 Sep 2023,2324/07,SME,N,
0000373382,DGL QUALITY MANAGEMENT LTD,"1,092.00",Stowmarket Middle School,Prof & Consultancy Fees,31 Oct 2023,2324/08,SME,N,
0000374401,DGL QUALITY MANAGEMENT LTD,"1,092.00",Stowmarket Middle School,Prof & Consultancy Fees,30 Nov 2023,2324/09,SME,N,
0000373796,DIVERSITY JOBS GROUP LTD,"1,750.00",Organisational Devt,Recruitment,26 Oct 2023,2324/08,SME,Y,50%
0000423532,DRINKSTONE PARISH COUNCIL,"11,782.08",Current Liabilities,Parish Payments Available,06 Oct 2023,2324/07,SME,N,
0000373634,DRISCOLL KINGSTON SOLICITORS,"2,000.00",Building Services,Payments to Tenants,08 Nov 2023,2324/08,SME,N,
0000374282,DUDLEY SMITH PARTNERSHIP LTD,600.00,Cross Street Tech Hub,Prof & Consultancy Fees,30 Nov 2023,2324/09,SME,N,
0000423562,E.ON NEXT,-11.56,HRA Strategic Property,Electricity,20 Sep 2023,2324/07,LGE,N,
0000423562,E.ON NEXT,-455.12,HRA Strategic Property,Gas,20 Sep 2023,2324/07,LGE,N,
0000423563,E.ON NEXT,-44.00,HRA Strategic Property,Electricity,20 Sep 2023,2324/07,LGE,N,
0000423563,E.ON NEXT,-334.19,HRA Strategic Property,Gas,20 Sep 2023,2324/07,LGE,N,
0000423657,E.ON NEXT,-140.26,HRA Strategic Property,Electricity,04 Oct 2023,2324/08,LGE,N,
0000423657,E.ON NEXT,-140.27,HRA Strategic Property,Gas,04 Oct 2023,2324/08,LGE,N,
0000423659,E.ON NEXT,-507.12,HRA Strategic Property,Gas,27 Oct 2023,2324/08,LGE,N,
0000423660,E.ON NEXT,-364.45,HRA Strategic Property,Gas,25 Oct 2023,2324/08,LGE,N,
0000374937,E.ON NEXT,-25.09,Other HRA Temp Accommodation,Electricity,17 Nov 2023,2324/09,LGE,N,
0000423533,EARL STONHAM PARISH COUNCIL,"1,791.64",Current Liabilities,Parish Payments Available,06 Oct 2023,2324/07,SME,N,
0000372340,EAST ANGLIA CLEANING SERVICES LTD,"1,604.54",Jnt Waste Contract,General Cleaning,28 Sep 2023,2324/07,SME,Y,50%
0000373326,EAST ANGLIA CLEANING SERVICES LTD,"1,604.54",Jnt Waste Contract,General Cleaning,30 Oct 2023,2324/07,SME,Y,50%
0000374125,EAST ANGLIA CLEANING SERVICES LTD,"1,604.54",Jnt Waste Contract,General Cleaning,27 Nov 2023,2324/08,SME,Y,50%
0000374818,EAST ANGLIA CLEANING SERVICES LTD,"1,604.54",Jnt Waste Contract,General Cleaning,21 Dec 2023,2324/09,SME,Y,50%
0000423636,EAST ANGLIAN AIR AMBULANCE,"1,319.54",Bring Sites,Contributions & Donations,11 Oct 2023,2324/07,SME,N,
0000374352,EAST OF ENGLAND CO-OPERATIVE SOCIETY LTD,"1,413.00",Publice Health Funerals,Contracted Services,07 Sep 2023,2324/09,LGE,N,
0000372418,EAST SUFFOLK COUNCIL,"12,967.88",Shared Prosperity Fund,Prof & Consultancy Fees,02 Oct 2023,2324/07,LGE,N,
0000372838,EAST SUFFOLK COUNCIL,"4,001.67",Bldg Regs Chargeable Serv,Prof & Consultancy Fees,27 Apr 2023,2324/07,LGE,N,
0000373901,EAST SUFFOLK COUNCIL,"12,967.88",Shared Prosperity Fund,Prof & Consultancy Fees,16 Nov 2023,2324/09,LGE,N,
0000374150,EASTEC UK LTD,750.00,Open Spaces,Training,27 Nov 2023,2324/08,SME,N,
0000372857,ECOLYTIK LTD,"1,006.00",Devt Management - Apps,Environmental  Consultancy,13 Oct 2023,2324/07,SME,N,
0000373739,ECOLYTIK LTD,953.00,Devt Management - Apps,Environmental  Consultancy,13 Nov 2023,2324/08,SME,N,
0000374773,ECOLYTIK LTD,697.00,Devt Management - Apps,Environmental  Consultancy,19 Dec 2023,2324/09,SME,N,
0000423646,EDF ENERGY,-406.99,"11 Market Place, Stowmarket",Electricity,15 Oct 2023,2324/07,LGE,N,
0000423646,EDF ENERGY,"1,779.60",C Parks General,Electricity,15 Oct 2023,2324/07,LGE,N,
0000423646,EDF ENERGY,"1,040.05",Climate Change and Sustainabil,Electricity,15 Oct 2023,2324/07,LGE,N,
0000423646,EDF ENERGY,894.22,Creeting Rd Depot,Electricity,15 Oct 2023,2324/07,LGE,Y,50%
0000423646,EDF ENERGY,139.29,Headquarters General,Electricity,15 Oct 2023,2324/07,LGE,N,
0000423646,EDF ENERGY,"58,705.87",Leisure Contract,Electricity,15 Oct 2023,2324/07,LGE,N,
0000423646,EDF ENERGY,132.93,Needham Market Middle School,Electricity,15 Oct 2023,2324/07,LGE,N,
0000423646,EDF ENERGY,273.14,Open Spaces,Electricity,15 Oct 2023,2324/07,LGE,N,
0000423646,EDF ENERGY,26.10,Other HRA Temp Accommodation,Electricity,15 Oct 2023,2324/07,LGE,N,
0000423646,EDF ENERGY,193.96,Public Conveniences,Electricity,15 Oct 2023,2324/07,LGE,N,
0000423646,EDF ENERGY,118.23,Pure Gym & Adjacent Building,Electricity,15 Oct 2023,2324/07,LGE,N,
0000423646,EDF ENERGY,4.27,Recycling Centre,Electricity,15 Oct 2023,2324/07,LGE,N,
0000423646,EDF ENERGY,672.52,Sewage Treatment Works,Electricity,15 Oct 2023,2324/07,LGE,N,
0000423646,EDF ENERGY,"12,043.36",Sheltered Accommodation,Electricity,15 Oct 2023,2324/07,LGE,N,
0000423646,EDF ENERGY,68.25,Tacon Close Eye TDP,Electricity,15 Oct 2023,2324/07,LGE,N,
0000423646,EDF ENERGY,422.05,Temporary Accommodation,Electricity,15 Oct 2023,2324/07,LGE,N,
0000423646,EDF ENERGY,"3,174.37",Tenancy Services,Electricity,15 Oct 2023,2324/07,LGE,N,
0000423646,EDF ENERGY,927.62,Wingfield Barns,Electricity,15 Oct 2023,2324/07,LGE,N,
0000423674,EDF ENERGY,769.27,C Parks General,Electricity,15 Nov 2023,2324/08,LGE,N,
0000423674,EDF ENERGY,"1,290.16",Climate Change and Sustainabil,Electricity,15 Nov 2023,2324/08,LGE,N,
0000423674,EDF ENERGY,"1,106.09",Creeting Rd Depot,Electricity,15 Nov 2023,2324/08,LGE,Y,50%
0000423674,EDF ENERGY,140.51,Headquarters General,Electricity,15 Nov 2023,2324/08,LGE,N,
0000423674,EDF ENERGY,"25,205.82",Leisure Contract,Electricity,15 Nov 2023,2324/08,LGE,N,
0000423674,EDF ENERGY,138.51,Needham Market Middle School,Electricity,15 Nov 2023,2324/08,LGE,N,
0000423674,EDF ENERGY,132.81,Open Spaces,Electricity,15 Nov 2023,2324/08,LGE,N,
0000423674,EDF ENERGY,28.21,Other HRA Temp Accommodation,Electricity,15 Nov 2023,2324/08,LGE,N,
0000423674,EDF ENERGY,209.09,Public Conveniences,Electricity,15 Nov 2023,2324/08,LGE,N,
0000423674,EDF ENERGY,152.52,Pure Gym & Adjacent Building,Electricity,15 Nov 2023,2324/08,LGE,N,
0000423674,EDF ENERGY,26.19,Recycling Centre,Electricity,15 Nov 2023,2324/08,LGE,N,
0000423674,EDF ENERGY,688.36,Sewage Treatment Works,Electricity,15 Nov 2023,2324/08,LGE,N,
0000423674,EDF ENERGY,"14,977.59",Sheltered Accommodation,Electricity,15 Nov 2023,2324/08,LGE,N,
0000423674,EDF ENERGY,135.16,Tacon Close Eye TDP,Electricity,15 Nov 2023,2324/08,LGE,N,
0000423674,EDF ENERGY,"1,161.50",Temporary Accommodation,Electricity,15 Nov 2023,2324/08,LGE,N,
0000423674,EDF ENERGY,"2,637.26",Tenancy Services,Electricity,15 Nov 2023,2324/08,LGE,N,
0000423674,EDF ENERGY,"1,782.23",Wingfield Barns,Electricity,15 Nov 2023,2324/08,LGE,N,
0000423694,EDF ENERGY,"-1,487.36","11 Market Place, Stowmarket",Electricity,15 Dec 2023,2324/09,LGE,N,
0000423694,EDF ENERGY,773.85,C Parks General,Electricity,15 Dec 2023,2324/09,LGE,N,
0000423694,EDF ENERGY,"1,244.32",Climate Change and Sustainabil,Electricity,15 Dec 2023,2324/09,LGE,N,
0000423694,EDF ENERGY,"1,107.90",Creeting Rd Depot,Electricity,15 Dec 2023,2324/09,LGE,Y,50%
0000423694,EDF ENERGY,155.73,Headquarters General,Electricity,15 Dec 2023,2324/09,LGE,N,
0000423694,EDF ENERGY,"-111,176.31",Leisure Contract,Electricity,15 Dec 2023,2324/09,LGE,N,
0000423694,EDF ENERGY,144.68,Needham Market Middle School,Electricity,15 Dec 2023,2324/09,LGE,N,
0000423694,EDF ENERGY,199.48,Open Spaces,Electricity,15 Dec 2023,2324/09,LGE,N,
0000423694,EDF ENERGY,29.10,Other HRA Temp Accommodation,Electricity,15 Dec 2023,2324/09,LGE,N,
0000423694,EDF ENERGY,312.47,Public Conveniences,Electricity,15 Dec 2023,2324/09,LGE,N,
0000423694,EDF ENERGY,193.10,Pure Gym & Adjacent Building,Electricity,15 Dec 2023,2324/09,LGE,N,
0000423694,EDF ENERGY,24.74,Recycling Centre,Electricity,15 Dec 2023,2324/09,LGE,N,
0000423694,EDF ENERGY,-151.37,Sewage Treatment Works,Electricity,15 Dec 2023,2324/09,LGE,N,
0000423694,EDF ENERGY,"19,842.57",Sheltered Accommodation,Electricity,15 Dec 2023,2324/09,LGE,N,
0000423694,EDF ENERGY,240.80,Tacon Close Eye TDP,Electricity,15 Dec 2023,2324/09,LGE,N,
0000423694,EDF ENERGY,651.63,Temporary Accommodation,Electricity,15 Dec 2023,2324/09,LGE,N,
0000423694,EDF ENERGY,"2,564.29",Tenancy Services,Electricity,15 Dec 2023,2324/09,LGE,N,
0000423694,EDF ENERGY,"2,103.65",Wingfield Barns,Electricity,15 Dec 2023,2324/09,LGE,N,
0000373037,EEZYBIKE LTD,"5,500.00",MSM Sustainable Travel,"Equipment, Tools & Materials",11 Oct 2023,2324/07,SME,N,
0000374469,EEZYBIKE LTD,"5,500.00",MSM Sustainable Travel,"Equipment, Tools & Materials",08 Dec 2023,2324/09,SME,N,
0000373691,EGBERT H.TAYLOR & CO.LTD.,"3,055.00",Bins,Bins,05 Apr 2023,2324/08,SME,N,
0000372561,ELMSWELL PARISH COUNCIL,"2,955.05",Current Assets,AR Refunds,03 Oct 2023,2324/07,SME,N,
0000423534,ELMSWELL PARISH COUNCIL,"67,529.10",Current Liabilities,Parish Payments Available,06 Oct 2023,2324/07,SME,N,
0000423635,ELMSWELL PARISH COUNCIL,747.56,Bring Sites,Contributions & Donations,11 Oct 2023,2324/07,SME,N,
0000374967,ELMSWELL PARISH COUNCIL,"1,500.00",VCSE Resilience,"Equipment, Tools & Materials",22 Dec 2023,2324/09,SME,N,
0000373957,EMERALD LAW,"6,107.52",Building Services,Payments to Tenants,21 Nov 2023,2324/08,SME,N,
0000423673,EMERALD LAW,"1,125.00",Building Services,Payments to Tenants,14 Nov 2023,2324/08,SME,N,
0000374332,EMERALD LAW,"6,015.00",Building Services,Council Tax Payable,05 Dec 2023,2324/09,SME,N,
0000374139,ENERGY INSTITUTE,"1,216.00",Climate Change and Sustainabil,Training,30 Oct 2023,2324/08,SME,Y,50%
0000372784,ENGLISH SECURITY,"4,992.68",Sheltered Accommodation,Fire Prevention,11 Oct 2023,2324/07,SME,N,
0000372910,ENGLISH SECURITY,"2,293.24",Sheltered Accommodation,Fire Prevention,13 Oct 2023,2324/07,SME,N,
0000373031,ENGLISH SECURITY,588.00,Sheltered Accommodation,Fire Prevention,19 Oct 2023,2324/07,SME,N,
0000372544,ENGLISH SECURITY,41.20,Building Services,Fire Prevention,05 Oct 2023,2324/08,SME,N,
0000372544,ENGLISH SECURITY,185.40,Creeting Rd Depot,Fire Prevention,05 Oct 2023,2324/08,SME,Y,50%
0000372544,ENGLISH SECURITY,150.45,Other HRA Temp Accommodation,Fire Prevention,05 Oct 2023,2324/08,SME,N,
0000372544,ENGLISH SECURITY,"2,084.10",Sheltered Accommodation,Fire Prevention,05 Oct 2023,2324/08,SME,N,
0000372544,ENGLISH SECURITY,398.75,Temporary Accommodation,Fire Prevention,05 Oct 2023,2324/08,SME,N,
0000372544,ENGLISH SECURITY,"2,431.90",Tenancy Services,Fire Prevention,05 Oct 2023,2324/08,SME,N,
0000372544,ENGLISH SECURITY,128.75,Wingfield Barns,Fire Prevention,05 Oct 2023,2324/08,SME,N,
0000372545,ENGLISH SECURITY,41.20,Building Services,Fire Prevention,05 Oct 2023,2324/08,SME,N,
0000372545,ENGLISH SECURITY,103.00,Creeting Rd Depot,Fire Prevention,05 Oct 2023,2324/08,SME,Y,50%
0000372545,ENGLISH SECURITY,227.70,Other HRA Temp Accommodation,Fire Prevention,05 Oct 2023,2324/08,SME,N,
0000372545,ENGLISH SECURITY,"2,465.25",Sheltered Accommodation,Fire Prevention,05 Oct 2023,2324/08,SME,N,
0000372545,ENGLISH SECURITY,326.65,Temporary Accommodation,Fire Prevention,05 Oct 2023,2324/08,SME,N,
0000372545,ENGLISH SECURITY,"2,591.55",Tenancy Services,Fire Prevention,05 Oct 2023,2324/08,SME,N,
0000372545,ENGLISH SECURITY,128.75,Wingfield Barns,Fire Prevention,05 Oct 2023,2324/08,SME,N,
0000373803,ENGLISH SECURITY,"3,999.80",Council House Adaptions,Improvements,14 Nov 2023,2324/08,SME,N,
0000374230,ENGLISH SECURITY,"28,345.97",Smoke Alarms (Bbgh Standard),Repairs,30 Nov 2023,2324/09,SME,N,
0000373632,ENSO GREEN HOLDINGS LTD,"107,500.00",Devt Management - Appeals,Costs allowed to appellant,07 Nov 2023,2324/08,SME,N,
0000374354,ENVIRONMENTAL HEALTH RESOURCE CENTRE LTD,"8,572.15",Environmental Protection,Agency Staff,05 Dec 2023,2324/09,SME,Y,50%
0000373600,ESSEX COUNTY COUNCIL,"12,035.00",Devt Management - Apps,Ecology Consultancy,06 Nov 2023,2324/08,LGE,N,
0000374079,ESSEX COUNTY COUNCIL,"4,492.00",Devt Management - Apps,Landscape Consultancy,21 Nov 2023,2324/08,LGE,N,
0000374080,ESSEX COUNTY COUNCIL,"2,496.00",Pre App Charging,Landscape Consultancy,21 Nov 2023,2324/08,LGE,N,
0000374081,ESSEX COUNTY COUNCIL,"2,684.00",Planning Performance Agreement,Landscape Consultancy,20 Nov 2023,2324/08,LGE,N,
0000374199,ESSEX COUNTY COUNCIL,792.00,Pre App Charging,Landscape Consultancy,29 Nov 2023,2324/08,LGE,N,
0000374200,ESSEX COUNTY COUNCIL,"8,496.00",Devt Management - Apps,Landscape Consultancy,29 Nov 2023,2324/08,LGE,N,
0000423628,EUSTACE BROKE LORAINE TRUST,535.84,Bring Sites,Contributions & Donations,11 Oct 2023,2324/07,SME,N,
0000373429,EVERYONE ACTIVE STOWMARKET,"6,011.00",Holiday Activity Fund,"Equipment, Tools & Materials",26 Oct 2023,2324/08,SME,N,
0000373530,EVERYONE ACTIVE STOWMARKET,"3,048.63",Community Wellbeing,Contributions & Donations,26 Oct 2023,2324/08,SME,N,
0000373986,EVERYONE ACTIVE STOWMARKET,"5,393.50",Community Wellbeing,Contributions & Donations,26 Oct 2023,2324/08,SME,N,
0000373531,EVERYONE ACTIVE STOWMARKET,"3,013.63",Community Wellbeing,Contributions & Donations,21 Dec 2023,2324/09,SME,N,
0000373053,EYE & DISTRICT CRICKET CLUB,"4,790.68",S106 Open Spaces Expenditure,Grants,20 Oct 2023,2324/07,SME,N,
0000372678,EYE OPPORTUNITY GROUP,"1,770.00",Grants & Contrbns,Contributions & Donations,09 Oct 2023,2324/07,SME,N,
0000373191,EYE TOWN COUNCIL,"2,709.20",Street & Major Road Cleansing,Contributions to other Bodies,26 Oct 2023,2324/07,SME,N,
0000423535,EYE TOWN COUNCIL,750.00,Current Liabilities,Parish Payments Available,06 Oct 2023,2324/07,SME,N,
0000372926,FELGAINS CARE CENTRE,"5,941.00",Mand Disabled Facilities Grant,Grants,16 Oct 2023,2324/07,SME,N,
0000374238,FELGAINS CARE CENTRE,"6,729.00",Mand Disabled Facilities Grant,Grants,01 Dec 2023,2324/09,SME,N,
0000372407,FELLBRIDGE BUILDING SERVICES,"19,268.97",Major Imps,Repairs,02 Oct 2023,2324/07,SME,N,
0000372408,FELLBRIDGE BUILDING SERVICES,"17,346.00",Major Imps,Repairs,02 Oct 2023,2324/07,SME,N,
0000372409,FELLBRIDGE BUILDING SERVICES,"17,209.57",Major Imps,Repairs,02 Oct 2023,2324/07,SME,N,
0000372410,FELLBRIDGE BUILDING SERVICES,"2,965.32",Voids Maintenance,Repairs,02 Oct 2023,2324/07,SME,N,
0000373028,FELLBRIDGE BUILDING SERVICES,502.68,Voids Maintenance,Repairs,19 Oct 2023,2324/07,SME,N,
0000372234,FELLBRIDGE BUILDING SERVICES,"1,007.38",Building Services,Repairs,25 Sep 2023,2324/08,SME,N,
0000373027,FELLBRIDGE BUILDING SERVICES,"1,084.60",Building Services,Repairs,19 Oct 2023,2324/08,SME,N,
0000373330,FELLBRIDGE BUILDING SERVICES,"13,706.97",Major Imps,Repairs,30 Oct 2023,2324/08,SME,N,
0000373341,FELLBRIDGE BUILDING SERVICES,"13,664.84",Major Imps,Repairs,30 Oct 2023,2324/08,SME,N,
0000373679,FELLBRIDGE BUILDING SERVICES,"1,674.42",Voids Maintenance,Repairs,09 Nov 2023,2324/08,SME,N,
0000373685,FELLBRIDGE BUILDING SERVICES,"17,264.98",Major Imps,Repairs,09 Nov 2023,2324/08,SME,N,
0000373836,FELLBRIDGE BUILDING SERVICES,"3,927.84",Building Services,Repairs,16 Nov 2023,2324/08,SME,N,
0000374129,FELLBRIDGE BUILDING SERVICES,973.50,Insulation Imps,Repairs,27 Nov 2023,2324/09,SME,N,
0000374130,FELLBRIDGE BUILDING SERVICES,"15,817.62",Major Imps,Repairs,27 Nov 2023,2324/09,SME,N,
0000374133,FELLBRIDGE BUILDING SERVICES,"8,122.43",Kitchens/Bathrooms,Repairs,27 Nov 2023,2324/09,SME,N,
0000374133,FELLBRIDGE BUILDING SERVICES,"12,232.87",Voids Maintenance,Repairs,27 Nov 2023,2324/09,SME,N,
0000374347,FELLBRIDGE BUILDING SERVICES,"7,765.89",Voids Maintenance,Repairs,05 Dec 2023,2324/09,SME,N,
0000374398,FELLBRIDGE BUILDING SERVICES,"29,713.27",Major Imps,Repairs,06 Dec 2023,2324/09,SME,N,
0000374410,FELLBRIDGE BUILDING SERVICES,"2,016.00",Dampness,Repairs,07 Dec 2023,2324/09,SME,N,
0000374411,FELLBRIDGE BUILDING SERVICES,"2,287.20",Dampness,Repairs,07 Dec 2023,2324/09,SME,N,
0000373055,FMG CONSULTING LTD,"3,750.00",SHELF Project,Prof & Consultancy Fees,30 Sep 2023,2324/07,SME,N,
0000374427,FMG CONSULTING LTD,"3,750.00",SHELF Project,Prof & Consultancy Fees,31 Oct 2023,2324/09,SME,N,
0000374429,FMG CONSULTING LTD,"3,750.00",SHELF Project,Prof & Consultancy Fees,30 Nov 2023,2324/09,SME,N,
0000372359,FORE-MOST GARAGE DOORS LTD,"3,632.80",Building Services,Repairs,29 Sep 2023,2324/08,SME,N,
0000372359,FORE-MOST GARAGE DOORS LTD,73.00,Neighbourhood Services,Repairs,29 Sep 2023,2324/08,SME,N,
0000372359,FORE-MOST GARAGE DOORS LTD,45.00,Tenancy Services,Repairs,29 Sep 2023,2324/08,SME,N,
0000374216,FORE-MOST GARAGE DOORS LTD,893.00,Building Services,Repairs,30 Nov 2023,2324/08,SME,N,
0000374216,FORE-MOST GARAGE DOORS LTD,"1,001.60",Neighbourhood Services,Repairs,30 Nov 2023,2324/08,SME,N,
0000374216,FORE-MOST GARAGE DOORS LTD,133.20,Sheltered Accommodation,BMBS Repairs Work,30 Nov 2023,2324/08,SME,N,
0000374216,FORE-MOST GARAGE DOORS LTD,73.00,Tenancy Services,Repairs,30 Nov 2023,2324/08,SME,N,
0000373562,FORE-MOST GARAGE DOORS LTD,"3,408.00",Neighbourhood Services,Repairs,31 Oct 2023,2324/09,SME,N,
0000373562,FORE-MOST GARAGE DOORS LTD,45.00,Sheltered Accommodation,Repairs,31 Oct 2023,2324/09,SME,N,
0000372555,FOURWAYS VEHICLE SOLUTIONS LTD,672.00,Building Services,Plant & Vehicle - Other costs,19 Sep 2023,2324/07,SME,Y,50%
0000372685,FOURWAYS VEHICLE SOLUTIONS LTD,"1,120.00",Building Services,Plant & Vehicle - Other costs,07 Sep 2023,2324/07,SME,Y,50%
0000372686,FOURWAYS VEHICLE SOLUTIONS LTD,"1,120.00",Building Services,Plant & Vehicle - Other costs,08 Sep 2023,2324/07,SME,Y,50%
0000372687,FOURWAYS VEHICLE SOLUTIONS LTD,"1,120.00",Building Services,Plant & Vehicle - Other costs,07 Sep 2023,2324/07,SME,Y,50%
0000372688,FOURWAYS VEHICLE SOLUTIONS LTD,644.00,Building Services,Plant & Vehicle - Other costs,05 Sep 2023,2324/07,SME,Y,50%
0000372689,FOURWAYS VEHICLE SOLUTIONS LTD,644.00,Building Services,Plant & Vehicle - Other costs,05 Sep 2023,2324/07,SME,Y,50%
0000372690,FOURWAYS VEHICLE SOLUTIONS LTD,644.00,Building Services,Plant & Vehicle - Other costs,05 Sep 2023,2324/07,SME,Y,50%
0000372774,FOURWAYS VEHICLE SOLUTIONS LTD,980.00,Open Spaces,Plant & Vehicle - Other costs,14 Sep 2023,2324/07,SME,Y,50%
0000373996,FOURWAYS VEHICLE SOLUTIONS LTD,644.00,Building Services,Lease Cars - Payment,31 Oct 2023,2324/08,SME,Y,50%
0000373997,FOURWAYS VEHICLE SOLUTIONS LTD,644.00,Building Services,Lease Cars - Payment,31 Oct 2023,2324/08,SME,Y,50%
0000373998,FOURWAYS VEHICLE SOLUTIONS LTD,644.00,Building Services,Lease Cars - Payment,31 Oct 2023,2324/08,SME,Y,50%
0000373919,FOURWAYS VEHICLE SOLUTIONS LTD,672.00,Building Services,Vehicle Hire,14 Nov 2023,2324/09,SME,Y,50%
0000373995,FOURWAYS VEHICLE SOLUTIONS LTD,650.00,Open Spaces,Plant & Vehicle - Other costs,31 Oct 2023,2324/09,SME,N,
0000423536,FRAMSDEN PARISH COUNCIL,715.88,Current Liabilities,Parish Payments Available,06 Oct 2023,2324/07,SME,N,
0000423627,FRAMSDEN PARISH COUNCIL,518.45,Bring Sites,Contributions & Donations,11 Oct 2023,2324/07,SME,N,
0000374588,FRESSINGFIELD BOWLS CLUB,"1,000.00",Grants & Contrbns,Contributions & Donations,12 Dec 2023,2324/09,SME,N,
0000374638,FRESSINGFIELD LOCAL HISTORY & ARCHIVE GP,"1,476.97",Grants & Contrbns,Contributions & Donations,17 Dec 2023,2324/09,SME,N,
0000423537,FRESSINGFIELD PARISH COUNCIL,"7,114.75",Current Liabilities,Parish Payments Available,06 Oct 2023,2324/07,SME,N,
0000372291,FUSE PAT TESTING,531.00,Creeting Rd Depot,"Equipment, Tools & Materials",26 Sep 2023,2324/07,ST,N,
0000372563,G4S CASH SOLUTIONS LTD,"1,585.20",C Parks General,Contracted Services,30 Sep 2023,2324/07,LGE,N,
0000373092,G4S CASH SOLUTIONS LTD,"1,400.26",C Parks General,Contracted Services,31 Aug 2023,2324/08,LGE,N,
0000373559,G4S CASH SOLUTIONS LTD,"1,796.56",C Parks General,Contracted Services,31 Oct 2023,2324/08,LGE,N,
0000374360,G4S CASH SOLUTIONS LTD,"1,373.84",C Parks General,Contracted Services,30 Nov 2023,2324/09,LGE,N,
0000372660,GALLAGHER CAR & VAN RENTALS LTD,588.00,Domestic Waste,Refuse Contract,26 Sep 2023,2324/07,LGE,N,
0000372746,GALLAGHER CAR & VAN RENTALS LTD,"1,232.00",Domestic Waste,Refuse Contract,11 Oct 2023,2324/07,LGE,N,
0000372854,GALLAGHER CAR & VAN RENTALS LTD,"1,316.00",Domestic Waste,Refuse Contract,13 Oct 2023,2324/07,LGE,N,
0000373155,GALLAGHER CAR & VAN RENTALS LTD,588.00,Domestic Waste,Refuse Contract,24 Oct 2023,2324/07,LGE,N,
0000373492,GALLAGHER CAR & VAN RENTALS LTD,"1,232.00",Street & Major Road Cleansing,Vehicle Hire,02 Nov 2023,2324/08,LGE,N,
0000373643,GALLAGHER CAR & VAN RENTALS LTD,"1,232.00",Domestic Waste,Refuse Contract,08 Nov 2023,2324/08,LGE,N,
0000373697,GALLAGHER CAR & VAN RENTALS LTD,"2,520.00",Domestic Waste,Refuse Contract,09 Nov 2023,2324/08,LGE,N,
0000373707,GALLAGHER CAR & VAN RENTALS LTD,"1,316.00",Domestic Waste,Refuse Contract,10 Nov 2023,2324/08,LGE,N,
0000374015,GALLAGHER CAR & VAN RENTALS LTD,588.00,Domestic Waste,Refuse Contract,21 Nov 2023,2324/08,LGE,N,
0000374365,GALLAGHER CAR & VAN RENTALS LTD,"1,232.00",Domestic Waste,Refuse Contract,06 Dec 2023,2324/09,LGE,N,
0000374434,GALLAGHER CAR & VAN RENTALS LTD,"2,520.00",Domestic Waste,Refuse Contract,07 Dec 2023,2324/09,LGE,N,
0000374458,GALLAGHER CAR & VAN RENTALS LTD,"1,316.00",Domestic Waste,Refuse Contract,08 Dec 2023,2324/09,LGE,N,
0000374759,GALLAGHER CAR & VAN RENTALS LTD,588.00,Domestic Waste,Refuse Contract,19 Dec 2023,2324/09,LGE,N,
0000372551,GB ADAPTIONS LTD,"6,468.00",Mand Disabled Facilities Grant,Grants,04 Oct 2023,2324/07,SME,N,
0000372392,GCS COMPLIANCE LTD,"1,020.82",Building Services,Prof & Consultancy Fees,30 Sep 2023,2324/07,SME,N,
0000372740,GHB ROOFING,"119,796.48",Roofing,Repairs,29 Sep 2023,2324/07,SME,N,
0000372743,GHB ROOFING,"2,768.00",Voids Maintenance,Repairs,09 Oct 2023,2324/07,SME,N,
0000372613,GIPPING CONSTRUCTION LTD,"24,132.50",Needham Market Middle School,Prof & Consultancy Fees,29 Sep 2023,2324/07,SME,N,
0000374141,GIPPING VALLEY BOWLS CLUB,"2,542.80",Grants & Contrbns,Contributions & Donations,27 Nov 2023,2324/08,SME,N,
0000423538,GISLINGHAM PARISH COUNCIL,"3,296.51",Current Liabilities,Parish Payments Available,06 Oct 2023,2324/07,SME,N,
0000423652,GPC BARCLAYS,"10,652.01",Current Assets,Barclaycard Control,14 Oct 2023,2324/08,LGE,Y,13%
0000423664,GPC BARCLAYS,"11,313.08",Current Assets,Barclaycard Control,14 Nov 2023,2324/08,LGE,Y,22%
0000374147,GRANGEWOOD PLASTIC PACKAGING LTD,"2,325.00",Domestic Waste,Refuse Sacks,23 Nov 2023,2324/08,SME,Y,50%
0000423539,GREAT BRICETT PARISH COUNCIL,"5,154.46",Current Liabilities,Parish Payments Available,06 Oct 2023,2324/07,SME,N,
0000373943,GREENFUTURE SOLUTIONS LTD,"6,207.75",Mand Disabled Facilities Grant,Grants,20 Nov 2023,2324/08,SME,N,
0000374034,GREENFUTURE SOLUTIONS LTD,"20,787.20",Mand Disabled Facilities Grant,Grants,22 Nov 2023,2324/08,SME,N,
0000374628,GREENFUTURE SOLUTIONS LTD,"1,709.20",Mand Disabled Facilities Grant,Grants,13 Dec 2023,2324/09,SME,N,
0000374630,GREENFUTURE SOLUTIONS LTD,"9,079.60",Mand Disabled Facilities Grant,Grants,13 Dec 2023,2324/09,SME,N,
0000373975,GRYPHON FIRST AID UNIT,"1,102.80",Grants & Contrbns,Contributions & Donations,20 Nov 2023,2324/08,SME,N,
0000372355,HAMILTON SMITH LETTINGS,570.00,Guaranteed Rent Scheme,Rent Payable,02 Oct 2023,2324/07,SME,N,
0000372644,HAMILTON SMITH LETTINGS,590.00,Guaranteed Rent Scheme,Rent Payable,09 Oct 2023,2324/07,SME,N,
0000372925,HAMILTON SMITH LETTINGS,775.00,Guaranteed Rent Scheme,Rent Payable,16 Oct 2023,2324/07,SME,N,
0000372930,HAMILTON SMITH LETTINGS,550.00,Guaranteed Rent Scheme,Rent Payable,16 Oct 2023,2324/07,SME,N,
0000373157,HAMILTON SMITH LETTINGS,"2,000.00",Guaranteed Rent Scheme,Rent Payable,24 Oct 2023,2324/07,SME,N,
0000373574,HAMILTON SMITH LETTINGS,590.00,Guaranteed Rent Scheme,Rent Payable,06 Nov 2023,2324/08,SME,N,
0000373581,HAMILTON SMITH LETTINGS,570.00,Guaranteed Rent Scheme,Rent Payable,06 Nov 2023,2324/08,SME,N,
0000373753,HAMILTON SMITH LETTINGS,775.00,Guaranteed Rent Scheme,Rent Payable,14 Nov 2023,2324/08,SME,N,
0000373769,HAMILTON SMITH LETTINGS,550.00,Guaranteed Rent Scheme,Rent Payable,14 Nov 2023,2324/08,SME,N,
0000373948,HAMILTON SMITH LETTINGS,"2,000.00",Guaranteed Rent Scheme,Rent Payable,20 Nov 2023,2324/08,SME,N,
0000374298,HAMILTON SMITH LETTINGS,570.00,Guaranteed Rent Scheme,Rent Payable,04 Dec 2023,2324/09,SME,N,
0000374304,HAMILTON SMITH LETTINGS,590.00,Guaranteed Rent Scheme,Rent Payable,05 Dec 2023,2324/09,SME,N,
0000374495,HAMILTON SMITH LETTINGS,775.00,Guaranteed Rent Scheme,Rent Payable,11 Dec 2023,2324/09,SME,N,
0000374496,HAMILTON SMITH LETTINGS,550.00,Guaranteed Rent Scheme,Rent Payable,11 Dec 2023,2324/09,SME,N,
0000374641,HAMILTON SMITH LETTINGS,"2,000.00",Guaranteed Rent Scheme,Rent Payable,18 Dec 2023,2324/09,SME,N,
0000373752,HAMILTONS REMOVALS LTD,665.00,Homeless Prevention Fund,Removal Expenses,10 Nov 2023,2324/08,SME,N,
0000372378,HAMSON BARRON SMITH LTD,650.00,Strategic Investment Fund,Prof & Consultancy Fees,30 Sep 2023,2324/07,LGE,N,
0000372382,HAMSON BARRON SMITH LTD,650.00,BRRP-MarketTownVision&Invest,Prof & Consultancy Fees,30 Sep 2023,2324/07,LGE,N,
0000373131,HAMSON BARRON SMITH LTD,"1,000.00",BRRP-MarketTownVision&Invest,Prof & Consultancy Fees,23 Oct 2023,2324/08,LGE,N,
0000373354,HAMSON BARRON SMITH LTD,750.00,Strategic Investment Fund,Prof & Consultancy Fees,31 Oct 2023,2324/08,LGE,N,
0000373355,HAMSON BARRON SMITH LTD,799.25,Assets & Development,Prof & Consultancy Fees,31 Oct 2023,2324/08,LGE,N,
0000374611,HARDTOPS UK LTD,"1,595.00",Open Spaces,Plant & Vehicle - Other costs,13 Dec 2023,2324/09,SME,N,
0000373193,HARLESTON PARISH MEETING,677.30,Street & Major Road Cleansing,Contributions to other Bodies,26 Oct 2023,2324/07,SME,N,
0000372940,HASTOE HOUSING ASSOCIATION LTD,"2,000.00",Household Support Grant,Misc Supplies & Services Costs,17 Oct 2023,2324/07,SME,N,
0000373194,HAUGHLEY PARISH COUNCIL,677.30,Street & Major Road Cleansing,Contributions to other Bodies,26 Oct 2023,2324/07,SME,N,
0000373583,HAUGHLEY PLAYING FIELD BOWLS CLUB,"1,000.00",Grants & Contrbns,Contributions & Donations,06 Nov 2023,2324/08,SME,N,
0000372939,HAVEBURY HOUSING PARTNERSHIP (RENTS),600.00,Household Support Grant,Misc Supplies & Services Costs,17 Oct 2023,2324/07,SME,N,
0000374715,HAYMARKET MEDIA GROUP LTD,"7,100.00",Planning Performance Agreement,"Equipment, Tools & Materials",18 Dec 2023,2324/09,SME,Y,44%
0000374364,HEALTH AND CARE (UK) LTD,"2,458.00",Jnt Waste Contract,"Equipment, Tools & Materials",14 Nov 2023,2324/09,SME,Y,50%
0000372111,HETHEL INNOVATION LTD,"4,997.16",MSM Skills & Innovation Centre,Prof & Consultancy Fees,18 Sep 2023,2324/07,LGE,N,
0000372951,HETHEL INNOVATION LTD,"4,997.16",MSM Skills & Innovation Centre,Prof & Consultancy Fees,17 Oct 2023,2324/07,LGE,N,
0000423520,HM COURTS & TRIBUNALS SERVICE  (DD ONLY),664.00,Building Servs Tech Staff,Legal Expenses,01 Oct 2023,2324/07,LGE,Y,50%
0000372953,HOLIDAY INN IPSWICH,"3,200.00",Endeavour House - HQ,Food & Drink,17 Oct 2023,2324/07,SME,Y,50%
0000373644,HOLLAND & HOLLAND LANDSCAPING,"6,647.00",Needham Market Middle School,Prof & Consultancy Fees,08 Nov 2023,2324/08,SME,N,
0000373254,HOME ADAPT,"6,590.64",Mand Disabled Facilities Grant,Grants,27 Oct 2023,2324/07,SME,N,
0000374603,HOME-START IN SUFFOLK,"19,896.51",Communities,Grants,14 Dec 2023,2324/09,SME,N,
0000423541,HORHAM & ATHELINGTON PARISH CL,"4,217.69",Current Liabilities,Parish Payments Available,06 Oct 2023,2324/07,SME,N,
0000373195,HOXNE PARISH COUNCIL,677.30,Street & Major Road Cleansing,Contributions to other Bodies,26 Oct 2023,2324/07,SME,N,
0000423542,HOXNE PARISH COUNCIL,"3,217.63",Current Liabilities,Parish Payments Available,06 Oct 2023,2324/07,SME,N,
0000372583,HOXNE PAROCHIAL CHURCH COUNCIL,"1,241.22",CIL Funded REFCUS,Grants,06 Oct 2023,2324/07,SME,N,
0000373024,HUDSON MEDIA PARTNERSHIP LTD,870.00,Neighbourhood Services,Misc Supplies & Services Costs,19 Oct 2023,2324/07,SME,Y,50%
0000372568,HUGHES TRADE,684.49,Homeless Prevention Fund,Misc Supplies & Services Costs,05 Oct 2023,2324/07,LGE,N,
0000373810,IAN BOOTH CONSULTANT ENGINEER LTD,960.00,Roads and Paths,Improvements,13 Nov 2023,2324/08,SME,N,
0000374779,IAN BOOTH CONSULTANT ENGINEER LTD,960.00,Strategic Assets,Prof & Consultancy Fees,19 Dec 2023,2324/09,SME,N,
0000372571,IDOX SOFTWARE LTD,750.00,Devt Management - Apps,Desktop Software,05 Oct 2023,2324/07,SME,Y,44%
0000373973,IHASCO LTD,"4,374.00",Organisational Devt,Corporate Training,22 Aug 2023,2324/09,SME,Y,50%
0000373541,IN YOUR TEAM LTD,"4,760.00",Software/ICT Projects/Surveys,Prof & Consultancy Fees,03 Nov 2023,2324/08,SME,Y,50%
0000373290,INSIGHT TECHNOLOGY (SUFFOLK) LTD,"3,307.50",Sheltered Accommodation,Fire Prevention,27 Oct 2023,2324/08,SME,N,
0000374535,INSIGHT TECHNOLOGY (SUFFOLK) LTD,"2,280.40",Sheltered Accommodation,Fire Prevention,12 Dec 2023,2324/09,SME,N,
0000374819,INSIGHT TECHNOLOGY (SUFFOLK) LTD,"2,548.60",Sheltered Units-Gen.Imp,Repairs,20 Dec 2023,2324/09,SME,N,
0000372904,INTERNATIONAL PARKING SYSTEMS UK LTD,950.00,C Parks General,Contracted Services,13 Oct 2023,2324/08,LGE,N,
0000372596,IPSERV LTD,"1,418.80",Communications,Commercial Printing,01 Sep 2023,2324/07,SME,N,
0000373126,IPSERV LTD,"1,719.56",Communications,Commercial Printing,05 May 2023,2324/07,SME,N,
0000373127,IPSERV LTD,751.22,Communications,Commercial Printing,30 Sep 2023,2324/07,SME,N,
0000373127,IPSERV LTD,643.52,Central Printing,Commercial Printing,30 Sep 2023,2324/07,SME,N,
0000373378,IPSERV LTD,"1,045.71",Communications,Commercial Printing,31 Oct 2023,2324/08,SME,N,
0000373550,IPSERV LTD,"3,318.61",Communications,Commercial Printing,31 Oct 2023,2324/08,SME,N,
0000374374,IPSERV LTD,"5,067.82",Communications,Commercial Printing,30 Nov 2023,2324/09,SME,N,
0000374374,IPSERV LTD,305.00,Central Printing,Commercial Printing,30 Nov 2023,2324/09,SME,N,
0000373065,IPSWICH BOROUGH COUNCIL,"2,000.00",Tourism General,Prof & Consultancy Fees,20 Oct 2023,2324/07,LGE,N,
0000373244,IPSWICH BOROUGH COUNCIL,"20,600.00",Shared Revenues Partnership,Contributions to other Bodies,24 Oct 2023,2324/07,LGE,N,
0000373442,IPSWICH BOROUGH COUNCIL,"6,531.81",Shared Revenues Partnership,Contributions to other Bodies,27 Oct 2023,2324/08,LGE,N,
0000373535,IPSWICH BOROUGH COUNCIL,"8,298.92",Civil Parking Enforcement,Contracted Services,01 Nov 2023,2324/08,LGE,N,
0000373672,IPSWICH BOROUGH COUNCIL,"274,082.50",Shared Revenues Partnership,Major Contracts,07 Nov 2023,2324/08,LGE,N,
0000372367,IPSWICH TOWN COMMUNITY TRUST,"1,033.33",Holiday Activity Fund,"Equipment, Tools & Materials",29 Sep 2023,2324/07,SME,N,
0000372314,IPSWICH TOWN FOOTBALL CLUB CO. LTD,"3,280.00",Homeless Prevention Fund,Misc Supplies & Services Costs,15 Sep 2023,2324/07,LGE,Y,100%
0000373129,IPSWICH TOWN FOOTBALL CLUB CO. LTD,682.20,Endeavour House - HQ,Room Hire,18 Oct 2023,2324/07,LGE,Y,50%
0000373233,IPSWICH TOWN FOOTBALL CLUB CO. LTD,510.45,Organisational Devt,Training,27 Jul 2023,2324/07,LGE,Y,50%
0000373529,IPSWICH TOWN FOOTBALL CLUB CO. LTD,192.40,Endeavour House - HQ,Food & Drink,01 Nov 2023,2324/08,LGE,Y,50%
0000373529,IPSWICH TOWN FOOTBALL CLUB CO. LTD,360.00,Endeavour House - HQ,Room Hire,01 Nov 2023,2324/08,LGE,Y,50%
0000373403,IVY LEGAL LTD,750.00,Organisational Devt,Training,01 May 2023,2324/08,SME,N,
0000374840,JC BUILDING SERVICES,"2,430.00",Mand Disabled Facilities Grant,Grants,20 Dec 2023,2324/09,SME,N,
0000372323,JMP SERVICES LTD,"100,485.84",Mendlesham - New Build,Contracted Services,21 Sep 2023,2324/07,SME,N,
0000372548,JOHN FORD GROUP LTD,"6,547.56",Mand Disabled Facilities Grant,Grants,03 Oct 2023,2324/07,SME,N,
0000373212,JOHN FORD GROUP LTD,"5,483.92",Mand Disabled Facilities Grant,Grants,26 Oct 2023,2324/07,SME,N,
0000374841,JOHNS SLATER AND HAWARD,"3,050.00",Cross Street Tech Hub,Prof & Consultancy Fees,10 Nov 2023,2324/09,SME,N,
0000373887,KADA RESEARCH LTD,"2,700.00",MSM Skills & Innovation Centre,Prof & Consultancy Fees,17 Nov 2023,2324/08,SME,N,
0000372909,KEN GRIME & SON LTD,736.55,Voids Maintenance,Repairs,16 Oct 2023,2324/07,SME,N,
0000373794,KEN GRIME & SON LTD,962.60,Kitchens/Bathrooms,Repairs,07 Nov 2023,2324/08,SME,N,
0000373794,KEN GRIME & SON LTD,390.60,Window & Door Rplcmts,Repairs,07 Nov 2023,2324/08,SME,N,
0000373962,KEN GRIME & SON LTD,679.66,Rewiring,Repairs,20 Nov 2023,2324/08,SME,N,
0000374021,KEN GRIME & SON LTD,538.88,Kitchens/Bathrooms,Repairs,22 Nov 2023,2324/08,SME,N,
0000374790,KEN GRIME & SON LTD,"1,393.64",Rewiring,Repairs,19 Dec 2023,2324/09,SME,N,
0000373561,KENDA-CLEAN,70.00,Creeting Rd Depot,Window Cleaning,05 Nov 2023,2324/08,SME,Y,50%
0000373561,KENDA-CLEAN,"2,699.00",Sheltered Accommodation,Window Cleaning,05 Nov 2023,2324/08,SME,N,
0000373561,KENDA-CLEAN,35.00,Tenancy Services,Window Cleaning,05 Nov 2023,2324/08,SME,N,
0000373713,KEYWAYS THE LOCKSMITHS LTD,"1,145.00",Verneuil Avenue,Misc Premises Costs,10 Nov 2023,2324/08,SME,N,
0000373893,KEYWAYS THE LOCKSMITHS LTD,850.00,Other Temp Accommodation,Misc Premises Costs,17 Nov 2023,2324/08,SME,N,
0000373568,KICKS & TRICKS LTD,"2,137.50",Holiday Activity Fund,"Equipment, Tools & Materials",11 Oct 2023,2324/08,SME,N,
0000374371,KING GEORGE PLAYING FIELD COMMITTEE,"1,000.00",Grants & Contrbns,Contributions & Donations,06 Dec 2023,2324/09,SME,N,
0000372846,KINGSLEY HOUSE HOTEL,"2,496.00",Homelessness Private Sector,B&B Costs,21 Sep 2023,2324/07,SME,N,
0000374062,KNOWLES ASSOCIATES TFM LTD,839.62,Building Services,Plant & Vehicle - Other costs,13 Oct 2023,2324/08,SME,Y,50%
0000374061,KNOWLES ASSOCIATES TFM LTD,816.50,Building Services,Plant & Vehicle - Other costs,13 Oct 2023,2324/09,SME,N,
0000001083,KNOWLES ASSOCIATES TFM LTD,-250.00,Building Services,Vehicle Hire,22 Dec 2023,2324/09,SME,Y,50%
0000372301,L A C CLEANING CONTRACTORS LIMITED,865.58,Temporary Accommodation,General Cleaning,26 Sep 2023,2324/07,SME,N,
0000372435,L A C CLEANING CONTRACTORS LIMITED,"1,095.50",Voids Maintenance,Repairs,03 Oct 2023,2324/07,SME,N,
0000372779,L A C CLEANING CONTRACTORS LIMITED,"2,960.50",Voids Maintenance,Repairs,12 Oct 2023,2324/07,SME,N,
0000373243,L A C CLEANING CONTRACTORS LIMITED,"1,095.50",Voids Maintenance,Repairs,26 Oct 2023,2324/07,SME,N,
0000373174,L A C CLEANING CONTRACTORS LIMITED,865.58,Temporary Accommodation,General Cleaning,23 Oct 2023,2324/08,SME,N,
0000373830,L A C CLEANING CONTRACTORS LIMITED,595.50,Voids Maintenance,Repairs,16 Nov 2023,2324/08,SME,N,
0000374168,L A C CLEANING CONTRACTORS LIMITED,865.58,Temporary Accommodation,General Cleaning,28 Nov 2023,2324/09,SME,N,
0000372060,LABC,"2,280.00",Bldg Regs Chargeable Serv,Advertising&mkting (non-staff),18 Sep 2023,2324/07,SME,Y,42%
0000372852,LABC EAST ANGLIA,570.00,Bldg Regs Chargeable Serv,Subscriptions,12 Sep 2023,2324/07,SME,Y,50%
0000372304,LAC SERVICES (EAST ANGLIA) LTD,"2,930.46",Cedars Park,Fire Prevention,26 Sep 2023,2324/07,SME,N,
0000373123,LAC SERVICES (EAST ANGLIA) LTD,"4,351.91",Sheltered Accommodation,Fire Prevention,23 Oct 2023,2324/07,SME,N,
0000373124,LAC SERVICES (EAST ANGLIA) LTD,"1,460.53",Sheltered Accommodation,Fire Prevention,23 Oct 2023,2324/07,SME,N,
0000373125,LAC SERVICES (EAST ANGLIA) LTD,"2,841.60",Cedars Park,Fire Prevention,23 Oct 2023,2324/07,SME,N,
0000373516,LAC SERVICES (EAST ANGLIA) LTD,"15,586.39",Sheltered Accommodation,Fire Prevention,02 Nov 2023,2324/08,SME,N,
0000374203,LAC SERVICES (EAST ANGLIA) LTD,"6,964.65",Cedars Park,Fire Prevention,28 Nov 2023,2324/09,SME,N,
0000374227,LAC SERVICES (EAST ANGLIA) LTD,"6,516.10",Cedars Park,Fire Prevention,28 Nov 2023,2324/09,SME,N,
0000374553,LAC SERVICES (EAST ANGLIA) LTD,"1,484.29",Sheltered Accommodation,Fire Prevention,11 Dec 2023,2324/09,SME,N,
0000372587,LAND & WATER PLANT LTD,"3,350.00",Open Spaces,"Equipment, Tools & Materials",30 Sep 2023,2324/07,SME,N,
0000372696,LAND & WATER PLANT LTD,"3,270.00",Open Spaces,"Equipment, Tools & Materials",30 Sep 2023,2324/07,SME,N,
0000373288,LAND & WATER PLANT LTD,"1,850.00",Open Spaces,"Equipment, Tools & Materials",15 Oct 2023,2324/08,SME,N,
0000373289,LAND & WATER PLANT LTD,"1,810.00",Open Spaces,"Equipment, Tools & Materials",15 Oct 2023,2324/08,SME,N,
0000372943,LAND USE CONSULTANTS LTD,"3,500.00",Nghbrhd Plan Designations,Prof & Consultancy Fees,16 Oct 2023,2324/07,SME,N,
0000372188,LAND UTILITY GROUP LTD,"3,200.00",SHELF Project,Prof & Consultancy Fees,05 Sep 2023,2324/07,SME,N,
0000423543,LAXFIELD PARISH COUNCIL,"31,222.76",Current Liabilities,Parish Payments Available,06 Oct 2023,2324/07,SME,N,
0000372112,LEX AUTOLEASE,"1,020.49",Building Services,Lease Cars - Payment,24 Aug 2023,2324/07,SME,Y,50%
0000373048,LJ GAMMER (STOWMARKET) LTD,"1,088.82",Building Services,Plant & Vehicle - Other costs,19 Oct 2023,2324/07,SME,N,
0000373319,LJ GAMMER (STOWMARKET) LTD,"1,247.37",Building Services,Plant & Vehicle - Other costs,14 Aug 2023,2324/08,SME,Y,50%
0000373323,LJ GAMMER (STOWMARKET) LTD,647.84,Building Services,Plant & Vehicle - Other costs,30 Oct 2023,2324/08,SME,N,
0000373675,LJ GAMMER (STOWMARKET) LTD,"1,247.37",Building Services,Plant & Vehicle - Other costs,09 Nov 2023,2324/08,SME,Y,50%
0000373969,LJ GAMMER (STOWMARKET) LTD,562.30,Building Services,Plant & Vehicle - Other costs,20 Nov 2023,2324/08,SME,Y,50%
0000373342,LLOYDS BANK PLC,"5,000.00",Economy & Business,Prof & Consultancy Fees,30 Oct 2023,2324/08,LGE,Y,50%
0000374316,LORD THURLOW HALL,"19,235.70",CIL Funded REFCUS,Grants,05 Dec 2023,2324/09,SME,N,
0000373084,LOUISE FAIERS,"1,620.00",Loraine Way Bramford  S106,Prof & Consultancy Fees,20 Oct 2023,2324/07,ST,N,
0000373085,LOUISE FAIERS,"1,945.00","Cedars Park C & D, Stowmarket",Prof & Consultancy Fees,20 Oct 2023,2324/07,ST,N,
0000373661,LOUISE FAIERS,"1,110.00","Mill Road, Laxfield S106",Prof & Consultancy Fees,08 Nov 2023,2324/08,ST,N,
0000372106,M & H CIVIL ENGINEERING LTD,"1,400.00",Building Services,Repairs,18 Sep 2023,2324/07,SME,N,
0000372273,M & H CIVIL ENGINEERING LTD,824.78,Building Services,Repairs,25 Sep 2023,2324/07,SME,N,
0000372447,M & H CIVIL ENGINEERING LTD,900.00,Building Services,Repairs,03 Oct 2023,2324/07,SME,N,
0000372448,M & H CIVIL ENGINEERING LTD,835.29,Building Services,Repairs,03 Oct 2023,2324/07,SME,N,
0000373282,M & H CIVIL ENGINEERING LTD,755.87,Voids Maintenance,Repairs,25 Oct 2023,2324/07,SME,N,
0000373405,M & H CIVIL ENGINEERING LTD,778.20,Voids Maintenance,Repairs,01 Nov 2023,2324/08,SME,N,
0000373578,M & H CIVIL ENGINEERING LTD,"4,775.00",Building Services,Repairs,02 Nov 2023,2324/08,SME,N,
0000373696,M & H CIVIL ENGINEERING LTD,694.37,Building Services,Repairs,07 Nov 2023,2324/08,SME,N,
0000373837,M & H CIVIL ENGINEERING LTD,868.43,Voids Maintenance,Repairs,15 Nov 2023,2324/08,SME,N,
0000374565,M & H CIVIL ENGINEERING LTD,"4,800.00",Building Services,Repairs,12 Dec 2023,2324/09,SME,N,
0000374591,MANSION HOUSE PUBLISHING LTD,560.00,Independent Living Service,Prof & Consultancy Fees,13 Dec 2023,2324/09,SME,Y,50%
0000372642,MAP LETTINGS & PROPERTY MANAGEMENT,"1,050.00",Guaranteed Rent Scheme,Rent Payable,09 Oct 2023,2324/07,SME,N,
0000372642,MAP LETTINGS & PROPERTY MANAGEMENT,200.00,Homeless Prevention Fund,Misc Supplies & Services Costs,09 Oct 2023,2324/07,SME,N,
0000373768,MAP LETTINGS & PROPERTY MANAGEMENT,"1,050.00",Guaranteed Rent Scheme,Rent Payable,14 Nov 2023,2324/08,SME,N,
0000373768,MAP LETTINGS & PROPERTY MANAGEMENT,200.00,Homeless Prevention Fund,Misc Supplies & Services Costs,14 Nov 2023,2324/08,SME,N,
0000374446,MAP LETTINGS & PROPERTY MANAGEMENT,"1,050.00",Guaranteed Rent Scheme,Rent Payable,08 Dec 2023,2324/09,SME,N,
0000374446,MAP LETTINGS & PROPERTY MANAGEMENT,200.00,Homeless Prevention Fund,Misc Supplies & Services Costs,08 Dec 2023,2324/09,SME,N,
0000372347,MARCHDELL LTD,815.00,Guaranteed Rent Scheme,Rent Payable,02 Oct 2023,2324/07,SME,N,
0000373589,MARCHDELL LTD,815.00,Guaranteed Rent Scheme,Rent Payable,06 Nov 2023,2324/08,SME,N,
0000374271,MARCHDELL LTD,815.00,Guaranteed Rent Scheme,Rent Payable,04 Dec 2023,2324/09,SME,N,
0000372639,MARTIN BROKERS ( UK ) PLC,"4,986.30",Treasury Management,Prof & Consultancy Fees,30 Sep 2023,2324/07,LGE,N,
0000374013,MARTINS BICYCLE SERVICES,750.00,Climate Change and Sustainabil,Misc Supplies & Services Costs,21 Nov 2023,2324/08,ST,Y,50%
0000373412,MATERIAL CHANGE COMPOSTING LTD,"2,899.71",Open Spaces,Waste Disposal,31 Oct 2023,2324/08,LGE,N,
0000373905,MATERIAL CHANGE COMPOSTING LTD,"2,333.10",Open Spaces,Waste Disposal,30 Sep 2023,2324/08,LGE,N,
0000374002,MATERIAL CHANGE COMPOSTING LTD,-799.92,Open Spaces,Waste Disposal,01 Dec 2022,2324/08,LGE,N,
0000374309,MATERIAL CHANGE COMPOSTING LTD,"1,833.15",Open Spaces,Waste Disposal,30 Nov 2023,2324/09,LGE,N,
0000372663,MB TREES (EAST ANGLIA) LTD,750.00,Public Tree Programme,Tree felling/maintenance,09 Oct 2023,2324/07,SME,N,
0000372664,MB TREES (EAST ANGLIA) LTD,740.00,Amenity Areas,Tree felling/maintenance,09 Oct 2023,2324/07,SME,N,
0000372666,MB TREES (EAST ANGLIA) LTD,540.00,Amenity Areas,Tree felling/maintenance,09 Oct 2023,2324/07,SME,N,
0000372668,MB TREES (EAST ANGLIA) LTD,680.00,Public Tree Programme,Tree felling/maintenance,09 Oct 2023,2324/07,SME,N,
0000372931,MB TREES (EAST ANGLIA) LTD,"1,480.00",Amenity Areas,Tree felling/maintenance,16 Oct 2023,2324/07,SME,N,
0000373229,MB TREES (EAST ANGLIA) LTD,740.00,Tenancy Services,Tree felling/maintenance,25 Oct 2023,2324/08,SME,N,
0000373271,MB TREES (EAST ANGLIA) LTD,"4,680.00",Tenancy Services,Tree felling/maintenance,26 Oct 2023,2324/08,SME,N,
0000373465,MB TREES (EAST ANGLIA) LTD,880.00,Amenity Areas,Tree felling/maintenance,02 Nov 2023,2324/08,SME,N,
0000373466,MB TREES (EAST ANGLIA) LTD,880.00,Amenity Areas,Tree felling/maintenance,02 Nov 2023,2324/08,SME,N,
0000373467,MB TREES (EAST ANGLIA) LTD,"2,100.00",Public Tree Programme,Tree felling/maintenance,02 Nov 2023,2324/08,SME,N,
0000373737,MB TREES (EAST ANGLIA) LTD,"1,100.00",Public Tree Programme,Tree felling/maintenance,13 Nov 2023,2324/08,SME,N,
0000373738,MB TREES (EAST ANGLIA) LTD,"1,480.00",Public Tree Programme,Tree felling/maintenance,13 Nov 2023,2324/08,SME,N,
0000374049,MB TREES (EAST ANGLIA) LTD,"2,480.00",Amenity Areas,Tree felling/maintenance,08 Sep 2023,2324/08,SME,N,
0000374488,MB TREES (EAST ANGLIA) LTD,"1,250.00",Public Tree Programme,Tree felling/maintenance,11 Dec 2023,2324/09,SME,N,
0000374489,MB TREES (EAST ANGLIA) LTD,"1,800.00",Public Tree Programme,Tree felling/maintenance,11 Dec 2023,2324/09,SME,N,
0000373598,MCADIE & REEVE LTD,"2,245.00",MSM Housing Solutions,Misc Supplies & Services Costs,26 Oct 2023,2324/08,SME,N,
0000423690,MENDLESHAM HOMES LTD,"1,500.00",Guaranteed Rent Scheme,Misc Supplies & Services Costs,14 Dec 2023,2324/09,SME,N,
0000423690,MENDLESHAM HOMES LTD,"1,300.00",Guaranteed Rent Scheme,Rent Payable,14 Dec 2023,2324/09,SME,N,
0000423544,MENDLESHAM PARISH COUNCIL,"18,480.52",Current Liabilities,Parish Payments Available,06 Oct 2023,2324/07,SME,N,
0000374404,MENOPAUSE IN THE WORKPLACE LTD,"1,645.00",Organisational Devt,Corporate Training,30 Nov 2023,2324/09,SME,Y,50%
0000371602,MENTA,"5,625.00",Shared Prosperity Fund,Prof & Consultancy Fees,01 Sep 2023,2324/07,SME,N,
0000372586,MENTA,"5,625.00",Shared Prosperity Fund,Prof & Consultancy Fees,20 Sep 2023,2324/07,SME,N,
0000372654,MENTA,"5,625.00",Shared Prosperity Fund,Prof & Consultancy Fees,01 Oct 2023,2324/07,SME,N,
0000001073,MENTA,"-11,250.00",Shared Prosperity Fund,Prof & Consultancy Fees,03 Nov 2023,2324/08,SME,N,
0000372684,METRIC GROUP LTD,522.09,C Parks General,Contracted Services,10 Oct 2023,2324/07,SME,N,
0000373841,METRIC GROUP LTD,530.37,C Parks General,Contracted Services,15 Nov 2023,2324/08,SME,N,
0000374968,MICKFIELD VILLAGE CENTRE,600.00,VCSE Resilience,"Equipment, Tools & Materials",22 Dec 2023,2324/09,SME,N,
0000372709,MID SUFFOLK CITIZENS ADVICE BUREAU,"62,750.00",Grants & Contrbns,Grants,10 Oct 2023,2324/07,SME,N,
0000371568,MID SUFFOLK GROWTH LTD,"3,500.00",Needham Lake Vis Centre (CAP),Prof & Consultancy Fees,31 Aug 2023,2324/07,SME,N,
0000372380,MID SUFFOLK GROWTH LTD,"2,218.87",Loraine Way Bramford  S106,Prof & Consultancy Fees,30 Sep 2023,2324/07,SME,N,
0000372381,MID SUFFOLK GROWTH LTD,"1,969.50","Cedars Park C & D, Stowmarket",Prof & Consultancy Fees,30 Sep 2023,2324/07,SME,N,
0000373384,MID SUFFOLK GROWTH LTD,"1,559.70","Cedars Park C & D, Stowmarket",Prof & Consultancy Fees,31 Oct 2023,2324/08,SME,N,
0000373385,MID SUFFOLK GROWTH LTD,"2,700.10",Loraine Way Bramford  S106,Prof & Consultancy Fees,31 Oct 2023,2324/08,SME,N,
0000374214,MID SUFFOLK GROWTH LTD,"2,192.13",Loraine Way Bramford  S106,Prof & Consultancy Fees,30 Nov 2023,2324/08,SME,N,
0000374215,MID SUFFOLK GROWTH LTD,"1,532.28","Cedars Park C & D, Stowmarket",Prof & Consultancy Fees,30 Nov 2023,2324/08,SME,N,
0000372153,MIXBROW LTD,"11,640.00",Council House Adaptions,Improvements,19 Sep 2023,2324/07,SME,N,
0000372154,MIXBROW LTD,"2,497.00",Council House Adaptions,Improvements,21 Sep 2023,2324/07,SME,N,
0000372332,MIXBROW LTD,"1,019.20",Council House Adaptions,Improvements,26 Sep 2023,2324/07,SME,N,
0000372436,MIXBROW LTD,"5,079.00",Council House Adaptions,Improvements,29 Sep 2023,2324/07,SME,N,
0000372437,MIXBROW LTD,"4,235.00",Council House Adaptions,Improvements,29 Sep 2023,2324/07,SME,N,
0000372438,MIXBROW LTD,"3,113.00",Council House Adaptions,Improvements,29 Sep 2023,2324/07,SME,N,
0000372676,MIXBROW LTD,"7,092.77",Council House Adaptions,Improvements,03 Oct 2023,2324/07,SME,N,
0000373304,MIXBROW LTD,"4,390.19",Council House Adaptions,Improvements,30 Jun 2023,2324/08,SME,N,
0000373404,MIXBROW LTD,"17,628.68",Major Imps,Repairs,16 Oct 2023,2324/08,SME,N,
0000373445,MIXBROW LTD,"5,965.00",Council House Adaptions,Improvements,16 Oct 2023,2324/08,SME,N,
0000373603,MIXBROW LTD,"10,449.08",Council House Adaptions,Improvements,06 Nov 2023,2324/08,SME,N,
0000373604,MIXBROW LTD,"9,264.71",Major Imps,Repairs,07 Nov 2023,2324/08,SME,N,
0000374315,MIXBROW LTD,"7,304.96",Council House Adaptions,Improvements,24 Nov 2023,2324/09,SME,N,
0000374317,MIXBROW LTD,"1,087.50",Council House Adaptions,Improvements,13 Nov 2023,2324/09,SME,N,
0000374340,MIXBROW LTD,"7,411.44",Council House Adaptions,Improvements,15 Nov 2023,2324/09,SME,N,
0000374345,MIXBROW LTD,"7,396.44",Council House Adaptions,Improvements,15 Nov 2023,2324/09,SME,N,
0000374846,MK AUTOS MOT CENTRE LIMITED,600.00,Taxi & Private Hire Licensing,Contracted Services,30 Nov 2023,2324/09,SME,N,
0000372511,MOBILISE PUBLIC LTD,"6,845.52",Homeless Prevention Fund,Misc Supplies & Services Costs,14 Sep 2023,2324/07,SME,Y,50%
0000374484,MOTIVATIONAL LEADERSHIP LTD,"1,600.00",Organisational Devt,Training,09 Dec 2023,2324/09,SME,Y,50%
0000373826,MOVEITCLEARITFINDITSTOREIT LTD,860.00,Tenancy Services,Removal Expenses,15 Nov 2023,2324/08,SME,N,
0000372384,NEEDHAM MARKET AERIALS LTD,589.00,Sheltered Accommodation,Repairs,30 Sep 2023,2324/07,SME,N,
0000373167,NEEDHAM MARKET AERIALS LTD,590.00,Sheltered Accommodation,Repairs,24 Oct 2023,2324/07,SME,N,
0000374661,NEEDHAM MARKET COMMUNITY CHINWAG,"1,000.00",Grants & Contrbns,Contributions & Donations,18 Dec 2023,2324/09,SME,N,
0000373198,NEEDHAM MARKET TOWN COUNCIL,"2,980.12",Street & Major Road Cleansing,Contributions to other Bodies,26 Oct 2023,2324/07,SME,N,
0000423545,NEEDHAM MARKET TOWN COUNCIL,"27,921.75",Current Liabilities,Parish Payments Available,06 Oct 2023,2324/07,SME,N,
0000374320,NEEDHAM MARKET TOWN COUNCIL,"35,986.78",CIL Funded REFCUS,Grants,05 Dec 2023,2324/09,SME,N,
0000374660,NEEDHAM MARKET TOWN COUNCIL,"7,290.49",CIL Funded REFCUS,Grants,19 Dec 2023,2324/09,SME,N,
0000373379,NEEDHAM PHOENIX FOOTBALL CLUB,800.00,Grants & Contrbns,Contributions & Donations,31 Oct 2023,2324/08,SME,N,
0000374300,NEEDHAM PHOENIX YOUTH FOOTBALL UNDER 9'S,837.38,Grants & Contrbns,Contributions & Donations,04 Dec 2023,2324/09,SME,N,
0000372991,NETWORK RAIL INFRASTRUCTURE LTD,"32,368.67",CIL Funded REFCUS,Grants,11 Oct 2023,2324/07,LGE,N,
0000374305,NETWORK RAIL INFRASTRUCTURE LTD,"31,101.16",CIL Funded REFCUS,Grants,04 Dec 2023,2324/09,LGE,N,
0000373408,NEW LOCAL,"19,907.00",PP&I,Prof & Consultancy Fees,27 Oct 2023,2324/08,LGE,Y,50%
0000373892,NEW LOCAL,"24,896.00",PP&I,Prof & Consultancy Fees,16 Nov 2023,2324/08,LGE,Y,50%
0000374403,NEWAUTO LTD T/A MOGO UK,"3,337.90",Taxi & Private Hire Licensing,"Equipment, Tools & Materials",06 Dec 2023,2324/09,SME,N,
0000372343,NEWSQUEST MEDIA GROUP,824.00,Devt Management - Apps,Advertising&mkting (non-staff),28 Sep 2023,2324/07,LGE,N,
0000372572,NEWSQUEST MEDIA GROUP,576.80,Devt Management - Apps,Advertising&mkting (non-staff),09 Oct 2023,2324/07,LGE,N,
0000372843,NEWSQUEST MEDIA GROUP,824.00,Devt Management - Apps,Advertising&mkting (non-staff),12 Oct 2023,2324/07,LGE,N,
0000373046,NEWSQUEST MEDIA GROUP,947.60,Devt Management - Apps,Advertising&mkting (non-staff),19 Oct 2023,2324/07,LGE,N,
0000373294,NEWSQUEST MEDIA GROUP,741.60,Devt Management - Apps,Advertising&mkting (non-staff),20 Nov 2023,2324/08,LGE,N,
0000373518,NEWSQUEST MEDIA GROUP,700.40,Devt Management - Apps,Advertising&mkting (non-staff),02 Nov 2023,2324/08,LGE,N,
0000373701,NEWSQUEST MEDIA GROUP,576.80,Devt Management - Apps,Advertising&mkting (non-staff),09 Nov 2023,2324/08,LGE,N,
0000373851,NEWSQUEST MEDIA GROUP,"1,030.00",Devt Management - Apps,Advertising&mkting (non-staff),16 Nov 2023,2324/08,LGE,N,
0000374073,NEWSQUEST MEDIA GROUP,824.00,Devt Management - Apps,Advertising&mkting (non-staff),23 Nov 2023,2324/08,LGE,N,
0000374157,NEWSQUEST MEDIA GROUP,700.40,Devt Policy & Local Plans,Advertising&mkting (non-staff),28 Nov 2023,2324/08,LGE,N,
0000374217,NEWSQUEST MEDIA GROUP,"1,030.00",Devt Management - Apps,Advertising&mkting (non-staff),30 Nov 2023,2324/09,LGE,N,
0000374482,NEWSQUEST MEDIA GROUP,741.60,Devt Management - Apps,Advertising&mkting (non-staff),08 Dec 2023,2324/09,LGE,N,
0000374571,NEWSQUEST MEDIA GROUP,"1,015.58",Devt Management - Apps,Advertising&mkting (non-staff),14 Dec 2023,2324/09,LGE,N,
0000374572,NEWSQUEST MEDIA GROUP,525.30,Devt Management - Apps,Advertising&mkting (non-staff),14 Dec 2023,2324/09,LGE,N,
0000373025,NEXERE CONSULTING LTD,"4,800.00",Climate Change and Sustainabil,Contracted Services,16 Oct 2023,2324/07,SME,Y,50%
0000373716,NEXERE CONSULTING LTD,"6,600.00",Climate Change and Sustainabil,Contracted Services,06 Nov 2023,2324/08,SME,Y,50%
0000374610,NEXERE CONSULTING LTD,"4,800.00",Climate Change and Sustainabil,Contracted Services,11 Dec 2023,2324/09,SME,Y,50%
0000372824,NHS SUFFOLK & NORTH EAST ESSEX ICB,"17,186.00",Wellbeing CCG Funding,"Equipment, Tools & Materials",07 Oct 2023,2324/07,LGE,Y,50%
0000374699,NLA MEDIA ACCESS LTD,"23,589.80",Communications,Subscriptions,15 Dec 2023,2324/09,SME,Y,50%
0000373652,NORFOLK CEILINGS AND INTERIORS LTD,"3,416.54",Community Safety-General,Contributions & Donations,28 Jun 2023,2324/08,SME,N,
0000374426,NORFOLK COUNTY COUNCIL,"4,734.72",Strategic Housing,Subscriptions,01 Dec 2023,2324/09,LGE,N,
0000374755,NORFOLK STAIRLIFTS,"6,330.00",Mand Disabled Facilities Grant,Grants,20 Dec 2023,2324/09,SME,N,
0000372144,NORTHUMBRIAN WATER LTD,"1,112.04",Water Sampling,Sampling & Analysis,20 Sep 2023,2324/07,LGE,N,
0000372271,NORTHUMBRIAN WATER LTD,36.13,Cedars Park,Legionella Testing,26 Sep 2023,2324/07,LGE,N,
0000372271,NORTHUMBRIAN WATER LTD,42.70,Other HRA Temp Accommodation,Legionella Testing,26 Sep 2023,2324/07,LGE,N,
0000372271,NORTHUMBRIAN WATER LTD,"1,028.08",Sheltered Accommodation,Legionella Testing,26 Sep 2023,2324/07,LGE,N,
0000372271,NORTHUMBRIAN WATER LTD,42.70,Temporary Accommodation,Legionella Testing,26 Sep 2023,2324/07,LGE,N,
0000372271,NORTHUMBRIAN WATER LTD,236.49,Tenancy Services,Legionella Testing,26 Sep 2023,2324/07,LGE,N,
0000372271,NORTHUMBRIAN WATER LTD,78.74,Wingfield Barns,Legionella Testing,26 Sep 2023,2324/07,LGE,N,
0000373146,NORTHUMBRIAN WATER LTD,"1,528.58",Water Sampling,Sampling & Analysis,23 Oct 2023,2324/08,LGE,N,
0000373281,NORTHUMBRIAN WATER LTD,36.13,Cedars Park,Legionella Testing,27 Oct 2023,2324/08,LGE,N,
0000373281,NORTHUMBRIAN WATER LTD,42.70,Other HRA Temp Accommodation,Legionella Testing,27 Oct 2023,2324/08,LGE,N,
0000373281,NORTHUMBRIAN WATER LTD,"1,027.99",Sheltered Accommodation,Legionella Testing,27 Oct 2023,2324/08,LGE,N,
0000373281,NORTHUMBRIAN WATER LTD,236.49,Tenancy Services,Legionella Testing,27 Oct 2023,2324/08,LGE,N,
0000373281,NORTHUMBRIAN WATER LTD,78.83,Wingfield Barns,Legionella Testing,27 Oct 2023,2324/08,LGE,N,
0000373356,NORTHUMBRIAN WATER LTD,"2,125.00",Cedars Park,Legionella Testing,30 Oct 2023,2324/08,LGE,N,
0000423546,NORTON PARISH COUNCIL,"24,451.58",Current Liabilities,Parish Payments Available,06 Oct 2023,2324/07,SME,N,
0000423577,NORTON PARISH COUNCIL,570.62,Bring Sites,Contributions & Donations,11 Oct 2023,2324/07,SME,N,
0000374142,NORTON PARISH COUNCIL,"3,932.25",CIL Funded REFCUS,Grants,27 Nov 2023,2324/08,SME,N,
0000374148,NORTON PARISH COUNCIL,"3,812.52",CIL Funded REFCUS,Grants,28 Nov 2023,2324/08,SME,N,
0000371667,OAKPARK SECURITY SYSTEMS LTD,"1,395.00",Temporary Accommodation,Misc Premises Costs,31 Aug 2023,2324/07,LGE,N,
0000372455,OAKPARK SECURITY SYSTEMS LTD,"1,350.00",Paddock House,Contracted Services,30 Sep 2023,2324/07,LGE,N,
0000373007,OAKPARK SECURITY SYSTEMS LTD,585.00,Paddock House,Contracted Services,31 May 2023,2324/07,LGE,N,
0000373082,OAKPARK SECURITY SYSTEMS LTD,"2,610.00",Sheltered Accommodation,Misc Supplies & Services Costs,19 Oct 2023,2324/08,LGE,N,
0000373083,OAKPARK SECURITY SYSTEMS LTD,"2,610.00",Sheltered Accommodation,Misc Supplies & Services Costs,20 Oct 2023,2324/08,LGE,N,
0000373717,OAKPARK SECURITY SYSTEMS LTD,"1,395.00",Temporary Accommodation,Misc Premises Costs,01 Nov 2023,2324/08,LGE,N,
0000374778,OAKPARK SECURITY SYSTEMS LTD,"15,660.00",Sheltered Accommodation,Misc Supplies & Services Costs,19 Dec 2023,2324/09,LGE,N,
0000373954,OBEE CIC,"3,944.76",Community Fund Projects-Grants,Grants,21 Nov 2023,2324/08,SME,N,
0000423547,OCCOLD PARISH COUNCIL,"3,528.82",Current Liabilities,Parish Payments Available,06 Oct 2023,2324/07,SME,N,
0000373211,OCCOLD RECREATIONAL & AMENITIES COUNCIL,"1,980.00",Grants & Contrbns,Contributions & Donations,25 Oct 2023,2324/07,SME,N,
0000374231,OPINION RESEARCH SERVICES LTD,"10,987.50",PP&I,Contracted Services,30 Nov 2023,2324/08,SME,Y,48%
0000372373,OPUS PEOPLE SOLUTIONS LTD,672.69,Homeless Prevention Fund,Agency Staff,28 Sep 2023,2324/07,SME,N,
0000372373,OPUS PEOPLE SOLUTIONS LTD,445.50,Climate Change and Sustainabil,Agency Staff,28 Sep 2023,2324/07,SME,N,
0000372373,OPUS PEOPLE SOLUTIONS LTD,315.09,Organisational Devt,Agency Staff,28 Sep 2023,2324/07,SME,N,
0000372373,OPUS PEOPLE SOLUTIONS LTD,199.54,Health & Safety,Agency Staff,28 Sep 2023,2324/07,SME,N,
0000372373,OPUS PEOPLE SOLUTIONS LTD,250.08,Customer Servs,Agency Staff,28 Sep 2023,2324/07,SME,N,
0000372373,OPUS PEOPLE SOLUTIONS LTD,634.39,Building Services,Agency Staff,28 Sep 2023,2324/07,SME,N,
0000372697,OPUS PEOPLE SOLUTIONS LTD,675.72,Homeless Prevention Fund,Agency Staff,05 Oct 2023,2324/07,SME,N,
0000372697,OPUS PEOPLE SOLUTIONS LTD,495.00,Climate Change and Sustainabil,Agency Staff,05 Oct 2023,2324/07,SME,N,
0000372697,OPUS PEOPLE SOLUTIONS LTD,199.54,Health & Safety,Agency Staff,5 Oct 2023,2324/07,SME,N,
0000372697,OPUS PEOPLE SOLUTIONS LTD,184.27,Customer Servs,Agency Staff,5 Oct 2023,2324/07,SME,N,
0000372697,OPUS PEOPLE SOLUTIONS LTD,775.24,Building Services,Agency Staff,5 Oct 2023,2324/07,SME,N,
0000372917,OPUS PEOPLE SOLUTIONS LTD,499.60,Homeless Prevention Fund,Agency Staff,13 Oct 2023,2324/07,SME,N,
0000372917,OPUS PEOPLE SOLUTIONS LTD,767.25,Climate Change and Sustainabil,Agency Staff,13 Oct 2023,2324/07,SME,N,
0000372917,OPUS PEOPLE SOLUTIONS LTD,78.20,Devt Management - Apps,Agency Staff,13 Oct 2023,2324/07,SME,N,
0000372917,OPUS PEOPLE SOLUTIONS LTD,222.21,Health & Safety,Agency Staff,13 Oct 2023,2324/07,SME,N,
0000372917,OPUS PEOPLE SOLUTIONS LTD,184.28,Customer Servs,Agency Staff,13 Oct 2023,2324/07,SME,N,
0000372917,OPUS PEOPLE SOLUTIONS LTD,880.88,Building Services,Agency Staff,13 Oct 2023,2324/07,SME,N,
0000373050,OPUS PEOPLE SOLUTIONS LTD,687.06,Homeless Prevention Fund,Agency Staff,19 Oct 2023,2324/07,SME,N,
0000373050,OPUS PEOPLE SOLUTIONS LTD,43.99,Devt Management - Apps,Agency Staff,19 Oct 2023,2324/07,SME,N,
0000373050,OPUS PEOPLE SOLUTIONS LTD,717.75,Climate Change and Sustainabil,Agency Staff,19 Oct 2023,2324/07,SME,N,
0000373050,OPUS PEOPLE SOLUTIONS LTD,272.10,Health & Safety,Agency Staff,19 Oct 2023,2324/07,SME,N,
0000373050,OPUS PEOPLE SOLUTIONS LTD,179.88,Customer Servs,Agency Staff,19 Oct 2023,2324/07,SME,N,
0000373050,OPUS PEOPLE SOLUTIONS LTD,"1,329.25",Building Services,Agency Staff,19 Oct 2023,2324/07,SME,N,
0000373299,OPUS PEOPLE SOLUTIONS LTD,642.46,Homeless Prevention Fund,Agency Staff,27 Oct 2023,2324/07,SME,N,
0000373299,OPUS PEOPLE SOLUTIONS LTD,878.63,Climate Change and Sustainabil,Agency Staff,27 Oct 2023,2324/07,SME,N,
0000373299,OPUS PEOPLE SOLUTIONS LTD,199.54,Health & Safety,Agency Staff,27 Oct 2023,2324/07,SME,N,
0000373299,OPUS PEOPLE SOLUTIONS LTD,118.46,Customer Servs,Agency Staff,27 Oct 2023,2324/07,SME,N,
0000373299,OPUS PEOPLE SOLUTIONS LTD,700.12,Building Services,Agency Staff,27 Oct 2023,2324/07,SME,N,
0000373514,OPUS PEOPLE SOLUTIONS LTD,506.41,Homeless Prevention Fund,Agency Staff,02 Nov 2023,2324/08,SME,N,
0000373514,OPUS PEOPLE SOLUTIONS LTD,278.59,Devt Management - Apps,Agency Staff,02 Nov 2023,2324/08,SME,N,
0000373514,OPUS PEOPLE SOLUTIONS LTD,544.50,Climate Change and Sustainabil,Agency Staff,2 Nov 2023,2324/08,SME,N,
0000373514,OPUS PEOPLE SOLUTIONS LTD,179.88,Customer Servs,Agency Staff,2 Nov 2023,2324/08,SME,N,
0000373514,OPUS PEOPLE SOLUTIONS LTD,512.32,Building Services,Agency Staff,2 Nov 2023,2324/08,SME,N,
0000373807,OPUS PEOPLE SOLUTIONS LTD,349.20,Homeless Prevention Fund,Agency Staff,10 Nov 2023,2324/08,SME,N,
0000373807,OPUS PEOPLE SOLUTIONS LTD,39.10,Devt Management - Apps,Agency Staff,10 Nov 2023,2324/08,SME,N,
0000373807,OPUS PEOPLE SOLUTIONS LTD,779.62,Climate Change and Sustainabil,Agency Staff,10 Nov 2023,2324/08,SME,N,
0000373807,OPUS PEOPLE SOLUTIONS LTD,426.29,Health & Safety,Agency Staff,10 Nov 2023,2324/08,SME,N,
0000373807,OPUS PEOPLE SOLUTIONS LTD,122.52,Covid-19 Test and Trace,Agency Staff,10 Nov 2023,2324/08,SME,N,
0000373807,OPUS PEOPLE SOLUTIONS LTD,118.46,Customer Servs,Agency Staff,10 Nov 2023,2324/08,SME,N,
0000373807,OPUS PEOPLE SOLUTIONS LTD,563.97,Building Services,Agency Staff,10 Nov 2023,2324/08,SME,N,
0000373894,OPUS PEOPLE SOLUTIONS LTD,353.73,Homeless Prevention Fund,Agency Staff,16 Nov 2023,2324/08,SME,N,
0000373894,OPUS PEOPLE SOLUTIONS LTD,532.12,Climate Change and Sustainabil,Agency Staff,16 Nov 2023,2324/08,SME,N,
0000373894,OPUS PEOPLE SOLUTIONS LTD,425.33,Health & Safety,Agency Staff,16 Nov 2023,2324/08,SME,N,
0000373894,OPUS PEOPLE SOLUTIONS LTD,367.56,Covid-19 Test and Trace,Agency Staff,16 Nov 2023,2324/08,SME,N,
0000373894,OPUS PEOPLE SOLUTIONS LTD,179.89,Customer Servs,Agency Staff,16 Nov 2023,2324/08,SME,N,
0000373894,OPUS PEOPLE SOLUTIONS LTD,941.92,Building Services,Agency Staff,16 Nov 2023,2324/08,SME,N,
0000374092,OPUS PEOPLE SOLUTIONS LTD,259.87,Climate Change and Sustainabil,Agency Staff,23 Nov 2023,2324/08,SME,N,
0000374092,OPUS PEOPLE SOLUTIONS LTD,276.63,Homeless Prevention Fund,Agency Staff,23 Nov 2023,2324/08,SME,N,
0000374092,OPUS PEOPLE SOLUTIONS LTD,402.66,Health & Safety,Agency Staff,23 Nov 2023,2324/08,SME,N,
0000374092,OPUS PEOPLE SOLUTIONS LTD,306.30,Covid-19 Test and Trace,Agency Staff,23 Nov 2023,2324/08,SME,N,
0000374092,OPUS PEOPLE SOLUTIONS LTD,121.22,Customer Servs,Agency Staff,23 Nov 2023,2324/08,SME,N,
0000374092,OPUS PEOPLE SOLUTIONS LTD,352.69,Building Services,Agency Staff,23 Nov 2023,2324/08,SME,N,
0000374544,OPUS PEOPLE SOLUTIONS LTD,353.73,Homeless Prevention Fund,Agency Staff,30 Nov 2023,2324/09,SME,N,
0000374544,OPUS PEOPLE SOLUTIONS LTD,284.63,Climate Change and Sustainabil,Agency Staff,30 Nov 2023,2324/09,SME,N,
0000374544,OPUS PEOPLE SOLUTIONS LTD,348.24,Health & Safety,Agency Staff,30 Nov 2023,2324/09,SME,N,
0000374544,OPUS PEOPLE SOLUTIONS LTD,428.82,Covid-19 Test and Trace,Agency Staff,30 Nov 2023,2324/09,SME,N,
0000374544,OPUS PEOPLE SOLUTIONS LTD,179.88,Customer Servs,Agency Staff,30 Nov 2023,2324/09,SME,N,
0000374544,OPUS PEOPLE SOLUTIONS LTD,352.69,Building Services,Agency Staff,30 Nov 2023,2324/09,SME,N,
0000374776,OPUS PEOPLE SOLUTIONS LTD,267.56,Homeless Prevention Fund,Agency Staff,19 Dec 2023,2324/09,SME,N,
0000374776,OPUS PEOPLE SOLUTIONS LTD,30.99,Devt Management - Apps,Agency Staff,19 Dec 2023,2324/09,SME,N,
0000374776,OPUS PEOPLE SOLUTIONS LTD,396.00,Climate Change and Sustainabil,Agency Staff,19 Dec 2023,2324/09,SME,N,
0000374776,OPUS PEOPLE SOLUTIONS LTD,416.26,Health & Safety,Agency Staff,19 Dec 2023,2324/09,SME,N,
0000374776,OPUS PEOPLE SOLUTIONS LTD,245.04,Covid-19 Test and Trace,Agency Staff,19 Dec 2023,2324/09,SME,N,
0000374776,OPUS PEOPLE SOLUTIONS LTD,170.53,Customer Servs,Agency Staff,19 Dec 2023,2324/09,SME,N,
0000374776,OPUS PEOPLE SOLUTIONS LTD,825.67,Building Services,Agency Staff,19 Dec 2023,2324/09,SME,N,
0000374777,OPUS PEOPLE SOLUTIONS LTD,58.65,Devt Management - Apps,Agency Staff,19 Dec 2023,2324/09,SME,N,
0000374777,OPUS PEOPLE SOLUTIONS LTD,247.50,Climate Change and Sustainabil,Agency Staff,19 Dec 2023,2324/09,SME,N,
0000374777,OPUS PEOPLE SOLUTIONS LTD,424.99,Health & Safety,Agency Staff,19 Dec 2023,2324/09,SME,N,
0000374777,OPUS PEOPLE SOLUTIONS LTD,428.82,Covid-19 Test and Trace,Agency Staff,19 Dec 2023,2324/09,SME,N,
0000374777,OPUS PEOPLE SOLUTIONS LTD,62.95,Customer Servs,Agency Staff,19 Dec 2023,2324/09,SME,N,
0000374777,OPUS PEOPLE SOLUTIONS LTD,742.51,Building Services,Agency Staff,19 Dec 2023,2324/09,SME,N,
0000374863,OPUS PEOPLE SOLUTIONS LTD,526.06,Homeless Prevention Fund,Agency Staff,20 Dec 2023,2324/09,SME,N,
0000374863,OPUS PEOPLE SOLUTIONS LTD,68.42,Devt Management - Apps,Agency Staff,20 Dec 2023,2324/09,SME,N,
0000374863,OPUS PEOPLE SOLUTIONS LTD,655.89,Climate Change and Sustainabil,Agency Staff,20 Dec 2023,2324/09,SME,N,
0000374863,OPUS PEOPLE SOLUTIONS LTD,429.87,Health & Safety,Agency Staff,20 Dec 2023,2324/09,SME,N,
0000374863,OPUS PEOPLE SOLUTIONS LTD,275.67,Covid-19 Test and Trace,Agency Staff,20 Dec 2023,2324/09,SME,N,
0000374863,OPUS PEOPLE SOLUTIONS LTD,119.97,Customer Servs,Agency Staff,20 Dec 2023,2324/09,SME,N,
0000374863,OPUS PEOPLE SOLUTIONS LTD,389.82,Building Services,Agency Staff,20 Dec 2023,2324/09,SME,N,
0000423687,ORBIT HOUSING ASSOCIATION,"1,521.49",Homeless Prevention Fund,Misc Supplies & Services Costs,05 Dec 2023,2324/09,LGE,N,
0000372368,ORCHESTRAS LIVE,"2,000.00",RHSSF,Prof & Consultancy Fees,28 Sep 2023,2324/07,SME,N,
0000373086,ORIGIN AMENITY SOLUTIONS LTD,755.00,Open Spaces,Horticultural Purchases,20 Oct 2023,2324/08,SME,N,
0000372584,ORSIS UK LTD,"9,861.00",PV Panels,Contracted Services,07 Oct 2023,2324/07,SME,N,
0000372115,ORWELL REMOVALS & STORAGE LTD,513.00,Homeless Prevention Fund,Removal Expenses,19 Sep 2023,2324/08,SME,N,
0000374093,ORWELL REMOVALS & STORAGE LTD,513.00,Homeless Prevention Fund,Removal Expenses,17 Nov 2023,2324/08,SME,N,
0000371445,OSBORNE RICHARDSON LTD,"1,665.00",Environmental Protection,Agency Staff,23 Aug 2023,2324/07,SME,N,
0000371990,OSBORNE RICHARDSON LTD,"1,620.00",Environmental Protection,Agency Staff,13 Sep 2023,2324/07,SME,N,
0000371991,OSBORNE RICHARDSON LTD,"1,665.00",Environmental Protection,Agency Staff,13 Sep 2023,2324/07,SME,Y,27%
0000372322,OSBORNE RICHARDSON LTD,576.00,Environmental Protection,Agency Staff,27 Sep 2023,2324/07,SME,Y,50%
0000373009,OSBORNE RICHARDSON LTD,864.00,Environmental Protection,Agency Staff,18 Oct 2023,2324/07,SME,Y,50%
0000373236,OSBORNE RICHARDSON LTD,864.00,Environmental Protection,Agency Staff,25 Oct 2023,2324/07,SME,Y,50%
0000372512,OSBORNE RICHARDSON LTD,864.00,Environmental Protection,Agency Staff,04 Oct 2023,2324/08,SME,Y,50%
0000373809,OSBORNE RICHARDSON LTD,864.00,Environmental Protection,Agency Staff,15 Nov 2023,2324/08,SME,Y,50%
0000374050,OSBORNE RICHARDSON LTD,864.00,Environmental Protection,Agency Staff,22 Nov 2023,2324/08,SME,Y,50%
0000374190,OSBORNE RICHARDSON LTD,864.00,Environmental Protection,Agency Staff,29 Nov 2023,2324/08,SME,Y,50%
0000374399,OSBORNE RICHARDSON LTD,768.00,Environmental Protection,Agency Staff,06 Dec 2023,2324/09,SME,Y,50%
0000372014,OXBURY CHARTERED SURVEYORS,"1,530.00","Framlingham Road, Laxfield",Prof & Consultancy Fees,14 Sep 2023,2324/07,SME,N,
0000372103,OXBURY CHARTERED SURVEYORS,"2,137.50","Aspall Road, Debenham, Stowmar",Prof & Consultancy Fees,19 Sep 2023,2324/07,SME,N,
0000373049,OXBURY CHARTERED SURVEYORS,"2,137.50","Aspall Road, Debenham, Stowmar",Prof & Consultancy Fees,19 Oct 2023,2324/07,SME,N,
0000373273,OXBURY CHARTERED SURVEYORS,"1,530.00","Framlingham Road, Laxfield",Prof & Consultancy Fees,26 Oct 2023,2324/07,SME,N,
0000374160,OXBURY CHARTERED SURVEYORS,"2,137.50","Aspall Road, Debenham, Stowmar",Prof & Consultancy Fees,28 Nov 2023,2324/09,SME,N,
0000374580,OXBURY CHARTERED SURVEYORS,"2,137.50","Aspall Road, Debenham, Stowmar",Prof & Consultancy Fees,14 Dec 2023,2324/09,SME,N,
0000423548,PALGRAVE PARISH COUNCIL,"4,746.90",Current Liabilities,Parish Payments Available,06 Oct 2023,2324/07,SME,N,
0000373637,PARK AVENUE RECRUITMENT LTD,900.00,Devt Management - Apps,Prof & Consultancy Fees,08 Nov 2023,2324/08,SME,Y,45%
0000374989,PARK AVENUE RECRUITMENT LTD,"1,800.00",Devt Management - Apps,Prof & Consultancy Fees,27 Dec 2023,2324/09,SME,Y,45%
0000373153,PARKYNS LETTINGS BURY ST EDMUNDS,"1,300.00",Guaranteed Rent Scheme,Rent Payable,24 Oct 2023,2324/07,SME,N,
0000373932,PARKYNS LETTINGS BURY ST EDMUNDS,"1,300.00",Guaranteed Rent Scheme,Rent Payable,20 Nov 2023,2324/08,SME,N,
0000374493,PARKYNS LETTINGS BURY ST EDMUNDS,"1,300.00",Guaranteed Rent Scheme,Rent Payable,11 Dec 2023,2324/09,SME,N,
0000373293,PATHFINDER DEVELOPMENT CONSULTANTS LTD,"46,650.00","Aspall Road, Debenham, Stowmar",Prof & Consultancy Fees,02 Oct 2023,2324/07,SME,N,
0000372351,PAUL WRIGHT & CO,775.00,Guaranteed Rent Scheme,Rent Payable,02 Oct 2023,2324/07,SME,N,
0000372354,PAUL WRIGHT & CO,775.00,Guaranteed Rent Scheme,Rent Payable,02 Oct 2023,2324/07,SME,N,
0000372673,PAUL WRIGHT & CO,525.00,Guaranteed Rent Scheme,Rent Payable,09 Oct 2023,2324/07,SME,N,
0000372908,PAUL WRIGHT & CO,577.50,Guaranteed Rent Scheme,Rent Payable,16 Oct 2023,2324/07,SME,N,
0000372924,PAUL WRIGHT & CO,850.00,Guaranteed Rent Scheme,Rent Payable,16 Oct 2023,2324/07,SME,N,
0000373301,PAUL WRIGHT & CO,775.00,Guaranteed Rent Scheme,Rent Payable,30 Oct 2023,2324/07,SME,N,
0000373302,PAUL WRIGHT & CO,695.00,Guaranteed Rent Scheme,Rent Payable,30 Oct 2023,2324/07,SME,N,
0000373305,PAUL WRIGHT & CO,575.00,Guaranteed Rent Scheme,Rent Payable,30 Oct 2023,2324/07,SME,N,
0000373575,PAUL WRIGHT & CO,525.00,Guaranteed Rent Scheme,Rent Payable,06 Nov 2023,2324/08,SME,N,
0000373582,PAUL WRIGHT & CO,775.00,Guaranteed Rent Scheme,Rent Payable,06 Nov 2023,2324/08,SME,N,
0000373764,PAUL WRIGHT & CO,577.50,Guaranteed Rent Scheme,Rent Payable,14 Nov 2023,2324/08,SME,N,
0000373767,PAUL WRIGHT & CO,850.00,Guaranteed Rent Scheme,Rent Payable,14 Nov 2023,2324/08,SME,N,
0000374084,PAUL WRIGHT & CO,695.00,Guaranteed Rent Scheme,Rent Payable,24 Nov 2023,2324/08,SME,N,
0000374085,PAUL WRIGHT & CO,575.00,Guaranteed Rent Scheme,Rent Payable,24 Nov 2023,2324/08,SME,N,
0000374284,PAUL WRIGHT & CO,775.00,Guaranteed Rent Scheme,Rent Payable,04 Dec 2023,2324/09,SME,N,
0000374286,PAUL WRIGHT & CO,525.00,Guaranteed Rent Scheme,Rent Payable,04 Dec 2023,2324/09,SME,N,
0000374295,PAUL WRIGHT & CO,775.00,Guaranteed Rent Scheme,Rent Payable,04 Dec 2023,2324/09,SME,N,
0000374442,PAUL WRIGHT & CO,577.50,Guaranteed Rent Scheme,Rent Payable,08 Dec 2023,2324/09,SME,N,
0000374522,PAUL WRIGHT & CO,850.00,Guaranteed Rent Scheme,Rent Payable,11 Dec 2023,2324/09,SME,N,
0000373022,PAY 360 LIMITED,"8,152.72",Bank Chgs,Bank Charges,18 Oct 2023,2324/07,LGE,N,
0000373907,PAY 360 LIMITED,"5,488.06",Bank Chgs,Bank Charges,14 Nov 2023,2324/08,LGE,N,
0000374454,PAY 360 LIMITED,"4,435.28",Bank Chgs,Bank Charges,08 Dec 2023,2324/09,LGE,N,
0000372267,PAYDATA LTD,"1,845.00",Organisational Devt,Contracted Services,22 Aug 2023,2324/07,SME,Y,50%
0000372458,PENNA PLC,"10,266.00",Health & Safety,Agency Staff,03 Oct 2023,2324/07,SME,Y,50%
0000373554,PENNA PLC,"15,222.00",Health & Safety,Agency Staff,02 Nov 2023,2324/08,SME,Y,50%
0000372638,PENTACO CONSTRUCTION LTD,"314,086.00",Stowmarket Middle School,Major Contracts,06 Oct 2023,2324/07,SME,N,
0000373400,PENTACO CONSTRUCTION LTD,"281,300.00",Stowmarket Middle School,Major Contracts,31 Oct 2023,2324/08,SME,N,
0000374541,PENTACO CONSTRUCTION LTD,"362,406.86",Stowmarket Middle School,Major Contracts,05 Dec 2023,2324/09,SME,N,
0000372837,PETTIWARD HALL MANAGEMENT COMMITTEE,"16,000.00",Community Fund Projects-Grants,Grants,12 Oct 2023,2324/07,SME,N,
0000373602,PHILIP COBBOLD PLANNING CONSULTANCY,"1,365.00",Devt Management - Appeals,Costs allowed to appellant,13 Oct 2023,2324/08,SME,N,
0000001064,PORTAL PLAN QUEST LTD,-462.00,Devt Management -Applications,Planning Fees,26 Oct 2023,2324/07,SME,N,
0000374697,PORTAL PLAN QUEST LTD,578.00,Devt Management - Apps,Planning Fees,19 Dec 2023,2324/09,SME,N,
0000375006,PORTAL PLAN QUEST LTD,"2,772.00",Devt Management - Apps,Planning Fees,29 Dec 2023,2324/09,SME,N,
0000373218,PREMIER EDUCATION,"8,586.68",Holiday Activity Fund,"Equipment, Tools & Materials",24 Oct 2023,2324/07,SME,N,
0000372496,PRINCIPLE CONSTRUCTION & MAINTENANCE LTD,"7,358.34",Council House Adaptions,Improvements,04 Oct 2023,2324/07,SME,N,
0000372932,PRIVATE LANDLORD,860.00,Homeless Prevention Fund,Misc Supplies & Services Costs,16 Oct 2023,2324/07,SME,N,
0000373120,PRIVATE LANDLORD,836.50,Guaranteed Rent Scheme,Rent Payable,23 Oct 2023,2324/07,ST,N,
0000372671,PRIVATE LANDLORD,786.50,Guaranteed Rent Scheme,Rent Payable,09 Oct 2023,2324/07,ST,N,
0000372349,PRIVATE LANDLORD,"1,300.00",Guaranteed Rent Scheme,Rent Payable,02 Oct 2023,2324/07,ST,N,
0000373311,PRIVATE LANDLORD,"1,300.00",Guaranteed Rent Scheme,Rent Payable,30 Oct 2023,2324/07,ST,N,
0000373090,PRIVATE LANDLORD,669.00,Guaranteed Rent Scheme,Rent Payable,23 Oct 2023,2324/07,ST,N,
0000372614,PRIVATE LANDLORD,650.00,Guaranteed Rent Scheme,Rent Payable,09 Oct 2023,2324/07,ST,N,
0000372427,PRIVATE LANDLORD,620.00,Guaranteed Rent Scheme,Rent Payable,03 Oct 2023,2324/07,ST,N,
0000372348,PRIVATE LANDLORD,925.00,Guaranteed Rent Scheme,Rent Payable,02 Oct 2023,2324/07,ST,N,
0000372669,PRIVATE LANDLORD,900.00,Guaranteed Rent Scheme,Rent Payable,09 Oct 2023,2324/07,ST,N,
0000373161,PRIVATE LANDLORD,800.00,Guaranteed Rent Scheme,Rent Payable,24 Oct 2023,2324/07,ST,N,
0000372706,PRIVATE LANDLORD,800.00,Guaranteed Rent Scheme,Rent Payable,10 Oct 2023,2324/07,ST,N,
0000372907,PRIVATE LANDLORD,895.00,Guaranteed Rent Scheme,Rent Payable,16 Oct 2023,2324/07,ST,N,
0000372906,PRIVATE LANDLORD,"1,050.00",Guaranteed Rent Scheme,Rent Payable,16 Oct 2023,2324/07,SME,N,
0000372643,PRIVATE LANDLORD,880.00,Guaranteed Rent Scheme,Rent Payable,09 Oct 2023,2324/07,ST,N,
0000373253,PRIVATE LANDLORD,900.00,Homeless Prevention Fund,Misc Supplies & Services Costs,26 Oct 2023,2324/07,ST,N,
0000373952,PRIVATE LANDLORD,836.50,Guaranteed Rent Scheme,Rent Payable,20 Nov 2023,2324/08,ST,N,
0000374204,PRIVATE LANDLORD,790.50,Homeless Prevention Fund,Misc Supplies & Services Costs,30 Nov 2023,2324/08,ST,N,
0000374089,PRIVATE LANDLORD,800.00,Guaranteed Rent Scheme,Rent Payable,24 Nov 2023,2324/08,ST,N,
0000423661,PRIVATE LANDLORD,"1,305.35",Guaranteed Rent Scheme,Rent Payable,08 Nov 2023,2324/08,ST,N,
0000373949,PRIVATE LANDLORD,669.00,Guaranteed Rent Scheme,Rent Payable,20 Nov 2023,2324/08,ST,N,
0000373567,PRIVATE LANDLORD,650.00,Guaranteed Rent Scheme,Rent Payable,06 Nov 2023,2324/08,ST,N,
0000373570,PRIVATE LANDLORD,620.00,Guaranteed Rent Scheme,Rent Payable,06 Nov 2023,2324/08,ST,N,
0000373588,PRIVATE LANDLORD,925.00,Guaranteed Rent Scheme,Rent Payable,06 Nov 2023,2324/08,ST,N,
0000373587,PRIVATE LANDLORD,900.00,Guaranteed Rent Scheme,Rent Payable,06 Nov 2023,2324/08,ST,N,
0000374086,PRIVATE LANDLORD,800.00,Guaranteed Rent Scheme,Rent Payable,24 Nov 2023,2324/08,ST,N,
0000373749,PRIVATE LANDLORD,800.00,Guaranteed Rent Scheme,Rent Payable,13 Nov 2023,2324/08,ST,N,
0000373741,PRIVATE LANDLORD,895.00,Guaranteed Rent Scheme,Rent Payable,13 Nov 2023,2324/08,ST,N,
0000373765,PRIVATE LANDLORD,"1,050.00",Guaranteed Rent Scheme,Rent Payable,14 Nov 2023,2324/08,SME,N,
0000373580,PRIVATE LANDLORD,880.00,Guaranteed Rent Scheme,Rent Payable,06 Nov 2023,2324/08,ST,N,
0000374645,PRIVATE LANDLORD,836.50,Guaranteed Rent Scheme,Rent Payable,18 Dec 2023,2324/09,ST,N,
0000374292,PRIVATE LANDLORD,"1,300.00",Guaranteed Rent Scheme,Rent Payable,04 Dec 2023,2324/09,ST,N,
0000374640,PRIVATE LANDLORD,669.00,Guaranteed Rent Scheme,Rent Payable,18 Dec 2023,2324/09,ST,N,
0000374443,PRIVATE LANDLORD,650.00,Guaranteed Rent Scheme,Rent Payable,08 Dec 2023,2324/09,ST,N,
0000374288,PRIVATE LANDLORD,620.00,Guaranteed Rent Scheme,Rent Payable,04 Dec 2023,2324/09,ST,N,
0000374289,PRIVATE LANDLORD,925.00,Guaranteed Rent Scheme,Rent Payable,04 Dec 2023,2324/09,ST,N,
0000374287,PRIVATE LANDLORD,900.00,Guaranteed Rent Scheme,Rent Payable,04 Dec 2023,2324/09,ST,N,
0000374692,PRIVATE LANDLORD,800.00,Guaranteed Rent Scheme,Rent Payable,19 Dec 2023,2324/09,ST,N,
0000374486,PRIVATE LANDLORD,800.00,Guaranteed Rent Scheme,Rent Payable,11 Dec 2023,2324/09,ST,N,
0000374444,PRIVATE LANDLORD,895.00,Guaranteed Rent Scheme,Rent Payable,08 Dec 2023,2324/09,ST,N,
0000374445,PRIVATE LANDLORD,"1,050.00",Guaranteed Rent Scheme,Rent Payable,08 Dec 2023,2324/09,SME,N,
0000374265,PRIVATE LANDLORD,880.00,Guaranteed Rent Scheme,Rent Payable,04 Dec 2023,2324/09,ST,N,
0000423689,PRIVATE LANDLORD,690.00,Guaranteed Rent Scheme,Rent Payable,18 Dec 2023,2324/09,ST,N,
0000423689,PRIVATE LANDLORD,"1,500.00",Guaranteed Rent Scheme,Misc Supplies & Services Costs,18 Dec 2023,2324/09,ST,N,
0000371543,PRO-FLAT SPECIALIST SERVICES LTD,"14,375.00",Building Services,Repairs,30 Aug 2023,2324/07,SME,N,
0000372037,PRO-FLAT SPECIALIST SERVICES LTD,"3,256.00",Building Services,Repairs,15 Sep 2023,2324/07,SME,N,
0000372363,PRO-FLAT SPECIALIST SERVICES LTD,"1,360.00",Building Services,Repairs,29 Sep 2023,2324/07,SME,N,
0000373176,PRO-FLAT SPECIALIST SERVICES LTD,"1,035.00",Building Services,Repairs,23 Oct 2023,2324/07,SME,N,
0000372417,PRO-FLAT SPECIALIST SERVICES LTD,"2,972.00",Building Services,Repairs,30 Sep 2023,2324/08,SME,N,
0000373054,PRO-FLAT SPECIALIST SERVICES LTD,"1,740.00",Building Services,Repairs,19 Oct 2023,2324/08,SME,N,
0000373468,PRO-FLAT SPECIALIST SERVICES LTD,"3,871.00",Building Services,Repairs,31 Oct 2023,2324/08,SME,N,
0000374070,PRO-FLAT SPECIALIST SERVICES LTD,"1,163.00",Building Services,Repairs,23 Nov 2023,2324/08,SME,N,
0000374467,PRO-FLAT SPECIALIST SERVICES LTD,750.00,Voids Maintenance,Repairs,07 Dec 2023,2324/09,SME,N,
0000423647,PROPERTY LETTING FURNITURE SOLUTIONS LTD,651.00,Household Support Grant,Furniture,25 Oct 2023,2324/07,SME,N,
0000372656,PUBLIC SEWER SERVICES,"2,064.52",Building Services,Repairs,30 Sep 2023,2324/08,SME,N,
0000374512,PUBLIC SEWER SERVICES,694.10,Voids Maintenance,Repairs,30 Nov 2023,2324/09,SME,N,
0000374518,PUBLIC SEWER SERVICES,879.02,Voids Maintenance,Repairs,30 Nov 2023,2324/09,SME,N,
0000373917,QUADIENT UK LIMITED,"1,500.00",Central Postal Serv,Postage,05 Nov 2023,2324/08,LGE,Y,50%
0000373122,R G CARTER SOUTHERN,"18,316.00",Strategic Investment Fund,Prof & Consultancy Fees,19 Oct 2023,2324/08,LGE,N,
0000373669,R G CARTER SOUTHERN,"20,804.58",Strategic Investment Fund,Prof & Consultancy Fees,08 Nov 2023,2324/09,LGE,N,
0000423549,REDGRAVE PARISH COUNCIL,"9,650.63",Current Liabilities,Parish Payments Available,06 Oct 2023,2324/07,SME,N,
0000372376,REED SPECIALIST RECRUITMENT LTD,932.03,Organisational Devt,Agency Staff,22 Sep 2023,2324/07,LGE,Y,50%
0000372901,REED SPECIALIST RECRUITMENT LTD,932.03,Organisational Devt,Agency Staff,06 Oct 2023,2324/07,LGE,Y,50%
0000373088,REED SPECIALIST RECRUITMENT LTD,932.03,Organisational Devt,Agency Staff,13 Oct 2023,2324/07,LGE,Y,50%
0000373325,REED SPECIALIST RECRUITMENT LTD,579.37,Organisational Devt,Agency Staff,20 Oct 2023,2324/07,LGE,Y,50%
0000373558,REED SPECIALIST RECRUITMENT LTD,932.03,Organisational Devt,Agency Staff,27 Oct 2023,2324/08,LGE,Y,50%
0000373756,REED SPECIALIST RECRUITMENT LTD,730.51,Organisational Devt,Agency Staff,03 Nov 2023,2324/08,LGE,Y,50%
0000374023,RESIDENTIALLY CHARTERED SURVEYORS,540.00,"Cedars Park C & D, Stowmarket",Prof & Consultancy Fees,08 Nov 2023,2324/08,SME,N,
0000374581,RESIDENTIALLY CHARTERED SURVEYORS,"2,280.00","Aspall Road, Debenham, Stowmar",Prof & Consultancy Fees,14 Dec 2023,2324/09,SME,N,
0000374561,REVOLUTION LANDSCAPES,880.00,New Bld/acquisition,BMBS Repairs Work,07 Dec 2023,2324/09,SME,N,
0000372591,RICHARD UTTING ASSOCIATES LLP,"4,312.50",Paddock House Eye,Prof & Consultancy Fees,05 Oct 2023,2324/07,SME,N,
0000372649,RICHARD UTTING ASSOCIATES LLP,"2,124.74",Stowmarket Middle School,Prof & Consultancy Fees,06 Oct 2023,2324/07,SME,N,
0000372672,RICHARD UTTING ASSOCIATES LLP,"2,587.50",Paddock House Eye,Prof & Consultancy Fees,05 Oct 2023,2324/07,SME,N,
0000372692,RICHARD UTTING ASSOCIATES LLP,"1,750.00","Green Road, Woolpit",Prof & Consultancy Fees,30 Sep 2023,2324/07,SME,N,
0000373308,RICHARD UTTING ASSOCIATES LLP,"7,022.00",Paddock House Eye,Prof & Consultancy Fees,30 Oct 2023,2324/07,SME,N,
0000372592,RICHARD UTTING ASSOCIATES LLP,575.00,Paddock House Eye,Prof & Consultancy Fees,05 Oct 2023,2324/08,SME,N,
0000373450,RICHARD UTTING ASSOCIATES LLP,"2,124.74",Stowmarket Middle School,Prof & Consultancy Fees,31 Oct 2023,2324/08,SME,N,
0000373845,RICHARD UTTING ASSOCIATES LLP,"2,124.74",Stowmarket Middle School,Prof & Consultancy Fees,30 May 2023,2324/08,SME,N,
0000374266,RICHARD UTTING ASSOCIATES LLP,"1,525.00","Harleston Corner, Harleston",Major Contracts,31 Oct 2023,2324/09,SME,N,
0000374318,RICHARD UTTING ASSOCIATES LLP,"4,864.00",Paddock House Eye,Prof & Consultancy Fees,30 Nov 2023,2324/09,SME,N,
0000374319,RICHARD UTTING ASSOCIATES LLP,"1,525.00","Harleston Corner, Harleston",Major Contracts,30 Nov 2023,2324/09,SME,N,
0000374358,RICHARD UTTING ASSOCIATES LLP,"2,124.74",Stowmarket Middle School,Prof & Consultancy Fees,30 Nov 2023,2324/09,SME,N,
0000373409,RICHARD WILLS TRAINING ASSOCIATES LTD,"2,150.00",Organisational Devt,Corporate Training,01 Nov 2023,2324/08,ST,Y,50%
0000373200,RICKINGHALL INFERIOR AND RICKINGHALL SUP,541.84,Street & Major Road Cleansing,Contributions to other Bodies,26 Oct 2023,2324/07,SME,N,
0000423640,RIX PETROLEUM (EAST ANGLIA) LTD,"6,482.00",Open Spaces,Plant & Vehicle Fuel,01 Oct 2023,2324/07,SME,N,
0000373006,ROCKTIME LTD,"60,000.00",Licensing Verso Project,Desktop Software,18 Oct 2023,2324/07,SME,Y,50%
0000374140,ROYAL MAIL,539.00,Central Postal Serv,Postage,20 Nov 2023,2324/08,LGE,Y,50%
0000372415,SACKERS LTD,"3,166.61",Building Services,Waste Disposal,30 Sep 2023,2324/07,SME,Y,50%
0000373383,SACKERS LTD,"2,497.93",Building Services,Waste Disposal,31 Oct 2023,2324/08,SME,Y,50%
0000374370,SACKERS LTD,"3,096.52",Building Services,Waste Disposal,30 Nov 2023,2324/09,SME,Y,50%
0000373163,SANDY LANE NURSERY,"9,688.00",Assets & Development,Repairs,24 Oct 2023,2324/08,SME,N,
0000373942,SATCHELL MORAN SOLICITORS LTD,"2,690.00",Building Services,Payments to Tenants,20 Nov 2023,2324/08,SME,N,
0000374748,SATCHELL MORAN SOLICITORS LTD,"5,000.00",Building Services,Payments to Tenants,20 Dec 2023,2324/09,SME,N,
0000374621,SCOTTISH POWER,869.80,HRA Strategic Property,Gas,25 Sep 2023,2324/09,LGE,N,
0000374860,SCOTTISH POWER,135.37,HRA Strategic Property,Electricity,16 Nov 2023,2324/09,LGE,N,
0000374860,SCOTTISH POWER,406.10,HRA Strategic Property,Gas,16 Nov 2023,2324/09,LGE,N,
0000373346,SEAGER HOME SOLUTIONS,"53,049.53",Kitchens/Bathrooms,Major Contracts,03 Oct 2023,2324/08,SME,N,
0000373981,SEAGER HOME SOLUTIONS,"68,921.55",Kitchens/Bathrooms,Major Contracts,09 Nov 2023,2324/08,SME,N,
0000374396,SEAGER HOME SOLUTIONS,"82,615.14",Kitchens/Bathrooms,Major Contracts,06 Dec 2023,2324/09,SME,N,
0000423651,SEFE ENERGY LIMITED,29.90,Headquarters General,Gas,15 Oct 2023,2324/07,LGE,N,
0000423651,SEFE ENERGY LIMITED,23.83,HRA Strategic Property,Gas,15 Oct 2023,2324/07,LGE,N,
0000423651,SEFE ENERGY LIMITED,"17,238.86",Leisure Contract,Gas,15 Oct 2023,2324/07,LGE,N,
0000423651,SEFE ENERGY LIMITED,"2,290.79",Sheltered Accommodation,Gas,15 Oct 2023,2324/07,LGE,N,
0000423651,SEFE ENERGY LIMITED,13.14,Temporary Accommodation,Gas,15 Oct 2023,2324/07,LGE,N,
0000423651,SEFE ENERGY LIMITED,122.61,Tenancy Services,Gas,15 Oct 2023,2324/07,LGE,N,
0000423679,SEFE ENERGY LIMITED,490.80,Creeting Rd Depot,Gas,16 Nov 2023,2324/08,LGE,Y,50%
0000423679,SEFE ENERGY LIMITED,30.90,Headquarters General,Gas,16 Nov 2023,2324/08,LGE,N,
0000423679,SEFE ENERGY LIMITED,57.81,HRA Strategic Property,Gas,16 Nov 2023,2324/08,LGE,N,
0000423679,SEFE ENERGY LIMITED,"7,424.42",Leisure Contract,Gas,16 Nov 2023,2324/08,LGE,N,
0000423679,SEFE ENERGY LIMITED,26.72,Open Spaces,Gas,16 Nov 2023,2324/08,LGE,N,
0000423679,SEFE ENERGY LIMITED,"14,669.01",Sheltered Accommodation,Gas,16 Nov 2023,2324/08,LGE,N,
0000423679,SEFE ENERGY LIMITED,700.87,Temporary Accommodation,Gas,16 Nov 2023,2324/08,LGE,N,
0000423679,SEFE ENERGY LIMITED,786.06,Tenancy Services,Gas,16 Nov 2023,2324/08,LGE,N,
0000423693,SEFE ENERGY LIMITED,745.63,Creeting Rd Depot,Gas,16 Dec 2023,2324/09,LGE,Y,50%
0000423693,SEFE ENERGY LIMITED,29.91,Headquarters General,Gas,16 Dec 2023,2324/09,LGE,N,
0000423693,SEFE ENERGY LIMITED,111.88,HRA Strategic Property,Gas,16 Dec 2023,2324/09,LGE,N,
0000423693,SEFE ENERGY LIMITED,"8,336.26",Leisure Contract,Gas,16 Dec 2023,2324/09,LGE,N,
0000423693,SEFE ENERGY LIMITED,13.14,Open Spaces,Gas,16 Dec 2023,2324/09,LGE,N,
0000423693,SEFE ENERGY LIMITED,"17,218.83",Sheltered Accommodation,Gas,16 Dec 2023,2324/09,LGE,N,
0000423693,SEFE ENERGY LIMITED,577.79,Temporary Accommodation,Gas,16 Dec 2023,2324/09,LGE,N,
0000423693,SEFE ENERGY LIMITED,942.55,Tenancy Services,Gas,16 Dec 2023,2324/09,LGE,N,
0000372580,SEQUENCE UK LTD (WILLIAM H BROWN),"1,500.00","The Broadway, Badwell Ash",Prof & Consultancy Fees,05 Oct 2023,2324/07,LGE,N,
0000373047,SEQUENCE UK LTD (WILLIAM H BROWN),"1,500.00","Cedars Park C & D, Stowmarket",Prof & Consultancy Fees,13 Oct 2023,2324/07,LGE,N,
0000373091,SEQUENCE UK LTD (WILLIAM H BROWN),"1,500.00",Needham Market Middle School,Prof & Consultancy Fees,20 Oct 2023,2324/07,LGE,N,
0000373246,SEQUENCE UK LTD (WILLIAM H BROWN),"1,500.00","Cedars Park C & D, Stowmarket",Prof & Consultancy Fees,24 Oct 2023,2324/07,LGE,N,
0000373274,SEQUENCE UK LTD (WILLIAM H BROWN),"1,500.00",Needham Market Middle School,Prof & Consultancy Fees,26 Oct 2023,2324/07,LGE,N,
0000373398,SEQUENCE UK LTD (WILLIAM H BROWN),"1,500.00",Needham Market Middle School,Prof & Consultancy Fees,31 Oct 2023,2324/08,LGE,N,
0000374194,SEQUENCE UK LTD (WILLIAM H BROWN),"1,500.00",Needham Market Middle School,Prof & Consultancy Fees,29 Nov 2023,2324/08,LGE,N,
0000374308,SEQUENCE UK LTD (WILLIAM H BROWN),"1,500.00","Cedars Park C & D, Stowmarket",Prof & Consultancy Fees,04 Dec 2023,2324/09,LGE,N,
0000374460,SEQUENCE UK LTD (WILLIAM H BROWN),"1,500.00","Cedars Park C & D, Stowmarket",Prof & Consultancy Fees,07 Dec 2023,2324/09,LGE,N,
0000374479,SEQUENCE UK LTD (WILLIAM H BROWN),"1,500.00",Eves Meadow Haughley S106,Prof & Consultancy Fees,08 Dec 2023,2324/09,LGE,N,
0000374480,SEQUENCE UK LTD (WILLIAM H BROWN),"1,500.00",Needham Market Middle School,Prof & Consultancy Fees,08 Dec 2023,2324/09,LGE,N,
0000372370,SERCO LTD,"10,000.00",Jnt Waste Contract,Plant & Vehicle Fuel,29 Sep 2023,2324/07,LGE,Y,50%
0000372645,SERCO LTD,"15,261.33",Open Spaces,Plant & Vehicle Fuel,06 Oct 2023,2324/07,LGE,Y,50%
0000372646,SERCO LTD,"4,587.00",Domestic Waste,Refuse Contract,06 Oct 2023,2324/07,LGE,Y,50%
0000372647,SERCO LTD,"351,945.86",Domestic Waste,Refuse Contract,06 Oct 2023,2324/07,LGE,Y,47%
0000372647,SERCO LTD,"97,030.98",Garden Waste,Refuse Contract,06 Oct 2023,2324/07,LGE,Y,48%
0000372647,SERCO LTD,"27,482.56",Trade Waste,Refuse Contract,06 Oct 2023,2324/07,LGE,Y,55%
0000372648,SERCO LTD,"10,000.00",Jnt Waste Contract,Plant & Vehicle Fuel,06 Oct 2023,2324/07,LGE,Y,50%
0000373633,SERCO LTD,"16,806.70",Open Spaces,Plant & Vehicle Fuel,07 Nov 2023,2324/08,LGE,Y,50%
0000373639,SERCO LTD,864.92,Domestic Waste,Refuse Contract,07 Nov 2023,2324/08,LGE,Y,50%
0000373640,SERCO LTD,"10,000.00",Jnt Waste Contract,Plant & Vehicle Fuel,07 Nov 2023,2324/08,LGE,Y,50%
0000373641,SERCO LTD,"4,587.00",Domestic Waste,Refuse Contract,07 Nov 2023,2324/08,LGE,Y,50%
0000373642,SERCO LTD,"351,945.86",Domestic Waste,Refuse Contract,07 Nov 2023,2324/08,LGE,Y,47%
0000373642,SERCO LTD,"97,030.98",Garden Waste,Refuse Contract,07 Nov 2023,2324/08,LGE,Y,48%
0000373642,SERCO LTD,"27,482.56",Trade Waste,Refuse Contract,07 Nov 2023,2324/08,LGE,Y,55%
0000374362,SERCO LTD,"16,754.25",Open Spaces,Plant & Vehicle Fuel,05 Dec 2023,2324/09,LGE,Y,50%
0000374363,SERCO LTD,"4,587.00",Domestic Waste,Refuse Contract,05 Dec 2023,2324/09,LGE,Y,50%
0000374395,SERCO LTD,"351,945.86",Domestic Waste,Refuse Contract,05 Dec 2023,2324/09,LGE,Y,47%
0000374395,SERCO LTD,"97,030.98",Trade Waste,Refuse Contract,05 Dec 2023,2324/09,LGE,Y,48%
0000374395,SERCO LTD,"27,482.56",Garden Waste,Refuse Contract,05 Dec 2023,2324/09,LGE,Y,55%
0000374406,SERCO LTD,"10,000.00",Jnt Waste Contract,Plant & Vehicle Fuel,06 Dec 2023,2324/09,LGE,Y,50%
0000374470,SHELTON DEVELOPMENT SEVICES LTD,"3,324.00",Assets & Development,Line of Business Applications,08 Dec 2023,2324/09,SME,Y,50%
0000372795,SIGNIX LTD,"5,678.57",Building Services,Repairs,05 Oct 2023,2324/07,SME,N,
0000373237,SIGNIX LTD,"3,648.34",Electrical Works,Improvements,25 Oct 2023,2324/08,SME,N,
0000373811,SIGNIX LTD,"58,470.60",Rewiring,Repairs,01 Nov 2023,2324/08,SME,N,
0000373812,SIGNIX LTD,"72,157.30",Rewiring,Repairs,06 Nov 2023,2324/08,SME,N,
0000373955,SIGNIX LTD,"98,696.34",Rewiring,Repairs,13 Nov 2023,2324/08,SME,N,
0000374109,SIGNIX LTD,"53,818.84",Rewiring,Repairs,01 Nov 2023,2324/08,SME,N,
0000374132,SIGNIX LTD,"80,912.76",Rewiring,Repairs,27 Nov 2023,2324/08,SME,N,
0000373296,SIGNIX LTD,"5,087.10",Smoke Alarms (Bbgh Standard),Major Contracts,30 Oct 2023,2324/09,SME,N,
0000373320,SIGNIX LTD,"81,579.23",Smoke Alarms (Bbgh Standard),Repairs,30 Oct 2023,2324/09,SME,N,
0000374281,SIGNIX LTD,"71,087.52",Rewiring,Repairs,04 Dec 2023,2324/09,SME,N,
0000373494,SIGNS FOR YOU LTD,749.50,Endeavour House - HQ,Stationery,25 Sep 2023,2324/08,SME,Y,50%
0000373751,SLM COMMUNITY LEISURE CHARITABLE TRUST,"3,725.76",Grants & Contrbns,Contributions & Donations,10 Nov 2023,2324/08,SME,N,
0000373247,SOLACE GROUP LTD,"3,973.92",Cost of Democracy,Member's Courses & Conferences,26 Oct 2023,2324/07,SME,Y,50%
0000372600,SPOT WELLBEING,"15,000.00",Community Wellbeing,Contributions & Donations,09 Oct 2023,2324/07,SME,N,
0000373611,SSI SCHAEFER PLASTICS UK LTD,"20,697.60",Bins,Bins,07 Nov 2023,2324/08,SME,N,
0000372567,STAGE EVENT SECURITY LTD,"1,440.00",Open Spaces,Misc Premises Costs,30 Sep 2023,2324/07,SME,N,
0000372334,STANNAH STAIRLIFTS LTD,"2,469.00",Council House Adaptions,Improvements,28 Sep 2023,2324/07,LGE,N,
0000373283,STANNAH STAIRLIFTS LTD,"2,469.00",Council House Adaptions,Improvements,27 Oct 2023,2324/07,LGE,N,
0000373543,STEVEN JAMES ALLEN LTD,"1,200.00",Building Services,Repairs,11 Feb 2023,2324/08,SME,N,
0000373662,STEVEN JAMES ALLEN LTD,"6,446.73",Planned Maint - Ext Painting,External Painting,11 Aug 2023,2324/08,SME,N,
0000423550,STONHAM PARVA PARISH COUNCIL,"3,993.94",Current Liabilities,Parish Payments Available,06 Oct 2023,2324/07,SME,N,
0000423623,STOWMARKET COMMUNITY SPORTS & SOCIAL CLU,590.39,Bring Sites,Contributions & Donations,11 Oct 2023,2324/07,SME,N,
0000373797,STOWMARKET LAWN TENNIS CLUB,"10,000.00",Community Fund Projects-Grants,Grants,14 Nov 2023,2324/08,SME,N,
0000373808,STOWMARKET LAWN TENNIS CLUB,"4,462.89",S106 Open Spaces Expenditure,Grants,14 Nov 2023,2324/08,SME,N,
0000374020,STOWMARKET MEADLANDS MENS SHED,"1,500.00",Grants & Contrbns,Contributions & Donations,21 Nov 2023,2324/08,SME,N,
0000372717,STOWMARKET TOWN COUNCIL,"31,390.23",S106 Open Spaces Expenditure,Grants,10 Oct 2023,2324/07,SME,N,
0000423551,STOWMARKET TOWN COUNCIL,"10,942.07",Current Liabilities,Parish Payments Available,06 Oct 2023,2324/07,SME,N,
0000373584,STOWUPLAND LOCAL HISTORY GROUP,600.00,Grants & Contrbns,Contributions & Donations,06 Nov 2023,2324/08,SME,N,
0000373202,STOWUPLAND PARISH COUNCIL,"1,354.60",Street & Major Road Cleansing,Contributions to other Bodies,26 Oct 2023,2324/07,SME,N,
0000423552,STOWUPLAND PARISH COUNCIL,"42,913.39",Current Liabilities,Parish Payments Available,06 Oct 2023,2324/07,SME,N,
0000423633,STOWUPLAND VILLAGE HALL,"3,135.89",Bring Sites,Contributions & Donations,11 Oct 2023,2324/07,SME,N,
0000372284,STRADBROKE PARISH COUNCIL,"15,012.00",CIL Funded REFCUS,Grants,26 Sep 2023,2324/07,SME,N,
0000373203,STRADBROKE PARISH COUNCIL,"1,151.41",Street & Major Road Cleansing,Contributions to other Bodies,26 Oct 2023,2324/07,SME,N,
0000372946,STREETSPACE LIMITED,"25,432.00",Sheltered Units-Gen.Imp,Major Contracts,17 Oct 2023,2324/07,SME,N,
0000372393,STUDLEY CAPITAL LIMITED,712.50,MSM Feasibility & Match Fundin,Prof & Consultancy Fees,02 Oct 2023,2324/07,ST,N,
0000372445,STUDLEY CAPITAL LIMITED,950.00,MSM Skills & Innovation Centre,Prof & Consultancy Fees,02 Oct 2023,2324/07,ST,N,
0000373449,STUDLEY CAPITAL LIMITED,"2,493.75",MSM Skills & Innovation Centre,Prof & Consultancy Fees,01 Nov 2023,2324/08,ST,N,
0000372148,SUDBURY PRINT GROUP LTD,525.00,Sheltered General Mgmt,Misc Supplies & Services Costs,15 Sep 2023,2324/07,SME,Y,50%
0000372389,SUFFOLK CONTEMPORARY DANCE,511.11,Holiday Activity Fund,"Equipment, Tools & Materials",26 Sep 2023,2324/07,ST,N,
0000371805,SUFFOLK COUNTY COUNCIL,"5,722.00",Organisational Devt,Recruitment,06 Sep 2023,2324/07,LGE,Y,50%
0000372479,SUFFOLK COUNTY COUNCIL,"20,500.00",Endeavour House - HQ,Operating Lease Payments,01 Oct 2023,2324/07,LGE,Y,50%
0000372479,SUFFOLK COUNTY COUNCIL,"26,875.00",Endeavour House - HQ,Contracted Services,01 Oct 2023,2324/07,LGE,Y,50%
0000372480,SUFFOLK COUNTY COUNCIL,"4,557.00",Stowmarket CAP,Operating Lease Payments,01 Oct 2023,2324/07,LGE,Y,50%
0000372480,SUFFOLK COUNTY COUNCIL,"3,307.00",Stowmarket CAP,Contracted Services,01 Oct 2023,2324/07,LGE,Y,50%
0000372637,SUFFOLK COUNTY COUNCIL,"2,517.45",Organisational Devt,Recruitment,05 Oct 2023,2324/07,LGE,Y,50%
0000372682,SUFFOLK COUNTY COUNCIL,"38,560.00",Community Wellbeing,Contributions & Donations,20 Sep 2023,2324/07,LGE,N,
0000372716,SUFFOLK COUNTY COUNCIL,"421,298.00",CIL Funded REFCUS,Grants,10 Oct 2023,2324/07,LGE,N,
0000372761,SUFFOLK COUNTY COUNCIL,"27,751.22",Domestic Waste,MRF Disposal,10 Oct 2023,2324/07,LGE,N,
0000372761,SUFFOLK COUNTY COUNCIL,"33,838.85",Garden Waste,Garden Waste Disposal,10 Oct 2023,2324/07,LGE,N,
0000372793,SUFFOLK COUNTY COUNCIL,"1,400.00",Land Chgs,Contracted Services,11 Oct 2023,2324/07,LGE,N,
0000372915,SUFFOLK COUNTY COUNCIL,"1,335.94",General Rechargeable Works,Misc Supplies & Services Costs,13 Oct 2023,2324/07,LGE,N,
0000373251,SUFFOLK COUNTY COUNCIL,"1,047.00",Organisational Devt,Recruitment,25 Oct 2023,2324/07,LGE,Y,50%
0000373368,SUFFOLK COUNTY COUNCIL,"1,790.00",Pre App Charging,Prof & Consultancy Fees,30 Oct 2023,2324/08,LGE,N,
0000373415,SUFFOLK COUNTY COUNCIL,785.00,Organisational Devt,Recruitment,31 Oct 2023,2324/08,LGE,Y,50%
0000373831,SUFFOLK COUNTY COUNCIL,"25,694.81",Domestic Waste,MRF Disposal,15 Nov 2023,2324/08,LGE,N,
0000373831,SUFFOLK COUNTY COUNCIL,"31,320.09",Garden Waste,Garden Waste Disposal,15 Nov 2023,2324/08,LGE,N,
0000374120,SUFFOLK COUNTY COUNCIL,"1,330.00",Land Chgs,Contracted Services,24 Nov 2023,2324/08,LGE,N,
0000374207,SUFFOLK COUNTY COUNCIL,"64,614.26",Trade Waste,Trade Waste Disposal,29 Nov 2023,2324/09,LGE,N,
0000374236,SUFFOLK COUNTY COUNCIL,"2,225.00",Organisational Devt,Recruitment,30 Nov 2023,2324/09,LGE,Y,50%
0000374337,SUFFOLK COUNTY COUNCIL,"1,781,462.00",CIL Funded REFCUS,Grants,05 Dec 2023,2324/09,LGE,N,
0000374379,SUFFOLK COUNTY COUNCIL,"4,023.00",Organisational Devt,Recruitment,05 Dec 2023,2324/09,LGE,Y,50%
0000374380,SUFFOLK COUNTY COUNCIL,"2,575.50",Organisational Devt,Recruitment,05 Dec 2023,2324/09,LGE,Y,50%
0000374381,SUFFOLK COUNTY COUNCIL,"2,878.50",Taxi & Private Hire Licensing,Prof & Consultancy Fees,05 Dec 2023,2324/09,LGE,N,
0000374124,SUFFOLK COUNTY COUNCIL,-594.00,Organisational Devt,Recruitment,14 Nov 2023,2324/09,LGE,Y,50%
0000372190,SUFFOLK DOORS & WINDOWS LTD,"3,760.00",Building Services,Repairs,18 Sep 2023,2324/07,SME,N,
0000372229,SUFFOLK DOORS & WINDOWS LTD,"1,870.00",Building Services,Repairs,25 Sep 2023,2324/07,SME,N,
0000372296,SUFFOLK DOORS & WINDOWS LTD,"1,020.00",Building Services,Repairs,27 Sep 2023,2324/07,SME,N,
0000373673,SUFFOLK DOORS & WINDOWS LTD,"2,400.00",Building Services,Repairs,09 Nov 2023,2324/08,SME,N,
0000374053,SUFFOLK FOOD HALL LTD,"1,039.60",Bldg Regs Chargeable Serv,Advertising&mkting (non-staff),20 Nov 2023,2324/08,SME,Y,45%
0000374627,SUFFOLK MOBILITY SOLUTIONS LTD,"12,940.00",Mand Disabled Facilities Grant,Grants,12 Dec 2023,2324/09,SME,N,
0000372989,SUFFOLK POWER EQUIPMENT,948.87,Open Spaces,"Equipment, Tools & Materials",18 Oct 2023,2324/07,ST,N,
0000373976,SUFFOLK POWER EQUIPMENT,950.29,Open Spaces,"Equipment, Tools & Materials",20 Nov 2023,2324/08,ST,N,
0000373979,SUFFOLK POWER EQUIPMENT,"1,224.00",Open Spaces,"Equipment, Tools & Materials",20 Nov 2023,2324/08,ST,N,
0000372825,SUFFOLK TREE SERVICES LTD,700.00,Amenity Areas,Tree felling/maintenance,12 Oct 2023,2324/07,SME,N,
0000373736,SUFFOLK TREE SERVICES LTD,600.00,Building Services,Repairs,13 Nov 2023,2324/08,SME,N,
0000374221,SUPERSTRUCTURES LTD,650.00,Building Services,Repairs,30 Nov 2023,2324/09,SME,N,
0000372858,SUREFIX,900.00,Building Services,Repairs,12 Oct 2023,2324/07,SME,N,
0000372984,SUREFIX,975.00,Building Services,Repairs,16 Oct 2023,2324/07,SME,N,
0000373029,SUREFIX,900.00,Building Services,Repairs,19 Oct 2023,2324/07,SME,N,
0000373030,SUREFIX,900.00,Building Services,Repairs,19 Oct 2023,2324/07,SME,N,
0000372974,SUREFIX,"1,025.00",Building Services,Repairs,19 Sep 2023,2324/08,SME,N,
0000374077,SUREFIX,900.00,Building Services,Repairs,24 Nov 2023,2324/08,SME,N,
0000374078,SUREFIX,900.00,Building Services,Repairs,24 Nov 2023,2324/08,SME,N,
0000374449,SUREFIX,"1,025.00",Building Services,Repairs,05 Dec 2023,2324/09,SME,N,
0000372923,SWITCH PROPERTY SERVICES LTD,695.00,Guaranteed Rent Scheme,Rent Payable,16 Oct 2023,2324/07,SME,N,
0000373766,SWITCH PROPERTY SERVICES LTD,695.00,Guaranteed Rent Scheme,Rent Payable,14 Nov 2023,2324/08,SME,N,
0000374447,SWITCH PROPERTY SERVICES LTD,695.00,Guaranteed Rent Scheme,Rent Payable,08 Dec 2023,2324/09,SME,N,
0000373750,SYLEHAM & WINGFIELD VILLAGE HALL COMMITT,"2,012.06",Community Fund Projects-Grants,Grants,10 Nov 2023,2324/08,SME,N,
0000373938,SYLEHAM & WINGFIELD VILLAGE HALL COMMITT,"4,387.94",S106 Open Spaces Expenditure,Grants,17 Nov 2023,2324/08,SME,N,
0000373295,TANKCHANGE LTD,"2,450.00",Central Heating,Improvements,25 Oct 2023,2324/08,SME,N,
0000373899,TAYLORS FLOORING & FURNITURE,"10,620.00",Sheltered Accommodation,"Equipment, Tools & Materials",18 Nov 2023,2324/08,SME,N,
0000374104,TELEFONICA UK LIMITED - O2,"-1,001.43",ICT,Telephone Costs,27 Nov 2023,2324/08,LGE,Y,50%
0000373369,TEMPLE GROUP LTD,"3,885.00",SHELF Project,Prof & Consultancy Fees,24 Oct 2023,2324/08,SME,N,
0000373370,TEMPLE GROUP LTD,"1,725.00",SHELF Project,Prof & Consultancy Fees,25 Oct 2023,2324/08,SME,N,
0000374647,THE COPYRIGHT LICENSING AGENCY LTD,"1,082.76",Communications,Subscriptions,03 Oct 2023,2324/09,LGE,Y,50%
0000372694,THE FOOD MUSEUM LTD,"1,594.44",Holiday Activity Fund,"Equipment, Tools & Materials",31 Aug 2023,2324/07,SME,N,
0000372288,THE HOUSING OMBUDSMAN,"19,107.25",Regulatory & Support Services,Subscriptions,04 May 2023,2324/07,LGE,N,
0000372388,THE KINETIC SCIENCE FOUNDATION,"5,599.34",Holiday Activity Fund,"Equipment, Tools & Materials",15 Sep 2023,2324/07,SME,N,
0000374126,THE LEARNING & DEVELOPMENT COMPANY,"6,896.18",Organisational Devt,Corporate Training,15 Oct 2023,2324/08,SME,Y,50%
0000374127,THE LEARNING & DEVELOPMENT COMPANY,"6,896.18",Organisational Devt,Corporate Training,15 Nov 2023,2324/08,SME,Y,50%
0000372598,THE MIX STOWMARKET LTD,"132,000.00",Youth Social Prescribing,Contracted Services,09 Oct 2023,2324/07,SME,N,
0000372957,THE MIX STOWMARKET LTD,"15,000.00",Shared Prosperity Fund,Contributions & Donations,17 Oct 2023,2324/07,SME,N,
0000372822,THE MYERS BRIGGS COMPANY LTD,693.00,Organisational Devt,Corporate Training,09 Oct 2023,2324/07,SME,Y,50%
0000372315,THE OYSTER PARTNERSHIP LTD,"3,650.00",HRA Strategic Property,Agency Staff,27 Sep 2023,2324/07,SME,Y,50%
0000372316,THE OYSTER PARTNERSHIP LTD,"2,101.70",Building Servs Tech Staff,Agency Staff,27 Sep 2023,2324/07,SME,Y,50%
0000372317,THE OYSTER PARTNERSHIP LTD,"1,120.00",Building Services,Agency Staff,27 Sep 2023,2324/07,SME,Y,50%
0000372318,THE OYSTER PARTNERSHIP LTD,"2,500.00",Financial Servs,Agency Staff,27 Sep 2023,2324/07,SME,Y,50%
0000372319,THE OYSTER PARTNERSHIP LTD,"1,399.05",Building Servs Tech Staff,Agency Staff,27 Sep 2023,2324/07,SME,Y,50%
0000372320,THE OYSTER PARTNERSHIP LTD,"2,656.25",Building Servs Tech Staff,Agency Staff,27 Sep 2023,2324/07,SME,Y,50%
0000372324,THE OYSTER PARTNERSHIP LTD,"1,650.00",Financial Servs,Agency Staff,28 Sep 2023,2324/07,SME,Y,50%
0000372325,THE OYSTER PARTNERSHIP LTD,"2,750.00",Financial Servs,Agency Staff,28 Sep 2023,2324/07,SME,Y,50%
0000372326,THE OYSTER PARTNERSHIP LTD,"2,200.00",Financial Servs,Agency Staff,28 Sep 2023,2324/07,SME,Y,50%
0000372327,THE OYSTER PARTNERSHIP LTD,"1,650.00",Financial Servs,Agency Staff,28 Oct 2023,2324/07,SME,Y,50%
0000372328,THE OYSTER PARTNERSHIP LTD,"1,650.00",Financial Servs,Agency Staff,28 Sep 2023,2324/07,SME,Y,50%
0000372329,THE OYSTER PARTNERSHIP LTD,"2,750.00",Financial Servs,Agency Staff,28 Sep 2023,2324/07,SME,Y,50%
0000372330,THE OYSTER PARTNERSHIP LTD,"2,750.00",Financial Servs,Agency Staff,28 Sep 2023,2324/07,SME,Y,50%
0000372331,THE OYSTER PARTNERSHIP LTD,550.00,Financial Servs,Agency Staff,28 Sep 2023,2324/07,SME,Y,50%
0000372335,THE OYSTER PARTNERSHIP LTD,"1,607.25",Building Services,Agency Staff,27 Sep 2023,2324/07,SME,Y,50%
0000372503,THE OYSTER PARTNERSHIP LTD,"2,500.00",Financial Servs,Agency Staff,04 Oct 2023,2324/07,SME,Y,50%
0000372504,THE OYSTER PARTNERSHIP LTD,"3,650.00",HRA General Management,Agency Staff,04 Oct 2023,2324/07,SME,Y,50%
0000372505,THE OYSTER PARTNERSHIP LTD,"2,016.10",Building Servs Tech Staff,Agency Staff,04 Oct 2023,2324/07,SME,Y,50%
0000372506,THE OYSTER PARTNERSHIP LTD,"1,807.65",Building Servs Tech Staff,Agency Staff,04 Oct 2023,2324/07,SME,Y,50%
0000372507,THE OYSTER PARTNERSHIP LTD,"2,656.25",Building Servs Tech Staff,Agency Staff,04 Oct 2023,2324/07,SME,Y,50%
0000372508,THE OYSTER PARTNERSHIP LTD,"1,120.00",Building Services,Agency Staff,04 Oct 2023,2324/07,SME,Y,50%
0000372509,THE OYSTER PARTNERSHIP LTD,"1,607.25",Building Services,Agency Staff,04 Oct 2023,2324/07,SME,Y,50%
0000372749,THE OYSTER PARTNERSHIP LTD,700.00,Building Services,Agency Staff,11 Oct 2023,2324/07,SME,Y,50%
0000372750,THE OYSTER PARTNERSHIP LTD,"3,650.00",HRA General Management,Agency Staff,11 Oct 2023,2324/07,SME,Y,50%
0000372752,THE OYSTER PARTNERSHIP LTD,"2,031.05",Building Servs Tech Staff,Agency Staff,11 Oct 2023,2324/07,SME,Y,50%
0000372753,THE OYSTER PARTNERSHIP LTD,"1,607.25",Building Services,Agency Staff,11 Oct 2023,2324/07,SME,Y,50%
0000372754,THE OYSTER PARTNERSHIP LTD,"2,500.00",Financial Servs,Agency Staff,11 Oct 2023,2324/07,SME,Y,50%
0000372755,THE OYSTER PARTNERSHIP LTD,"1,800.00",Building Servs Tech Staff,Agency Staff,11 Oct 2023,2324/07,SME,Y,50%
0000372993,THE OYSTER PARTNERSHIP LTD,923.25,Building Services,Agency Staff,18 Oct 2023,2324/07,SME,Y,50%
0000372994,THE OYSTER PARTNERSHIP LTD,"2,277.00",Building Servs Tech Staff,Agency Staff,18 Oct 2023,2324/07,SME,Y,50%
0000372995,THE OYSTER PARTNERSHIP LTD,"1,607.25",Building Services,Agency Staff,18 Oct 2023,2324/07,SME,Y,50%
0000372996,THE OYSTER PARTNERSHIP LTD,923.25,Building Services,Agency Staff,18 Oct 2023,2324/07,SME,Y,50%
0000372997,THE OYSTER PARTNERSHIP LTD,"3,650.00",HRA General Management,Agency Staff,18 Oct 2023,2324/07,SME,Y,50%
0000372998,THE OYSTER PARTNERSHIP LTD,"2,250.00",Financial Servs,Agency Staff,18 Oct 2023,2324/07,SME,Y,50%
0000372999,THE OYSTER PARTNERSHIP LTD,"2,036.90",Building Servs Tech Staff,Agency Staff,18 Oct 2023,2324/07,SME,Y,50%
0000372751,THE OYSTER PARTNERSHIP LTD,"2,656.25",Building Servs Tech Staff,Agency Staff,11 Oct 2023,2324/08,SME,Y,50%
0000372992,THE OYSTER PARTNERSHIP LTD,"2,656.25",Building Servs Tech Staff,Agency Staff,18 Oct 2023,2324/08,SME,Y,50%
0000373220,THE OYSTER PARTNERSHIP LTD,"1,607.25",Building Services,Agency Staff,25 Oct 2023,2324/08,SME,Y,50%
0000373221,THE OYSTER PARTNERSHIP LTD,"1,120.00",Building Services,Agency Staff,25 Oct 2023,2324/08,SME,Y,50%
0000373222,THE OYSTER PARTNERSHIP LTD,"2,021.60",Building Servs Tech Staff,Agency Staff,25 Oct 2023,2324/08,SME,Y,50%
0000373224,THE OYSTER PARTNERSHIP LTD,"2,750.00",Financial Servs,Agency Staff,25 Oct 2023,2324/08,SME,Y,50%
0000373225,THE OYSTER PARTNERSHIP LTD,"3,650.00",HRA General Management,Agency Staff,25 Oct 2023,2324/08,SME,Y,50%
0000373226,THE OYSTER PARTNERSHIP LTD,"2,656.25",Building Servs Tech Staff,Agency Staff,25 Oct 2023,2324/08,SME,Y,50%
0000373228,THE OYSTER PARTNERSHIP LTD,"2,278.80",Building Servs Tech Staff,Agency Staff,25 Oct 2023,2324/08,SME,Y,50%
0000373422,THE OYSTER PARTNERSHIP LTD,"2,000.00",Financial Servs,Agency Staff,01 Nov 2023,2324/08,SME,Y,50%
0000373423,THE OYSTER PARTNERSHIP LTD,"3,650.00",HRA General Management,Agency Staff,01 Nov 2023,2324/08,SME,Y,50%
0000373424,THE OYSTER PARTNERSHIP LTD,"2,295.45",Building Servs Tech Staff,Agency Staff,01 Nov 2023,2324/08,SME,Y,50%
0000373425,THE OYSTER PARTNERSHIP LTD,"1,120.00",Building Services,Agency Staff,01 Nov 2023,2324/08,SME,Y,50%
0000373426,THE OYSTER PARTNERSHIP LTD,"2,656.25",Building Servs Tech Staff,Agency Staff,01 Nov 2023,2324/08,SME,Y,50%
0000373427,THE OYSTER PARTNERSHIP LTD,"2,042.75",Building Servs Tech Staff,Agency Staff,01 Nov 2023,2324/08,SME,Y,50%
0000373654,THE OYSTER PARTNERSHIP LTD,"3,650.00",HRA General Management,Agency Staff,08 Nov 2023,2324/08,SME,Y,50%
0000373655,THE OYSTER PARTNERSHIP LTD,"2,500.00",Financial Servs,Agency Staff,08 Nov 2023,2324/08,SME,Y,50%
0000373656,THE OYSTER PARTNERSHIP LTD,"1,120.00",Building Services,Agency Staff,08 Nov 2023,2324/08,SME,Y,50%
0000373657,THE OYSTER PARTNERSHIP LTD,"2,656.25",Building Servs Tech Staff,Agency Staff,08 Nov 2023,2324/08,SME,Y,50%
0000373658,THE OYSTER PARTNERSHIP LTD,"1,607.25",Building Services,Agency Staff,08 Nov 2023,2324/08,SME,Y,50%
0000373659,THE OYSTER PARTNERSHIP LTD,"2,023.85",Building Servs Tech Staff,Agency Staff,08 Nov 2023,2324/08,SME,Y,50%
0000373677,THE OYSTER PARTNERSHIP LTD,"1,550.00",Building Services,Agency Staff,08 Nov 2023,2324/08,SME,Y,50%
0000373813,THE OYSTER PARTNERSHIP LTD,"2,200.00",Financial Servs,Agency Staff,15 Nov 2023,2324/08,SME,Y,50%
0000373816,THE OYSTER PARTNERSHIP LTD,"1,120.00",Building Services,Agency Staff,15 Nov 2023,2324/08,SME,Y,50%
0000373817,THE OYSTER PARTNERSHIP LTD,"2,200.00",Financial Servs,Agency Staff,15 Nov 2023,2324/08,SME,Y,50%
0000373819,THE OYSTER PARTNERSHIP LTD,"1,607.25",Building Services,Agency Staff,15 Nov 2023,2324/08,SME,Y,50%
0000373820,THE OYSTER PARTNERSHIP LTD,"3,650.00",HRA General Management,Agency Staff,15 Nov 2023,2324/08,SME,Y,50%
0000373821,THE OYSTER PARTNERSHIP LTD,"2,500.00",Financial Servs,Agency Staff,15 Nov 2023,2324/08,SME,Y,50%
0000373822,THE OYSTER PARTNERSHIP LTD,"1,550.00",Building Services,Agency Staff,15 Nov 2023,2324/08,SME,Y,50%
0000373823,THE OYSTER PARTNERSHIP LTD,"1,650.00",Financial Servs,Agency Staff,15 Nov 2023,2324/08,SME,Y,50%
0000373824,THE OYSTER PARTNERSHIP LTD,"2,656.25",Building Servs Tech Staff,Agency Staff,15 Nov 2023,2324/08,SME,Y,50%
0000373840,THE OYSTER PARTNERSHIP LTD,"2,064.80",Building Servs Tech Staff,Agency Staff,15 Nov 2023,2324/08,SME,Y,50%
0000373902,THE OYSTER PARTNERSHIP LTD,"1,350.00",Building Servs Tech Staff,Agency Staff,15 Nov 2023,2324/08,SME,Y,50%
0000374035,THE OYSTER PARTNERSHIP LTD,"1,120.00",Building Services,Agency Staff,22 Nov 2023,2324/08,SME,Y,50%
0000374036,THE OYSTER PARTNERSHIP LTD,"1,607.25",Building Services,Agency Staff,22 Nov 2023,2324/08,SME,Y,50%
0000374039,THE OYSTER PARTNERSHIP LTD,"5,110.00",HRA General Management,Agency Staff,22 Nov 2023,2324/08,SME,Y,50%
0000374040,THE OYSTER PARTNERSHIP LTD,"2,500.00",Financial Servs,Agency Staff,22 Nov 2023,2324/08,SME,Y,50%
0000374041,THE OYSTER PARTNERSHIP LTD,"2,656.25",Building Servs Tech Staff,Agency Staff,22 Nov 2023,2324/08,SME,Y,50%
0000374042,THE OYSTER PARTNERSHIP LTD,"1,240.00",Building Services,Agency Staff,22 Nov 2023,2324/08,SME,Y,50%
0000374037,THE OYSTER PARTNERSHIP LTD,"2,047.25",Building Servs Tech Staff,Agency Staff,22 Nov 2023,2324/09,SME,Y,50%
0000374038,THE OYSTER PARTNERSHIP LTD,"2,276.55",Building Servs Tech Staff,Agency Staff,22 Nov 2023,2324/09,SME,Y,50%
0000374174,THE OYSTER PARTNERSHIP LTD,"1,148.00",Building Services,Agency Staff,29 Nov 2023,2324/09,SME,Y,50%
0000374175,THE OYSTER PARTNERSHIP LTD,"2,656.25",Building Servs Tech Staff,Agency Staff,29 Nov 2023,2324/09,SME,Y,50%
0000374176,THE OYSTER PARTNERSHIP LTD,"2,500.00",Financial Servs,Agency Staff,29 Nov 2023,2324/09,SME,Y,50%
0000374177,THE OYSTER PARTNERSHIP LTD,"3,650.00",HRA General Management,Agency Staff,29 Nov 2023,2324/09,SME,Y,50%
0000374178,THE OYSTER PARTNERSHIP LTD,"1,550.00",Building Services,Agency Staff,29 Nov 2023,2324/09,SME,Y,50%
0000374179,THE OYSTER PARTNERSHIP LTD,"2,306.25",Building Servs Tech Staff,Agency Staff,29 Nov 2023,2324/09,SME,Y,50%
0000374180,THE OYSTER PARTNERSHIP LTD,"2,032.85",Building Servs Tech Staff,Agency Staff,29 Nov 2023,2324/09,SME,Y,50%
0000374181,THE OYSTER PARTNERSHIP LTD,"1,697.97",Building Services,Agency Staff,29 Nov 2023,2324/09,SME,Y,50%
0000374383,THE OYSTER PARTNERSHIP LTD,"2,200.00",Financial Servs,Agency Staff,06 Dec 2023,2324/09,SME,Y,50%
0000374384,THE OYSTER PARTNERSHIP LTD,"1,100.00",Financial Servs,Agency Staff,06 Dec 2023,2324/09,SME,Y,50%
0000374386,THE OYSTER PARTNERSHIP LTD,"1,607.25",Building Services,Agency Staff,06 Dec 2023,2324/09,SME,Y,50%
0000374387,THE OYSTER PARTNERSHIP LTD,"2,050.40",Building Servs Tech Staff,Agency Staff,06 Dec 2023,2324/09,SME,Y,50%
0000374388,THE OYSTER PARTNERSHIP LTD,"1,550.00",Building Services,Agency Staff,06 Dec 2023,2324/09,SME,Y,50%
0000374389,THE OYSTER PARTNERSHIP LTD,924.00,Building Services,Agency Staff,06 Dec 2023,2324/09,SME,Y,50%
0000374390,THE OYSTER PARTNERSHIP LTD,"2,500.00",Financial Servs,Agency Staff,06 Dec 2023,2324/09,SME,Y,50%
0000374391,THE OYSTER PARTNERSHIP LTD,"3,650.00",HRA General Management,Agency Staff,06 Dec 2023,2324/09,SME,Y,50%
0000374393,THE OYSTER PARTNERSHIP LTD,"2,200.00",Financial Servs,Agency Staff,06 Dec 2023,2324/09,SME,Y,50%
0000374394,THE OYSTER PARTNERSHIP LTD,"2,656.25",Building Servs Tech Staff,Agency Staff,06 Dec 2023,2324/09,SME,Y,50%
0000374554,THE OYSTER PARTNERSHIP LTD,"1,607.25",Building Services,Agency Staff,13 Dec 2023,2324/09,SME,Y,50%
0000374555,THE OYSTER PARTNERSHIP LTD,"2,656.25",Building Servs Tech Staff,Agency Staff,13 Dec 2023,2324/09,SME,Y,50%
0000374556,THE OYSTER PARTNERSHIP LTD,"1,176.00",Building Services,Agency Staff,13 Dec 2023,2324/09,SME,Y,50%
0000374557,THE OYSTER PARTNERSHIP LTD,"2,500.00",Financial Servs,Agency Staff,13 Dec 2023,2324/09,SME,Y,50%
0000374558,THE OYSTER PARTNERSHIP LTD,"3,650.00",HRA General Management,Agency Staff,13 Dec 2023,2324/09,SME,Y,50%
0000374559,THE OYSTER PARTNERSHIP LTD,"1,550.00",Building Services,Agency Staff,13 Dec 2023,2324/09,SME,Y,50%
0000374560,THE OYSTER PARTNERSHIP LTD,"1,100.00",Financial Servs,Agency Staff,13 Dec 2023,2324/09,SME,Y,50%
0000374612,THE OYSTER PARTNERSHIP LTD,"2,072.90",Building Servs Tech Staff,Agency Staff,13 Dec 2023,2324/09,SME,Y,50%
0000374613,THE OYSTER PARTNERSHIP LTD,"2,277.00",Building Servs Tech Staff,Agency Staff,13 Dec 2023,2324/09,SME,Y,50%
0000374802,THE OYSTER PARTNERSHIP LTD,"2,068.40",Building Servs Tech Staff,Agency Staff,20 Dec 2023,2324/09,SME,Y,50%
0000374803,THE OYSTER PARTNERSHIP LTD,"3,650.00",HRA General Management,Agency Staff,20 Dec 2023,2324/09,SME,Y,50%
0000374804,THE OYSTER PARTNERSHIP LTD,"2,500.00",Financial Servs,Agency Staff,20 Dec 2023,2324/09,SME,Y,50%
0000374805,THE OYSTER PARTNERSHIP LTD,"2,656.25",Building Servs Tech Staff,Agency Staff,20 Dec 2023,2324/09,SME,Y,50%
0000374806,THE OYSTER PARTNERSHIP LTD,"1,607.25",Building Services,Agency Staff,20 Dec 2023,2324/09,SME,Y,50%
0000374807,THE OYSTER PARTNERSHIP LTD,"1,705.00",Building Services,Agency Staff,20 Dec 2023,2324/09,SME,Y,50%
0000374808,THE OYSTER PARTNERSHIP LTD,"1,176.00",Building Services,Agency Staff,20 Dec 2023,2324/09,SME,Y,50%
0000374809,THE OYSTER PARTNERSHIP LTD,"2,277.45",Building Servs Tech Staff,Agency Staff,20 Dec 2023,2324/09,SME,Y,50%
0000374951,THE OYSTER PARTNERSHIP LTD,962.00,Building Services,Agency Staff,20 Dec 2023,2324/09,SME,Y,50%
0000374952,THE OYSTER PARTNERSHIP LTD,962.00,Building Services,Agency Staff,20 Dec 2023,2324/09,SME,Y,50%
0000374993,THE OYSTER PARTNERSHIP LTD,826.00,Building Services,Agency Staff,27 Dec 2023,2324/09,SME,Y,50%
0000374994,THE OYSTER PARTNERSHIP LTD,"1,705.00",Building Services,Agency Staff,27 Dec 2023,2324/09,SME,Y,50%
0000374995,THE OYSTER PARTNERSHIP LTD,"2,268.90",Building Servs Tech Staff,Agency Staff,27 Dec 2023,2324/09,SME,Y,50%
0000374996,THE OYSTER PARTNERSHIP LTD,910.00,Building Services,Agency Staff,27 Dec 2023,2324/09,SME,Y,50%
0000374997,THE OYSTER PARTNERSHIP LTD,"2,067.95",Building Servs Tech Staff,Agency Staff,27 Dec 2023,2324/09,SME,Y,50%
0000374998,THE OYSTER PARTNERSHIP LTD,"2,656.25",Building Servs Tech Staff,Agency Staff,27 Dec 2023,2324/09,SME,Y,50%
0000374999,THE OYSTER PARTNERSHIP LTD,"2,500.00",Financial Servs,Agency Staff,27 Dec 2023,2324/09,SME,Y,50%
0000375000,THE OYSTER PARTNERSHIP LTD,"3,650.00",HRA General Management,Agency Staff,27 Dec 2023,2324/09,SME,Y,50%
0000375001,THE OYSTER PARTNERSHIP LTD,"1,607.25",Building Services,Agency Staff,27 Dec 2023,2324/09,SME,Y,50%
0000373838,THE PLAY INSPECTION COMPANY LTD,946.60,Open Spaces,"Equipment, Tools & Materials",16 Nov 2023,2324/08,SME,N,
0000372634,THE STOWMARKET GLASS COMPANY LTD,"4,103.10",Building Services,Repairs,27 Sep 2023,2324/07,SME,N,
0000373471,THE STOWMARKET GLASS COMPANY LTD,"3,315.00",Building Services,Repairs,16 Oct 2023,2324/08,SME,N,
0000373496,THE STOWMARKET GLASS COMPANY LTD,"2,026.10",Building Services,Repairs,25 Oct 2023,2324/08,SME,N,
0000373499,THE STOWMARKET GLASS COMPANY LTD,"1,223.88",Building Services,Repairs,25 Oct 2023,2324/08,SME,N,
0000373501,THE STOWMARKET GLASS COMPANY LTD,"3,640.00",Building Services,Repairs,31 Oct 2023,2324/08,SME,N,
0000373511,THE STOWMARKET GLASS COMPANY LTD,526.50,Building Services,Repairs,16 Oct 2023,2324/08,SME,N,
0000374275,THE STOWMARKET GLASS COMPANY LTD,"1,496.10",Building Services,Repairs,15 Nov 2023,2324/09,SME,N,
0000374019,THERMATECH,900.00,Sheltered Accommodation,Fire Prevention,20 Nov 2023,2324/09,SME,N,
0000374019,THERMATECH,"7,150.00",Tenancy Services,Fire Prevention,20 Nov 2023,2324/09,SME,N,
0000374501,THERMATECH,"2,625.00",Tenancy Services,Fire Prevention,11 Dec 2023,2324/09,SME,N,
0000372100,THOMPSON COOPER LTD,"1,373.00",Street & Major Road Cleansing,"Equipment, Tools & Materials",18 Sep 2023,2324/07,SME,N,
0000372955,THOMPSON COOPER LTD,"1,647.60",Street & Major Road Cleansing,"Equipment, Tools & Materials",17 Oct 2023,2324/08,SME,N,
0000373974,THOMPSON COOPER LTD,"1,373.00",Street & Major Road Cleansing,"Equipment, Tools & Materials",17 Nov 2023,2324/09,SME,N,
0000374528,THOMPSON COOPER LTD,"1,373.00",Street & Major Road Cleansing,"Equipment, Tools & Materials",05 Dec 2023,2324/09,SME,N,
0000373160,THOMPSONS ESTATE OFFICES LTD,725.00,Guaranteed Rent Scheme,Rent Payable,24 Oct 2023,2324/07,SME,N,
0000373926,THOMPSONS ESTATE OFFICES LTD,725.00,Guaranteed Rent Scheme,Rent Payable,20 Nov 2023,2324/08,SME,N,
0000374713,THOMPSONS ESTATE OFFICES LTD,725.00,Guaranteed Rent Scheme,Rent Payable,19 Dec 2023,2324/09,SME,N,
0000374032,THOMSON REUTERS,"2,756.28",Planning Performance Agreement,"Equipment, Tools & Materials",01 Nov 2023,2324/08,LGE,Y,44%
0000423553,THORNDON PARISH COUNCIL,"14,983.47",Current Liabilities,Parish Payments Available,06 Oct 2023,2324/07,SME,N,
0000373008,THURSTON PARISH COUNCIL,"11,833.15",S106 Open Spaces Expenditure,Grants,18 Oct 2023,2324/07,SME,N,
0000373204,THURSTON PARISH COUNCIL,"1,127.97",Street & Major Road Cleansing,Contributions to other Bodies,26 Oct 2023,2324/07,SME,N,
0000423554,THURSTON PARISH COUNCIL,"28,870.83",Current Liabilities,Parish Payments Available,06 Oct 2023,2324/07,SME,N,
0000423626,THURSTON PARISH COUNCIL,583.17,Bring Sites,Contributions & Donations,11 Oct 2023,2324/07,SME,N,
0000373601,THURSTON PARISH COUNCIL,"1,000.00",Grants & Contrbns,Contributions & Donations,07 Nov 2023,2324/08,SME,N,
0000373686,THURSTON PARISH COUNCIL,"1,000.00",Grants & Contrbns,Contributions & Donations,09 Nov 2023,2324/08,SME,N,
0000371425,TILE HILL INTERIM & EXECUTIVE LTD,"13,250.00",Financial Servs,Agency Staff,23 Aug 2023,2324/07,SME,Y,50%
0000372312,TILE HILL INTERIM & EXECUTIVE LTD,"8,190.00",Financial Servs,Agency Staff,27 Sep 2023,2324/07,SME,Y,50%
0000372460,TILE HILL INTERIM & EXECUTIVE LTD,"19,895.00",Financial Servs,Agency Staff,30 Sep 2023,2324/07,SME,Y,50%
0000372593,TILE HILL INTERIM & EXECUTIVE LTD,"5,850.00",Financial Servs,Agency Staff,06 Oct 2023,2324/07,SME,Y,50%
0000372594,TILE HILL INTERIM & EXECUTIVE LTD,"13,500.00",Organisational Devt,Agency Staff,06 Oct 2023,2324/07,SME,Y,50%
0000372797,TILE HILL INTERIM & EXECUTIVE LTD,"7,215.00",Financial Servs,Agency Staff,11 Oct 2023,2324/07,SME,Y,50%
0000372948,TILE HILL INTERIM & EXECUTIVE LTD,"16,850.00",Management Team,Recruitment,17 Oct 2023,2324/08,SME,Y,50%
0000373443,TILE HILL INTERIM & EXECUTIVE LTD,"2,650.00",Financial Servs,Agency Staff,31 Oct 2023,2324/08,SME,Y,50%
0000373663,TILE HILL INTERIM & EXECUTIVE LTD,"6,240.00",Financial Servs,Agency Staff,08 Nov 2023,2324/08,SME,Y,50%
0000373664,TILE HILL INTERIM & EXECUTIVE LTD,"7,215.00",Financial Servs,Agency Staff,08 Nov 2023,2324/08,SME,Y,50%
0000373665,TILE HILL INTERIM & EXECUTIVE LTD,"20,160.00",Financial Servs,Agency Staff,08 Nov 2023,2324/08,SME,Y,50%
0000373667,TILE HILL INTERIM & EXECUTIVE LTD,"15,750.00",Organisational Devt,Agency Staff,08 Nov 2023,2324/08,SME,Y,50%
0000374455,TILE HILL INTERIM & EXECUTIVE LTD,"21,120.00",Financial Servs,Agency Staff,07 Dec 2023,2324/09,SME,Y,50%
0000374456,TILE HILL INTERIM & EXECUTIVE LTD,"5,070.00",Financial Servs,Agency Staff,07 Dec 2023,2324/09,SME,Y,50%
0000374457,TILE HILL INTERIM & EXECUTIVE LTD,"14,250.00",Organisational Devt,Agency Staff,07 Dec 2023,2324/09,SME,Y,50%
0000375003,TILE HILL INTERIM & EXECUTIVE LTD,"4,680.00",Financial Servs,Agency Staff,07 Sep 2023,2324/09,SME,Y,50%
0000374334,TOP FLOORS (EAST ANGLIA) LTD,"1,807.50",Other Temp Accommodation,"Equipment, Tools & Materials",01 Nov 2023,2324/09,SME,N,
0000372525,TOSTOCK PARISH COUNCIL,500.58,Current Assets,AR Refunds,28 Sep 2023,2324/07,SME,N,
0000423555,TOSTOCK PARISH COUNCIL,"6,834.24",Current Liabilities,Parish Payments Available,06 Oct 2023,2324/07,SME,N,
0000372228,TRAVIS PERKINS TRADING CO LTD,"57,788.72",Building Services,"Equipment, Tools & Materials",31 Aug 2023,2324/07,LGE,Y,34.5%
0000372228,TRAVIS PERKINS TRADING CO LTD,"60,639.58",Building Services,"Equipment, Tools & Materials",31 Aug 2023,2324/07,LGE,Y,38%
0000373984,TRAVIS PERKINS TRADING CO LTD,"93,368.62",Building Services,"Equipment, Tools & Materials",30 Sep 2023,2324/08,LGE,Y,12%
0000373042,TRUCKEAST LTD,552.96,Street & Major Road Cleansing,Plant & Vehicle - Other costs,13 Oct 2023,2324/07,LGE,N,
0000373284,TRUCKEAST LTD,943.01,Street & Major Road Cleansing,Plant & Vehicle - Other costs,27 Oct 2023,2324/08,LGE,N,
0000374210,TRUCKEAST LTD,723.04,Street & Major Road Cleansing,Plant & Vehicle - Other costs,30 Nov 2023,2324/08,LGE,N,
0000374341,TURVEC SOLUTIONS LTD,"4,100.00",MSM Sustainable Travel,"Equipment, Tools & Materials",05 Dec 2023,2324/09,SME,N,
0000372945,UK CONTAINER MAINTENANCE LTD,"2,844.00",Jnt Waste Contract,"Equipment, Tools & Materials",12 Oct 2023,2324/07,SME,Y,50%
0000373182,UK POWER NETWORKS,"9,197.00",EV Charge Points Car parks,Misc Supplies & Services Costs,18 Oct 2023,2324/07,LGE,N,
0000373183,UK POWER NETWORKS,"11,227.00",EV Charge Points Car parks,Misc Supplies & Services Costs,18 Oct 2023,2324/07,LGE,N,
0000372270,URBAN FORESTRY (BSE) LTD,"9,096.51","Fences, Gates and Walls",Improvements,25 Sep 2023,2324/07,SME,N,
0000372564,URBAN FORESTRY (BSE) LTD,"10,263.68","Fences, Gates and Walls",Improvements,29 Sep 2023,2324/07,SME,N,
0000373257,URBAN FORESTRY (BSE) LTD,"25,508.24","Fences, Gates and Walls",Improvements,24 Oct 2023,2324/08,SME,N,
0000373546,URBAN FORESTRY (BSE) LTD,"12,092.80","Fences, Gates and Walls",Improvements,31 Oct 2023,2324/08,SME,N,
0000374219,URBAN FORESTRY (BSE) LTD,"23,924.24","Fences, Gates and Walls",Improvements,23 Nov 2023,2324/09,SME,N,
0000374220,URBAN FORESTRY (BSE) LTD,"1,500.00","Fences, Gates and Walls",Improvements,30 Nov 2023,2324/09,SME,N,
0000373999,VODAFONE CORPORATE LTD,"1,577.25",ICT,Telephone Costs,21 Oct 2023,2324/08,LGE,N,
0000372903,WADDINGTON BROWN LTD,586.27,Organisational Devt,Recruitment,09 Oct 2023,2324/07,SME,Y,50%
0000372911,WADDINGTON BROWN LTD,624.51,Organisational Devt,Recruitment,16 Oct 2023,2324/07,SME,Y,50%
0000373130,WADDINGTON BROWN LTD,624.51,Organisational Devt,Recruitment,23 Oct 2023,2324/07,SME,Y,50%
0000373740,WADDINGTON BROWN LTD,637.25,Organisational Devt,Recruitment,13 Nov 2023,2324/08,SME,Y,50%
0000423632,WALSHAM LE WILLOWS MEMORIAL VILLAGE HALL,514.81,Bring Sites,Contributions & Donations,11 Oct 2023,2324/07,SME,N,
0000372374,WASHCO LTD,740.29,Tenancy Services,"Equipment, Tools & Materials",29 Sep 2023,2324/07,SME,N,
0000374195,WASHCO LTD,"2,130.00",Sheltered General Mgmt,"Equipment, Tools & Materials",29 Nov 2023,2324/09,SME,N,
0000374196,WASHCO LTD,"2,320.00",Sheltered General Mgmt,"Equipment, Tools & Materials",29 Nov 2023,2324/09,SME,N,
0000374197,WASHCO LTD,"6,770.00",Sheltered General Mgmt,"Equipment, Tools & Materials",29 Nov 2023,2324/09,SME,N,
0000374198,WASHCO LTD,"2,130.00",Sheltered General Mgmt,"Equipment, Tools & Materials",29 Nov 2023,2324/09,SME,N,
0000374223,WASHCO LTD,"2,320.00",Sheltered General Mgmt,"Equipment, Tools & Materials",30 Nov 2023,2324/09,SME,N,
0000374224,WASHCO LTD,"4,640.00",Sheltered General Mgmt,"Equipment, Tools & Materials",30 Nov 2023,2324/09,SME,N,
0000423556,WATTISFIELD PARISH COUNCIL,"10,541.41",Current Liabilities,Parish Payments Available,06 Oct 2023,2324/07,SME,N,
0000423696,WATTISFIELD VILLAGE HALL,"1,996.60",Grants & Contrbns,Grants,21 Dec 2023,2324/09,SME,N,
0000372420,WEST END REHOMING,"11,000.00",Dog Control,Kennels Retainer,31 Oct 2023,2324/07,SME,N,
0000374245,WEST END REHOMING,754.15,Dog Control,Collection Charges,01 Dec 2023,2324/09,SME,N,
0000374145,WHITESPACE WORK SOFTWARE LTD,"7,500.00",Jnt Waste Contract,Desktop Software,27 Nov 2023,2324/08,SME,Y,50%
0000372366,WHYBROW PROPERTY SOLUTIONS LTD,"8,009.88",Building Services,Repairs,29 Sep 2023,2324/07,SME,N,
0000372369,WHYBROW PROPERTY SOLUTIONS LTD,"10,070.23",Major Imps,Repairs,28 Sep 2023,2324/07,SME,N,
0000373214,WHYBROW PROPERTY SOLUTIONS LTD,"16,683.02",Major Imps,Repairs,23 Oct 2023,2324/08,SME,N,
0000373380,WHYBROW PROPERTY SOLUTIONS LTD,"6,838.53",Building Services,Repairs,23 Oct 2023,2324/08,SME,N,
0000373396,WHYBROW PROPERTY SOLUTIONS LTD,"14,308.11",Major Imps,Repairs,01 Nov 2023,2324/08,SME,N,
0000373420,WHYBROW PROPERTY SOLUTIONS LTD,"11,724.80",Building Services,Repairs,21 Sep 2023,2324/08,SME,N,
0000373729,WHYBROW PROPERTY SOLUTIONS LTD,"2,123.00",Building Services,Repairs,10 Nov 2023,2324/08,SME,N,
0000373982,WHYBROW PROPERTY SOLUTIONS LTD,"4,261.18",Building Services,Repairs,17 Nov 2023,2324/08,SME,N,
0000374106,WILLOWSERVE LTD,"7,740.00",Renovation/Home Repair Grants,Grants,27 Nov 2023,2324/08,SME,N,
0000371257,WINDIMAN LTD,"5,600.00",Building Services,Repairs,11 Aug 2023,2324/07,SME,N,
0000371258,WINDIMAN LTD,"2,294.00",Building Services,Repairs,11 Aug 2023,2324/07,SME,N,
0000371952,WINDIMAN LTD,"1,320.00",Building Services,Repairs,12 Sep 2023,2324/07,SME,N,
0000372828,WINDIMAN LTD,870.00,Building Services,Repairs,30 Sep 2023,2324/07,SME,N,
0000372829,WINDIMAN LTD,"1,620.00",Building Services,Repairs,30 Sep 2023,2324/07,SME,N,
0000372831,WINDIMAN LTD,650.00,Window & Door Rplcmts,Repairs,30 Sep 2023,2324/07,SME,N,
0000372832,WINDIMAN LTD,780.00,Building Services,Repairs,30 Sep 2023,2324/07,SME,N,
0000372834,WINDIMAN LTD,800.00,Building Services,Repairs,30 Sep 2023,2324/07,SME,N,
0000372835,WINDIMAN LTD,"2,930.00",Building Services,Repairs,30 Sep 2023,2324/07,SME,N,
0000372983,WINDIMAN LTD,"4,752.00",Building Services,Repairs,18 Oct 2023,2324/07,SME,N,
0000371712,WINDIMAN LTD,"5,860.00",Building Services,Repairs,05 Sep 2023,2324/08,SME,N,
0000372990,WINDIMAN LTD,"5,375.00",Building Services,Repairs,18 Oct 2023,2324/08,SME,N,
0000373376,WINDIMAN LTD,"2,500.00",Building Services,Repairs,31 Oct 2023,2324/08,SME,N,
0000373624,WINDIMAN LTD,825.00,Building Services,Repairs,07 Nov 2023,2324/08,SME,N,
0000373759,WINDIMAN LTD,650.00,Window & Door Rplcmts,Repairs,14 Nov 2023,2324/08,SME,N,
0000373762,WINDIMAN LTD,825.00,Building Services,Repairs,14 Nov 2023,2324/08,SME,N,
0000373623,WINDIMAN LTD,"1,600.00",Building Services,Repairs,07 Nov 2023,2324/09,SME,N,
0000373625,WINDIMAN LTD,"1,300.00",Building Services,Repairs,07 Nov 2023,2324/09,SME,N,
0000373761,WINDIMAN LTD,"4,950.00",Building Services,Repairs,14 Nov 2023,2324/09,SME,N,
0000374138,WINDIMAN LTD,825.00,Building Services,Repairs,24 Nov 2023,2324/09,SME,N,
0000374490,WINDIMAN LTD,925.00,Building Services,Repairs,30 Nov 2023,2324/09,SME,N,
0000374491,WINDIMAN LTD,800.00,Voids Maintenance,Repairs,30 Nov 2023,2324/09,SME,N,
0000374464,WOOLPIT CHILDCARE CENTRE LTD(WOOLPITARC),"1,008.00",Holiday Activity Fund,"Equipment, Tools & Materials",08 Dec 2023,2324/09,SME,N,
0000374631,WOOLPIT CRICKET CLUB,"2,500.00",Grants & Contrbns,Contributions & Donations,15 Dec 2023,2324/09,SME,N,
0000373209,WOOLPIT INSTITUTE,"1,500.00",Grants & Contrbns,Contributions & Donations,24 Oct 2023,2324/07,SME,N,
0000373207,WOOLPIT PARISH COUNCIL,812.76,Street & Major Road Cleansing,Contributions to other Bodies,26 Oct 2023,2324/07,SME,N,
0000423557,WOOLPIT PARISH COUNCIL,"130,394.78",Current Liabilities,Parish Payments Available,06 Oct 2023,2324/07,SME,N,
0000423617,WOOLPIT PARISH COUNCIL,505.24,Bring Sites,Contributions & Donations,11 Oct 2023,2324/07,SME,N,
0000374632,WOOLPIT TENNIS CLUB,"1,000.00",Grants & Contrbns,Contributions & Donations,15 Dec 2023,2324/09,SME,N,
0000373638,WORKWEAR (EAST ANGLIA) LTD,303.77,Open Spaces,Protective clothing,07 Nov 2023,2324/08,SME,N,
0000373638,WORKWEAR (EAST ANGLIA) LTD,303.77,Street & Major Road Cleansing,Protective clothing,07 Nov 2023,2324/08,SME,N,
0000374267,WORKWEAR (EAST ANGLIA) LTD,778.32,Building Services,Protective clothing,14 Nov 2023,2324/09,SME,Y,50%
0000374461,WORKWEAR (EAST ANGLIA) LTD,943.60,Street & Major Road Cleansing,Protective clothing,07 Dec 2023,2324/09,SME,N,
0000374663,WORLINGWORTH COMMUNITY CENTRE COMMITTEE,"3,139.00",Grants & Contrbns,Contributions & Donations,19 Dec 2023,2324/09,SME,N,
0000423558,WORLINGWORTH PARISH COUNCIL,"17,767.34",Current Liabilities,Parish Payments Available,06 Oct 2023,2324/07,SME,N,
0000423559,WORTHAM AND BURGATE PARISH COUNCIL,"6,631.12",Current Liabilities,Parish Payments Available,06 Oct 2023,2324/07,SME,N,
0000423560,WYVERSTONE PARISH COUNCIL,"2,407.88",Current Liabilities,Parish Payments Available,06 Oct 2023,2324/07,SME,N,
0000374636,YAXLEY & MELLIS PRE SCHOOL,900.00,Grants & Contrbns,Contributions & Donations,15 Dec 2023,2324/09,SME,N,
0000373179,YELLOW HOMES LIMITED,"1,785.00",Guaranteed Rent Scheme,Rent Payable,24 Oct 2023,2324/07,SME,N,
0000373953,YELLOW HOMES LIMITED,"1,785.00",Guaranteed Rent Scheme,Rent Payable,20 Nov 2023,2324/08,SME,N,
0000374664,YELLOW HOMES LIMITED,"1,785.00",Guaranteed Rent Scheme,Rent Payable,19 Dec 2023,2324/09,SME,N,
0000374550,ZAPCARBON LTD,"78,240.00",Building Servs Tech Staff,Contracted Services,14 Dec 2023,2324/09,SME,N,
